Organisation Code,Organisation Label,Effective Date,Organisational Unit,Service Division Label,Category Internal Name,Purpose,Detailed Expenditure Code,Payment Date,Transaction Number,Irrecoverable VAT Amount,Amount,Capital Or Revenue,Benificiary Name,Procurement Card
Http://opendatacommunities.org/id/metropolitan-district-council/leeds,Leeds City Council,31/01/2020,City Development,Libraries  Arts & Heritage,Supplies and Services,Advertising,211,28/01/2020,2001-00001,0.00,375.00,R,A & N Media Finance Services Ltd,No
Http://opendatacommunities.org/id/metropolitan-district-council/leeds,Leeds City Council,31/01/2020,Adults and Health,Services For Older People Under 65 P/Dis,Third Party Payments,Sheltered Accommodation,569,08/01/2020,2001-00002,0.00,5400.00,R,A & V Transitional Homes,No
Http://opendatacommunities.org/id/metropolitan-district-council/leeds,Leeds City Council,31/01/2020,Resources and Housing,HRA Housing Leeds,Capital,Other Costs,7,09/01/2020,2001-00003,0.00,25.00,C,REDACTED PERSONAL DATA,No
Http://opendatacommunities.org/id/metropolitan-district-council/leeds,Leeds City Council,31/01/2020,Resources and Housing,Leeds Building Services,Supplies and Services,Operational Materials,205,03/01/2020,2001-00004,0.00,209.82,R,A Andrews & Sons (Marbles & Tiles),No
Http://opendatacommunities.org/id/metropolitan-district-council/leeds,Leeds City Council,31/01/2020,Resources and Housing,Leeds Building Services,Supplies and Services,Operational Materials,205,03/01/2020,2001-00005,0.00,16.84,R,A Andrews & Sons (Marbles & Tiles),No
Http://opendatacommunities.org/id/metropolitan-district-council/leeds,Leeds City Council,31/01/2020,Resources and Housing,Leeds Building Services,Supplies and Services,Operational Materials,205,03/01/2020,2001-00006,0.00,29.72,R,A Andrews & Sons (Marbles & Tiles),No
Http://opendatacommunities.org/id/metropolitan-district-council/leeds,Leeds City Council,31/01/2020,Resources and Housing,Leeds Building Services,Supplies and Services,Operational Materials,205,03/01/2020,2001-00007,0.00,6.16,R,A Andrews & Sons (Marbles & Tiles),No
Http://opendatacommunities.org/id/metropolitan-district-council/leeds,Leeds City Council,31/01/2020,Resources and Housing,Leeds Building Services,Supplies and Services,Operational Materials,205,03/01/2020,2001-00008,0.00,155.43,R,A Andrews & Sons (Marbles & Tiles),No
Http://opendatacommunities.org/id/metropolitan-district-council/leeds,Leeds City Council,31/01/2020,Resources and Housing,Leeds Building Services,Supplies and Services,Operational Materials,205,10/01/2020,2001-00009,0.00,18.87,R,A Andrews & Sons (Marbles & Tiles),No
Http://opendatacommunities.org/id/metropolitan-district-council/leeds,Leeds City Council,31/01/2020,Resources and Housing,Leeds Building Services,Supplies and Services,Operational Materials,205,20/01/2020,2001-00010,0.00,15.44,R,A Andrews & Sons (Marbles & Tiles),No
Http://opendatacommunities.org/id/metropolitan-district-council/leeds,Leeds City Council,31/01/2020,Resources and Housing,Leeds Building Services,Supplies and Services,Operational Materials,205,22/01/2020,2001-00011,0.00,326.63,R,A Andrews & Sons (Marbles & Tiles),No
Http://opendatacommunities.org/id/metropolitan-district-council/leeds,Leeds City Council,31/01/2020,Resources and Housing,Leeds Building Services,Supplies and Services,Operational Materials,205,22/01/2020,2001-00012,0.00,4.16,R,A Andrews & Sons (Marbles & Tiles),No
Http://opendatacommunities.org/id/metropolitan-district-council/leeds,Leeds City Council,31/01/2020,Resources and Housing,Leeds Building Services,Supplies and Services,Operational Materials,205,22/01/2020,2001-00013,0.00,6.00,R,A Andrews & Sons (Marbles & Tiles),No
Http://opendatacommunities.org/id/metropolitan-district-council/leeds,Leeds City Council,31/01/2020,Resources and Housing,Leeds Building Services,Supplies and Services,Operational Materials,205,22/01/2020,2001-00014,0.00,58.92,R,A Andrews & Sons (Marbles & Tiles),No
Http://opendatacommunities.org/id/metropolitan-district-council/leeds,Leeds City Council,31/01/2020,Resources and Housing,Leeds Building Services,Supplies and Services,Operational Materials,205,22/01/2020,2001-00015,0.00,18.88,R,A Andrews & Sons (Marbles & Tiles),No
Http://opendatacommunities.org/id/metropolitan-district-council/leeds,Leeds City Council,31/01/2020,Children and Families,Social Care,Third Party Payments,Services Rendered By Other Organisations,511,03/01/2020,2001-00016,0.00,613.47,R,REDACTED PERSONAL DATA,No
Http://opendatacommunities.org/id/metropolitan-district-council/leeds,Leeds City Council,31/01/2020,Resources and Housing,HRA Housing Leeds,Capital,Other Costs,7,21/01/2020,2001-00017,0.00,60.00,C,REDACTED PERSONAL DATA,No
Http://opendatacommunities.org/id/metropolitan-district-council/leeds,Leeds City Council,31/01/2020,Resources and Housing,Leeds Building Services,Supplies and Services,Other Hired And Contracted Services,265,03/01/2020,2001-00018,0.00,47963.00,R,A Buckler (Haulage) Ltd,No
Http://opendatacommunities.org/id/metropolitan-district-council/leeds,Leeds City Council,31/01/2020,Resources and Housing,Leeds Building Services,Supplies and Services,Other Hired And Contracted Services,265,08/01/2020,2001-00019,0.00,705.00,R,A Buckler (Haulage) Ltd,No
Http://opendatacommunities.org/id/metropolitan-district-council/leeds,Leeds City Council,31/01/2020,City Development,Libraries  Arts & Heritage,Supplies and Services,Operational Materials,205,16/01/2020,2001-00020,0.00,217.83,R,A C Entertainment Technologies Ltd,No
Http://opendatacommunities.org/id/metropolitan-district-council/leeds,Leeds City Council,31/01/2020,City Development,Libraries  Arts & Heritage,Supplies and Services,Operational Furniture And Equipment,203,31/01/2020,2001-00021,0.00,55.25,R,A C Entertainment Technologies Ltd,No
Http://opendatacommunities.org/id/metropolitan-district-council/leeds,Leeds City Council,31/01/2020,Children and Families,Social Care,Third Party Payments,Services Rendered By Other Organisations,511,03/01/2020,2001-00022,0.00,946.00,R,REDACTED PERSONAL DATA,No
Http://opendatacommunities.org/id/metropolitan-district-council/leeds,Leeds City Council,31/01/2020,Children and Families,Social Care,Third Party Payments,Services Rendered By Other Organisations,511,03/01/2020,2001-00023,0.00,516.00,R,REDACTED PERSONAL DATA,No
Http://opendatacommunities.org/id/metropolitan-district-council/leeds,Leeds City Council,31/01/2020,Resources and Housing,HRA Housing Leeds,Capital,Construction,3,21/01/2020,2001-00024,0.00,497437.32,C,A Connolly Limited,No
Http://opendatacommunities.org/id/metropolitan-district-council/leeds,Leeds City Council,31/01/2020,Resources and Housing,Leeds Building Services,Supplies and Services,Other Hired And Contracted Services,265,03/01/2020,2001-00025,0.00,85.00,R,A Coole Electrical Ltd,No
Http://opendatacommunities.org/id/metropolitan-district-council/leeds,Leeds City Council,31/01/2020,Resources and Housing,Leeds Building Services,Supplies and Services,Other Hired And Contracted Services,265,03/01/2020,2001-00026,0.00,85.00,R,A Coole Electrical Ltd,No
Http://opendatacommunities.org/id/metropolitan-district-council/leeds,Leeds City Council,31/01/2020,Resources and Housing,Leeds Building Services,Supplies and Services,Other Hired And Contracted Services,265,03/01/2020,2001-00027,0.00,160.00,R,A Coole Electrical Ltd,No
Http://opendatacommunities.org/id/metropolitan-district-council/leeds,Leeds City Council,31/01/2020,Resources and Housing,Leeds Building Services,Supplies and Services,Other Hired And Contracted Services,265,03/01/2020,2001-00028,0.00,95.00,R,A Coole Electrical Ltd,No
Http://opendatacommunities.org/id/metropolitan-district-council/leeds,Leeds City Council,31/01/2020,Resources and Housing,Leeds Building Services,Supplies and Services,Other Hired And Contracted Services,265,03/01/2020,2001-00029,0.00,85.00,R,A Coole Electrical Ltd,No
Http://opendatacommunities.org/id/metropolitan-district-council/leeds,Leeds City Council,31/01/2020,Resources and Housing,Leeds Building Services,Supplies and Services,Other Hired And Contracted Services,265,03/01/2020,2001-00030,0.00,85.00,R,A Coole Electrical Ltd,No
Http://opendatacommunities.org/id/metropolitan-district-council/leeds,Leeds City Council,31/01/2020,Resources and Housing,Leeds Building Services,Supplies and Services,Other Hired And Contracted Services,265,03/01/2020,2001-00031,0.00,85.00,R,A Coole Electrical Ltd,No
Http://opendatacommunities.org/id/metropolitan-district-council/leeds,Leeds City Council,31/01/2020,Resources and Housing,Leeds Building Services,Supplies and Services,Other Hired And Contracted Services,265,08/01/2020,2001-00032,0.00,3605.00,R,A Coole Electrical Ltd,No
Http://opendatacommunities.org/id/metropolitan-district-council/leeds,Leeds City Council,31/01/2020,Resources and Housing,Leeds Building Services,Supplies and Services,Other Hired And Contracted Services,265,08/01/2020,2001-00033,0.00,3620.00,R,A Coole Electrical Ltd,No
Http://opendatacommunities.org/id/metropolitan-district-council/leeds,Leeds City Council,31/01/2020,Resources and Housing,Leeds Building Services,Supplies and Services,Other Hired And Contracted Services,265,10/01/2020,2001-00034,0.00,3230.00,R,A Coole Electrical Ltd,No
Http://opendatacommunities.org/id/metropolitan-district-council/leeds,Leeds City Council,31/01/2020,Resources and Housing,Leeds Building Services,Supplies and Services,Other Hired And Contracted Services,265,16/01/2020,2001-00035,0.00,85.00,R,A Coole Electrical Ltd,No
Http://opendatacommunities.org/id/metropolitan-district-council/leeds,Leeds City Council,31/01/2020,Resources and Housing,Leeds Building Services,Supplies and Services,Other Hired And Contracted Services,265,16/01/2020,2001-00036,0.00,85.00,R,A Coole Electrical Ltd,No
Http://opendatacommunities.org/id/metropolitan-district-council/leeds,Leeds City Council,31/01/2020,Resources and Housing,Leeds Building Services,Supplies and Services,Other Hired And Contracted Services,265,16/01/2020,2001-00037,0.00,85.00,R,A Coole Electrical Ltd,No
Http://opendatacommunities.org/id/metropolitan-district-council/leeds,Leeds City Council,31/01/2020,Resources and Housing,Leeds Building Services,Supplies and Services,Other Hired And Contracted Services,265,16/01/2020,2001-00038,0.00,160.00,R,A Coole Electrical Ltd,No
Http://opendatacommunities.org/id/metropolitan-district-council/leeds,Leeds City Council,31/01/2020,Resources and Housing,Leeds Building Services,Supplies and Services,Other Hired And Contracted Services,265,16/01/2020,2001-00039,0.00,85.00,R,A Coole Electrical Ltd,No
Http://opendatacommunities.org/id/metropolitan-district-council/leeds,Leeds City Council,31/01/2020,Resources and Housing,Leeds Building Services,Supplies and Services,Other Hired And Contracted Services,265,16/01/2020,2001-00040,0.00,85.00,R,A Coole Electrical Ltd,No
Http://opendatacommunities.org/id/metropolitan-district-council/leeds,Leeds City Council,31/01/2020,Resources and Housing,Leeds Building Services,Supplies and Services,Other Hired And Contracted Services,265,16/01/2020,2001-00041,0.00,85.00,R,A Coole Electrical Ltd,No
Http://opendatacommunities.org/id/metropolitan-district-council/leeds,Leeds City Council,31/01/2020,Resources and Housing,Leeds Building Services,Supplies and Services,Other Hired And Contracted Services,265,16/01/2020,2001-00042,0.00,2150.00,R,A Coole Electrical Ltd,No
Http://opendatacommunities.org/id/metropolitan-district-council/leeds,Leeds City Council,31/01/2020,Resources and Housing,Leeds Building Services,Supplies and Services,Other Hired And Contracted Services,265,16/01/2020,2001-00043,0.00,85.00,R,A Coole Electrical Ltd,No
Http://opendatacommunities.org/id/metropolitan-district-council/leeds,Leeds City Council,31/01/2020,Resources and Housing,Leeds Building Services,Supplies and Services,Other Hired And Contracted Services,265,16/01/2020,2001-00044,0.00,85.00,R,A Coole Electrical Ltd,No
Http://opendatacommunities.org/id/metropolitan-district-council/leeds,Leeds City Council,31/01/2020,Resources and Housing,Leeds Building Services,Supplies and Services,Other Hired And Contracted Services,265,16/01/2020,2001-00045,0.00,6690.00,R,A Coole Electrical Ltd,No
Http://opendatacommunities.org/id/metropolitan-district-council/leeds,Leeds City Council,31/01/2020,Resources and Housing,Leeds Building Services,Supplies and Services,Other Hired And Contracted Services,265,16/01/2020,2001-00046,0.00,3630.00,R,A Coole Electrical Ltd,No
Http://opendatacommunities.org/id/metropolitan-district-council/leeds,Leeds City Council,31/01/2020,Resources and Housing,Leeds Building Services,Supplies and Services,Other Hired And Contracted Services,265,17/01/2020,2001-00047,0.00,4110.00,R,A Coole Electrical Ltd,No
Http://opendatacommunities.org/id/metropolitan-district-council/leeds,Leeds City Council,31/01/2020,Resources and Housing,Leeds Building Services,Supplies and Services,Other Hired And Contracted Services,265,17/01/2020,2001-00048,0.00,85.00,R,A Coole Electrical Ltd,No
Http://opendatacommunities.org/id/metropolitan-district-council/leeds,Leeds City Council,31/01/2020,Resources and Housing,Leeds Building Services,Supplies and Services,Other Hired And Contracted Services,265,17/01/2020,2001-00049,0.00,85.00,R,A Coole Electrical Ltd,No
Http://opendatacommunities.org/id/metropolitan-district-council/leeds,Leeds City Council,31/01/2020,Resources and Housing,Leeds Building Services,Supplies and Services,Other Hired And Contracted Services,265,17/01/2020,2001-00050,0.00,160.00,R,A Coole Electrical Ltd,No
Http://opendatacommunities.org/id/metropolitan-district-council/leeds,Leeds City Council,31/01/2020,Resources and Housing,Leeds Building Services,Supplies and Services,Other Hired And Contracted Services,265,17/01/2020,2001-00051,0.00,85.00,R,A Coole Electrical Ltd,No
Http://opendatacommunities.org/id/metropolitan-district-council/leeds,Leeds City Council,31/01/2020,Resources and Housing,Leeds Building Services,Supplies and Services,Other Hired And Contracted Services,265,24/01/2020,2001-00052,0.00,85.00,R,A Coole Electrical Ltd,No
Http://opendatacommunities.org/id/metropolitan-district-council/leeds,Leeds City Council,31/01/2020,Communities and Environment,Customer Access,Supplies and Services,Bought In Professional Services,277,07/01/2020,2001-00053,0.00,204.75,R,A D Dumitru,No
Http://opendatacommunities.org/id/metropolitan-district-council/leeds,Leeds City Council,31/01/2020,Communities and Environment,Customer Access,Supplies and Services,Bought In Professional Services,277,07/01/2020,2001-00054,0.00,22.50,R,A D Dumitru,No
Http://opendatacommunities.org/id/metropolitan-district-council/leeds,Leeds City Council,31/01/2020,Communities and Environment,Customer Access,Supplies and Services,Bought In Professional Services,277,07/01/2020,2001-00055,0.00,22.50,R,A D Dumitru,No
Http://opendatacommunities.org/id/metropolitan-district-council/leeds,Leeds City Council,31/01/2020,Communities and Environment,Customer Access,Supplies and Services,Bought In Professional Services,277,09/01/2020,2001-00056,0.00,18.00,R,A D Dumitru,No
Http://opendatacommunities.org/id/metropolitan-district-council/leeds,Leeds City Council,31/01/2020,Communities and Environment,Customer Access,Supplies and Services,Bought In Professional Services,277,17/01/2020,2001-00057,0.00,18.00,R,A D Dumitru,No
Http://opendatacommunities.org/id/metropolitan-district-council/leeds,Leeds City Council,31/01/2020,Children and Families,Social Care,Third Party Payments,Services Rendered By Voluntary Sector,505,03/01/2020,2001-00058,0.00,1872.00,R,REDACTED PERSONAL DATA,No
Http://opendatacommunities.org/id/metropolitan-district-council/leeds,Leeds City Council,31/01/2020,Children and Families,Social Care,Third Party Payments,Services Rendered By Voluntary Sector,505,03/01/2020,2001-00059,0.00,7275.60,R,REDACTED PERSONAL DATA,No
Http://opendatacommunities.org/id/metropolitan-district-council/leeds,Leeds City Council,31/01/2020,Resources and Housing,Commercial Services  ,Supplies and Services,Food & Drink,231,17/12/2019,2001-00060,0.00,612.99,R,A F Blakemore & Son Ltd,Yes
Http://opendatacommunities.org/id/metropolitan-district-council/leeds,Leeds City Council,31/01/2020,Children and Families,Social Care,Third Party Payments,Services Rendered By Other Organisations,511,03/01/2020,2001-00061,0.00,312.00,R,REDACTED PERSONAL DATA,No
Http://opendatacommunities.org/id/metropolitan-district-council/leeds,Leeds City Council,31/01/2020,Children and Families,Social Care,Third Party Payments,Services Rendered By Other Organisations,511,03/01/2020,2001-00062,0.00,1032.00,R,REDACTED PERSONAL DATA,No
Http://opendatacommunities.org/id/metropolitan-district-council/leeds,Leeds City Council,31/01/2020,Children and Families,Social Care,Third Party Payments,Services Rendered By Other Organisations,511,03/01/2020,2001-00063,0.00,258.00,R,REDACTED PERSONAL DATA,No
Http://opendatacommunities.org/id/metropolitan-district-council/leeds,Leeds City Council,31/01/2020,Children and Families,Social Care,Third Party Payments,Services Rendered By Other Organisations,511,03/01/2020,2001-00064,0.00,266.60,R,REDACTED PERSONAL DATA,No
Http://opendatacommunities.org/id/metropolitan-district-council/leeds,Leeds City Council,31/01/2020,Resources and Housing,HRA Housing Leeds,Capital,Other Costs,7,23/01/2020,2001-00065,0.00,100.00,C,REDACTED PERSONAL DATA,No
Http://opendatacommunities.org/id/metropolitan-district-council/leeds,Leeds City Council,31/01/2020,Adults and Health,Other Generic Services,Third Party Payments,Fees To Carers,563,31/01/2020,2001-00066,0.00,18.25,R,REDACTED PERSONAL DATA,No
Http://opendatacommunities.org/id/metropolitan-district-council/leeds,Leeds City Council,31/01/2020,Adults and Health,Other Generic Services,Third Party Payments,Fees To Carers,563,31/01/2020,2001-00067,0.00,18.25,R,REDACTED PERSONAL DATA,No
Http://opendatacommunities.org/id/metropolitan-district-council/leeds,Leeds City Council,31/01/2020,City Development,Libraries  Arts & Heritage,Supplies and Services,Other Hired And Contracted Services,265,24/01/2020,2001-00068,0.00,100.00,R,REDACTED COMMERCIAL CONFIDENTIALITY,No
Http://opendatacommunities.org/id/metropolitan-district-council/leeds,Leeds City Council,31/01/2020,Resources and Housing,Leeds Building Services,Supplies and Services,Operational Materials,205,03/01/2020,2001-00069,0.00,160.50,R,A J H  Pump Supply & Repair Ltd,No
Http://opendatacommunities.org/id/metropolitan-district-council/leeds,Leeds City Council,31/01/2020,Resources and Housing,Leeds Building Services,Supplies and Services,Operational Materials,205,03/01/2020,2001-00070,0.00,88.50,R,A J H  Pump Supply & Repair Ltd,No
Http://opendatacommunities.org/id/metropolitan-district-council/leeds,Leeds City Council,31/01/2020,Resources and Housing,Leeds Building Services,Supplies and Services,Operational Materials,205,03/01/2020,2001-00071,0.00,9.25,R,A J H  Pump Supply & Repair Ltd,No
Http://opendatacommunities.org/id/metropolitan-district-council/leeds,Leeds City Council,31/01/2020,Resources and Housing,Leeds Building Services,Supplies and Services,Operational Materials,205,03/01/2020,2001-00072,0.00,18.25,R,A J H  Pump Supply & Repair Ltd,No
Http://opendatacommunities.org/id/metropolitan-district-council/leeds,Leeds City Council,31/01/2020,Resources and Housing,Leeds Building Services,Supplies and Services,Operational Materials,205,03/01/2020,2001-00073,0.00,68.23,R,A J H  Pump Supply & Repair Ltd,No
Http://opendatacommunities.org/id/metropolitan-district-council/leeds,Leeds City Council,31/01/2020,Resources and Housing,Leeds Building Services,Supplies and Services,Operational Materials,205,03/01/2020,2001-00074,0.00,247.85,R,A J H  Pump Supply & Repair Ltd,No
Http://opendatacommunities.org/id/metropolitan-district-council/leeds,Leeds City Council,31/01/2020,Resources and Housing,Leeds Building Services,Supplies and Services,Operational Materials,205,03/01/2020,2001-00075,0.00,295.00,R,A J H  Pump Supply & Repair Ltd,No
Http://opendatacommunities.org/id/metropolitan-district-council/leeds,Leeds City Council,31/01/2020,Resources and Housing,Leeds Building Services,Supplies and Services,Operational Materials,205,03/01/2020,2001-00076,0.00,37.00,R,A J H  Pump Supply & Repair Ltd,No
Http://opendatacommunities.org/id/metropolitan-district-council/leeds,Leeds City Council,31/01/2020,Resources and Housing,Leeds Building Services,Supplies and Services,Operational Materials,205,03/01/2020,2001-00077,0.00,269.00,R,A J H  Pump Supply & Repair Ltd,No
Http://opendatacommunities.org/id/metropolitan-district-council/leeds,Leeds City Council,31/01/2020,Resources and Housing,Leeds Building Services,Supplies and Services,Operational Materials,205,10/01/2020,2001-00078,0.00,849.84,R,A J H  Pump Supply & Repair Ltd,No
Http://opendatacommunities.org/id/metropolitan-district-council/leeds,Leeds City Council,31/01/2020,Resources and Housing,Leeds Building Services,Supplies and Services,Operational Materials,205,10/01/2020,2001-00079,0.00,47.50,R,A J H  Pump Supply & Repair Ltd,No
Http://opendatacommunities.org/id/metropolitan-district-council/leeds,Leeds City Council,31/01/2020,Resources and Housing,Leeds Building Services,Supplies and Services,Operational Materials,205,10/01/2020,2001-00080,0.00,125.00,R,A J H  Pump Supply & Repair Ltd,No
Http://opendatacommunities.org/id/metropolitan-district-council/leeds,Leeds City Council,31/01/2020,Resources and Housing,Leeds Building Services,Supplies and Services,Operational Materials,205,10/01/2020,2001-00081,0.00,210.00,R,A J H  Pump Supply & Repair Ltd,No
Http://opendatacommunities.org/id/metropolitan-district-council/leeds,Leeds City Council,31/01/2020,Resources and Housing,Leeds Building Services,Supplies and Services,Operational Materials,205,15/01/2020,2001-00082,0.00,309.00,R,A J H  Pump Supply & Repair Ltd,No
Http://opendatacommunities.org/id/metropolitan-district-council/leeds,Leeds City Council,31/01/2020,Resources and Housing,Leeds Building Services,Supplies and Services,Operational Materials,205,15/01/2020,2001-00083,0.00,293.68,R,A J H  Pump Supply & Repair Ltd,No
Http://opendatacommunities.org/id/metropolitan-district-council/leeds,Leeds City Council,31/01/2020,Resources and Housing,Leeds Building Services,Supplies and Services,Operational Materials,205,15/01/2020,2001-00084,0.00,45.00,R,A J H  Pump Supply & Repair Ltd,No
Http://opendatacommunities.org/id/metropolitan-district-council/leeds,Leeds City Council,31/01/2020,Resources and Housing,Leeds Building Services,Supplies and Services,Operational Materials,205,15/01/2020,2001-00085,0.00,157.20,R,A J H  Pump Supply & Repair Ltd,No
Http://opendatacommunities.org/id/metropolitan-district-council/leeds,Leeds City Council,31/01/2020,Resources and Housing,Leeds Building Services,Supplies and Services,Operational Materials,205,15/01/2020,2001-00086,0.00,29.25,R,A J H  Pump Supply & Repair Ltd,No
Http://opendatacommunities.org/id/metropolitan-district-council/leeds,Leeds City Council,31/01/2020,Resources and Housing,Leeds Building Services,Supplies and Services,Operational Materials,205,15/01/2020,2001-00087,0.00,31.95,R,A J H  Pump Supply & Repair Ltd,No
Http://opendatacommunities.org/id/metropolitan-district-council/leeds,Leeds City Council,31/01/2020,Resources and Housing,Leeds Building Services,Supplies and Services,Operational Materials,205,15/01/2020,2001-00088,0.00,2530.00,R,A J H  Pump Supply & Repair Ltd,No
Http://opendatacommunities.org/id/metropolitan-district-council/leeds,Leeds City Council,31/01/2020,Resources and Housing,Leeds Building Services,Supplies and Services,Operational Materials,205,15/01/2020,2001-00089,0.00,26.54,R,A J H  Pump Supply & Repair Ltd,No
Http://opendatacommunities.org/id/metropolitan-district-council/leeds,Leeds City Council,31/01/2020,Resources and Housing,Leeds Building Services,Supplies and Services,Operational Materials,205,15/01/2020,2001-00090,0.00,59.76,R,A J H  Pump Supply & Repair Ltd,No
Http://opendatacommunities.org/id/metropolitan-district-council/leeds,Leeds City Council,31/01/2020,Resources and Housing,Leeds Building Services,Supplies and Services,Operational Materials,205,15/01/2020,2001-00091,0.00,128.00,R,A J H  Pump Supply & Repair Ltd,No
Http://opendatacommunities.org/id/metropolitan-district-council/leeds,Leeds City Council,31/01/2020,Resources and Housing,Leeds Building Services,Supplies and Services,Operational Materials,205,15/01/2020,2001-00092,0.00,170.33,R,A J H  Pump Supply & Repair Ltd,No
Http://opendatacommunities.org/id/metropolitan-district-council/leeds,Leeds City Council,31/01/2020,Resources and Housing,Leeds Building Services,Supplies and Services,Operational Materials,205,15/01/2020,2001-00093,0.00,185.48,R,A J H  Pump Supply & Repair Ltd,No
Http://opendatacommunities.org/id/metropolitan-district-council/leeds,Leeds City Council,31/01/2020,Resources and Housing,Leeds Building Services,Supplies and Services,Operational Materials,205,15/01/2020,2001-00094,0.00,29.90,R,A J H  Pump Supply & Repair Ltd,No
Http://opendatacommunities.org/id/metropolitan-district-council/leeds,Leeds City Council,31/01/2020,Resources and Housing,Leeds Building Services,Supplies and Services,Operational Materials,205,15/01/2020,2001-00095,0.00,412.00,R,A J H  Pump Supply & Repair Ltd,No
Http://opendatacommunities.org/id/metropolitan-district-council/leeds,Leeds City Council,31/01/2020,Resources and Housing,Leeds Building Services,Supplies and Services,Operational Materials,205,15/01/2020,2001-00096,0.00,125.00,R,A J H  Pump Supply & Repair Ltd,No
Http://opendatacommunities.org/id/metropolitan-district-council/leeds,Leeds City Council,31/01/2020,Resources and Housing,Leeds Building Services,Supplies and Services,Operational Materials,205,15/01/2020,2001-00097,0.00,47.83,R,A J H  Pump Supply & Repair Ltd,No
Http://opendatacommunities.org/id/metropolitan-district-council/leeds,Leeds City Council,31/01/2020,Resources and Housing,Leeds Building Services,Supplies and Services,Operational Materials,205,15/01/2020,2001-00098,0.00,20.55,R,A J H  Pump Supply & Repair Ltd,No
Http://opendatacommunities.org/id/metropolitan-district-council/leeds,Leeds City Council,31/01/2020,Resources and Housing,Leeds Building Services,Supplies and Services,Operational Materials,205,15/01/2020,2001-00099,0.00,72.39,R,A J H  Pump Supply & Repair Ltd,No
Http://opendatacommunities.org/id/metropolitan-district-council/leeds,Leeds City Council,31/01/2020,Resources and Housing,Leeds Building Services,Supplies and Services,Operational Materials,205,15/01/2020,2001-00100,0.00,277.90,R,A J H  Pump Supply & Repair Ltd,No
Http://opendatacommunities.org/id/metropolitan-district-council/leeds,Leeds City Council,31/01/2020,Resources and Housing,Leeds Building Services,Supplies and Services,Operational Materials,205,15/01/2020,2001-00101,0.00,28.70,R,A J H  Pump Supply & Repair Ltd,No
Http://opendatacommunities.org/id/metropolitan-district-council/leeds,Leeds City Council,31/01/2020,Resources and Housing,Leeds Building Services,Supplies and Services,Operational Materials,205,17/01/2020,2001-00102,0.00,750.00,R,A J H  Pump Supply & Repair Ltd,No
Http://opendatacommunities.org/id/metropolitan-district-council/leeds,Leeds City Council,31/01/2020,Resources and Housing,Leeds Building Services,Supplies and Services,Other Hired And Contracted Services,265,20/01/2020,2001-00103,0.00,1103.00,R,A J H  Pump Supply & Repair Ltd,No
Http://opendatacommunities.org/id/metropolitan-district-council/leeds,Leeds City Council,31/01/2020,Resources and Housing,Leeds Building Services,Supplies and Services,Operational Materials,205,20/01/2020,2001-00104,0.00,131.80,R,A J H  Pump Supply & Repair Ltd,No
Http://opendatacommunities.org/id/metropolitan-district-council/leeds,Leeds City Council,31/01/2020,Resources and Housing,Leeds Building Services,Supplies and Services,Operational Materials,205,20/01/2020,2001-00105,0.00,60.30,R,A J H  Pump Supply & Repair Ltd,No
Http://opendatacommunities.org/id/metropolitan-district-council/leeds,Leeds City Council,31/01/2020,Resources and Housing,Leeds Building Services,Supplies and Services,Operational Materials,205,20/01/2020,2001-00106,0.00,225.75,R,A J H  Pump Supply & Repair Ltd,No
Http://opendatacommunities.org/id/metropolitan-district-council/leeds,Leeds City Council,31/01/2020,Resources and Housing,Leeds Building Services,Supplies and Services,Operational Materials,205,20/01/2020,2001-00107,0.00,15.00,R,A J H  Pump Supply & Repair Ltd,No
Http://opendatacommunities.org/id/metropolitan-district-council/leeds,Leeds City Council,31/01/2020,Resources and Housing,Leeds Building Services,Supplies and Services,Operational Materials,205,20/01/2020,2001-00108,0.00,267.00,R,A J H  Pump Supply & Repair Ltd,No
Http://opendatacommunities.org/id/metropolitan-district-council/leeds,Leeds City Council,31/01/2020,Resources and Housing,Leeds Building Services,Supplies and Services,Operational Materials,205,20/01/2020,2001-00109,0.00,575.00,R,A J H  Pump Supply & Repair Ltd,No
Http://opendatacommunities.org/id/metropolitan-district-council/leeds,Leeds City Council,31/01/2020,Resources and Housing,Leeds Building Services,Supplies and Services,Operational Materials,205,20/01/2020,2001-00110,0.00,268.95,R,A J H  Pump Supply & Repair Ltd,No
Http://opendatacommunities.org/id/metropolitan-district-council/leeds,Leeds City Council,31/01/2020,Resources and Housing,Leeds Building Services,Supplies and Services,Operational Materials,205,20/01/2020,2001-00111,0.00,334.08,R,A J H  Pump Supply & Repair Ltd,No
Http://opendatacommunities.org/id/metropolitan-district-council/leeds,Leeds City Council,31/01/2020,Resources and Housing,Leeds Building Services,Supplies and Services,Operational Materials,205,20/01/2020,2001-00112,0.00,139.50,R,A J H  Pump Supply & Repair Ltd,No
Http://opendatacommunities.org/id/metropolitan-district-council/leeds,Leeds City Council,31/01/2020,Resources and Housing,Leeds Building Services,Supplies and Services,Operational Materials,205,20/01/2020,2001-00113,0.00,19.95,R,A J H  Pump Supply & Repair Ltd,No
Http://opendatacommunities.org/id/metropolitan-district-council/leeds,Leeds City Council,31/01/2020,Resources and Housing,Leeds Building Services,Supplies and Services,Operational Materials,205,20/01/2020,2001-00114,0.00,135.62,R,A J H  Pump Supply & Repair Ltd,No
Http://opendatacommunities.org/id/metropolitan-district-council/leeds,Leeds City Council,31/01/2020,Resources and Housing,Leeds Building Services,Supplies and Services,Operational Materials,205,20/01/2020,2001-00115,0.00,416.19,R,A J H  Pump Supply & Repair Ltd,No
Http://opendatacommunities.org/id/metropolitan-district-council/leeds,Leeds City Council,31/01/2020,Resources and Housing,Leeds Building Services,Supplies and Services,Operational Materials,205,20/01/2020,2001-00116,0.00,507.75,R,A J H  Pump Supply & Repair Ltd,No
Http://opendatacommunities.org/id/metropolitan-district-council/leeds,Leeds City Council,31/01/2020,Resources and Housing,Leeds Building Services,Supplies and Services,Operational Materials,205,20/01/2020,2001-00117,0.00,15.05,R,A J H  Pump Supply & Repair Ltd,No
Http://opendatacommunities.org/id/metropolitan-district-council/leeds,Leeds City Council,31/01/2020,Resources and Housing,Leeds Building Services,Supplies and Services,Operational Materials,205,20/01/2020,2001-00118,0.00,16.00,R,A J H  Pump Supply & Repair Ltd,No
Http://opendatacommunities.org/id/metropolitan-district-council/leeds,Leeds City Council,31/01/2020,Resources and Housing,Leeds Building Services,Supplies and Services,Operational Materials,205,20/01/2020,2001-00119,0.00,55.00,R,A J H  Pump Supply & Repair Ltd,No
Http://opendatacommunities.org/id/metropolitan-district-council/leeds,Leeds City Council,31/01/2020,Resources and Housing,Leeds Building Services,Supplies and Services,Operational Materials,205,20/01/2020,2001-00120,0.00,35.00,R,A J H  Pump Supply & Repair Ltd,No
Http://opendatacommunities.org/id/metropolitan-district-council/leeds,Leeds City Council,31/01/2020,Resources and Housing,Leeds Building Services,Supplies and Services,Operational Materials,205,20/01/2020,2001-00121,0.00,92.73,R,A J H  Pump Supply & Repair Ltd,No
Http://opendatacommunities.org/id/metropolitan-district-council/leeds,Leeds City Council,31/01/2020,Resources and Housing,Leeds Building Services,Supplies and Services,Operational Materials,205,20/01/2020,2001-00122,0.00,205.31,R,A J H  Pump Supply & Repair Ltd,No
Http://opendatacommunities.org/id/metropolitan-district-council/leeds,Leeds City Council,31/01/2020,Resources and Housing,Leeds Building Services,Supplies and Services,Operational Materials,205,20/01/2020,2001-00123,0.00,45.77,R,A J H  Pump Supply & Repair Ltd,No
Http://opendatacommunities.org/id/metropolitan-district-council/leeds,Leeds City Council,31/01/2020,Resources and Housing,Leeds Building Services,Supplies and Services,Operational Materials,205,20/01/2020,2001-00124,0.00,181.00,R,A J H  Pump Supply & Repair Ltd,No
Http://opendatacommunities.org/id/metropolitan-district-council/leeds,Leeds City Council,31/01/2020,Resources and Housing,Leeds Building Services,Supplies and Services,Operational Materials,205,20/01/2020,2001-00125,0.00,140.25,R,A J H  Pump Supply & Repair Ltd,No
Http://opendatacommunities.org/id/metropolitan-district-council/leeds,Leeds City Council,31/01/2020,Resources and Housing,Leeds Building Services,Supplies and Services,Operational Materials,205,20/01/2020,2001-00126,0.00,262.63,R,A J H  Pump Supply & Repair Ltd,No
Http://opendatacommunities.org/id/metropolitan-district-council/leeds,Leeds City Council,31/01/2020,Resources and Housing,Leeds Building Services,Supplies and Services,Operational Materials,205,20/01/2020,2001-00127,0.00,284.50,R,A J H  Pump Supply & Repair Ltd,No
Http://opendatacommunities.org/id/metropolitan-district-council/leeds,Leeds City Council,31/01/2020,Resources and Housing,Leeds Building Services,Supplies and Services,Operational Materials,205,20/01/2020,2001-00128,0.00,115.04,R,A J H  Pump Supply & Repair Ltd,No
Http://opendatacommunities.org/id/metropolitan-district-council/leeds,Leeds City Council,31/01/2020,Resources and Housing,Leeds Building Services,Supplies and Services,Operational Materials,205,20/01/2020,2001-00129,0.00,169.04,R,A J H  Pump Supply & Repair Ltd,No
Http://opendatacommunities.org/id/metropolitan-district-council/leeds,Leeds City Council,31/01/2020,Resources and Housing,Leeds Building Services,Supplies and Services,Operational Materials,205,22/01/2020,2001-00130,0.00,220.00,R,A J H  Pump Supply & Repair Ltd,No
Http://opendatacommunities.org/id/metropolitan-district-council/leeds,Leeds City Council,31/01/2020,Resources and Housing,Leeds Building Services,Supplies and Services,Operational Materials,205,22/01/2020,2001-00131,0.00,1016.00,R,A J H  Pump Supply & Repair Ltd,No
Http://opendatacommunities.org/id/metropolitan-district-council/leeds,Leeds City Council,31/01/2020,Resources and Housing,Leeds Building Services,Supplies and Services,Operational Materials,205,22/01/2020,2001-00132,0.00,79.00,R,A J H  Pump Supply & Repair Ltd,No
Http://opendatacommunities.org/id/metropolitan-district-council/leeds,Leeds City Council,31/01/2020,Resources and Housing,Leeds Building Services,Supplies and Services,Operational Materials,205,22/01/2020,2001-00133,0.00,27.49,R,A J H  Pump Supply & Repair Ltd,No
Http://opendatacommunities.org/id/metropolitan-district-council/leeds,Leeds City Council,31/01/2020,Resources and Housing,Leeds Building Services,Supplies and Services,Operational Materials,205,22/01/2020,2001-00134,0.00,42.54,R,A J H  Pump Supply & Repair Ltd,No
Http://opendatacommunities.org/id/metropolitan-district-council/leeds,Leeds City Council,31/01/2020,Resources and Housing,Leeds Building Services,Supplies and Services,Operational Materials,205,22/01/2020,2001-00135,0.00,117.50,R,A J H  Pump Supply & Repair Ltd,No
Http://opendatacommunities.org/id/metropolitan-district-council/leeds,Leeds City Council,31/01/2020,Resources and Housing,Leeds Building Services,Supplies and Services,Operational Materials,205,22/01/2020,2001-00136,0.00,513.50,R,A J H  Pump Supply & Repair Ltd,No
Http://opendatacommunities.org/id/metropolitan-district-council/leeds,Leeds City Council,31/01/2020,Resources and Housing,Leeds Building Services,Supplies and Services,Operational Materials,205,22/01/2020,2001-00137,0.00,475.00,R,A J H  Pump Supply & Repair Ltd,No
Http://opendatacommunities.org/id/metropolitan-district-council/leeds,Leeds City Council,31/01/2020,Resources and Housing,Leeds Building Services,Supplies and Services,Operational Materials,205,22/01/2020,2001-00138,0.00,510.50,R,A J H  Pump Supply & Repair Ltd,No
Http://opendatacommunities.org/id/metropolitan-district-council/leeds,Leeds City Council,31/01/2020,Resources and Housing,Leeds Building Services,Supplies and Services,Operational Materials,205,22/01/2020,2001-00139,0.00,25.75,R,A J H  Pump Supply & Repair Ltd,No
Http://opendatacommunities.org/id/metropolitan-district-council/leeds,Leeds City Council,31/01/2020,Resources and Housing,Leeds Building Services,Supplies and Services,Operational Materials,205,22/01/2020,2001-00140,0.00,334.40,R,A J H  Pump Supply & Repair Ltd,No
Http://opendatacommunities.org/id/metropolitan-district-council/leeds,Leeds City Council,31/01/2020,Resources and Housing,Leeds Building Services,Supplies and Services,Operational Materials,205,22/01/2020,2001-00141,0.00,220.00,R,A J H  Pump Supply & Repair Ltd,No
Http://opendatacommunities.org/id/metropolitan-district-council/leeds,Leeds City Council,31/01/2020,Resources and Housing,Leeds Building Services,Supplies and Services,Operational Materials,205,22/01/2020,2001-00142,0.00,207.51,R,A J H  Pump Supply & Repair Ltd,No
Http://opendatacommunities.org/id/metropolitan-district-council/leeds,Leeds City Council,31/01/2020,Resources and Housing,Leeds Building Services,Supplies and Services,Operational Materials,205,22/01/2020,2001-00143,0.00,322.08,R,A J H  Pump Supply & Repair Ltd,No
Http://opendatacommunities.org/id/metropolitan-district-council/leeds,Leeds City Council,31/01/2020,Resources and Housing,Leeds Building Services,Supplies and Services,Operational Materials,205,22/01/2020,2001-00144,0.00,24.43,R,A J H  Pump Supply & Repair Ltd,No
Http://opendatacommunities.org/id/metropolitan-district-council/leeds,Leeds City Council,31/01/2020,Resources and Housing,Leeds Building Services,Supplies and Services,Operational Materials,205,22/01/2020,2001-00145,0.00,100.80,R,A J H  Pump Supply & Repair Ltd,No
Http://opendatacommunities.org/id/metropolitan-district-council/leeds,Leeds City Council,31/01/2020,Resources and Housing,Leeds Building Services,Supplies and Services,Operational Materials,205,22/01/2020,2001-00146,0.00,332.00,R,A J H  Pump Supply & Repair Ltd,No
Http://opendatacommunities.org/id/metropolitan-district-council/leeds,Leeds City Council,31/01/2020,Resources and Housing,Leeds Building Services,Supplies and Services,Operational Materials,205,22/01/2020,2001-00147,0.00,395.00,R,A J H  Pump Supply & Repair Ltd,No
Http://opendatacommunities.org/id/metropolitan-district-council/leeds,Leeds City Council,31/01/2020,Resources and Housing,Leeds Building Services,Supplies and Services,Operational Materials,205,22/01/2020,2001-00148,0.00,250.00,R,A J H  Pump Supply & Repair Ltd,No
Http://opendatacommunities.org/id/metropolitan-district-council/leeds,Leeds City Council,31/01/2020,Resources and Housing,Leeds Building Services,Supplies and Services,Operational Materials,205,22/01/2020,2001-00149,0.00,1242.00,R,A J H  Pump Supply & Repair Ltd,No
Http://opendatacommunities.org/id/metropolitan-district-council/leeds,Leeds City Council,31/01/2020,Resources and Housing,Leeds Building Services,Supplies and Services,Operational Materials,205,29/01/2020,2001-00150,0.00,20.55,R,A J H  Pump Supply & Repair Ltd,No
Http://opendatacommunities.org/id/metropolitan-district-council/leeds,Leeds City Council,31/01/2020,Resources and Housing,Leeds Building Services,Supplies and Services,Operational Materials,205,29/01/2020,2001-00151,0.00,368.83,R,A J H  Pump Supply & Repair Ltd,No
Http://opendatacommunities.org/id/metropolitan-district-council/leeds,Leeds City Council,31/01/2020,Resources and Housing,Leeds Building Services,Supplies and Services,Operational Materials,205,29/01/2020,2001-00152,0.00,158.40,R,A J H  Pump Supply & Repair Ltd,No
Http://opendatacommunities.org/id/metropolitan-district-council/leeds,Leeds City Council,31/01/2020,Resources and Housing,Leeds Building Services,Supplies and Services,Operational Materials,205,29/01/2020,2001-00153,0.00,726.25,R,A J H  Pump Supply & Repair Ltd,No
Http://opendatacommunities.org/id/metropolitan-district-council/leeds,Leeds City Council,31/01/2020,Resources and Housing,Leeds Building Services,Supplies and Services,Operational Materials,205,29/01/2020,2001-00154,0.00,322.78,R,A J H  Pump Supply & Repair Ltd,No
Http://opendatacommunities.org/id/metropolitan-district-council/leeds,Leeds City Council,31/01/2020,Resources and Housing,Leeds Building Services,Supplies and Services,Operational Materials,205,29/01/2020,2001-00155,0.00,37.75,R,A J H  Pump Supply & Repair Ltd,No
Http://opendatacommunities.org/id/metropolitan-district-council/leeds,Leeds City Council,31/01/2020,Resources and Housing,Leeds Building Services,Supplies and Services,Operational Materials,205,30/01/2020,2001-00156,0.00,313.85,R,A J H  Pump Supply & Repair Ltd,No
Http://opendatacommunities.org/id/metropolitan-district-council/leeds,Leeds City Council,31/01/2020,Resources and Housing,Leeds Building Services,Supplies and Services,Operational Materials,205,30/01/2020,2001-00157,0.00,615.80,R,A J H  Pump Supply & Repair Ltd,No
Http://opendatacommunities.org/id/metropolitan-district-council/leeds,Leeds City Council,31/01/2020,Resources and Housing,Leeds Building Services,Supplies and Services,Operational Materials,205,30/01/2020,2001-00158,0.00,1039.95,R,A J H  Pump Supply & Repair Ltd,No
Http://opendatacommunities.org/id/metropolitan-district-council/leeds,Leeds City Council,31/01/2020,Resources and Housing,Leeds Building Services,Supplies and Services,Operational Materials,205,30/01/2020,2001-00159,0.00,176.00,R,A J H  Pump Supply & Repair Ltd,No
Http://opendatacommunities.org/id/metropolitan-district-council/leeds,Leeds City Council,31/01/2020,Communities and Environment,Customer Access,Supplies and Services,Other Hired And Contracted Services,265,22/01/2020,2001-00160,0.00,612.50,R,A J Promotions,No
Http://opendatacommunities.org/id/metropolitan-district-council/leeds,Leeds City Council,31/01/2020,Children and Families,Social Care,Third Party Payments,Services Rendered By Other Organisations,511,03/01/2020,2001-00161,0.00,624.00,R,REDACTED PERSONAL DATA,No
Http://opendatacommunities.org/id/metropolitan-district-council/leeds,Leeds City Council,31/01/2020,Children and Families,Social Care,Third Party Payments,Services Rendered By Other Organisations,511,03/01/2020,2001-00162,0.00,2322.00,R,REDACTED PERSONAL DATA,No
Http://opendatacommunities.org/id/metropolitan-district-council/leeds,Leeds City Council,31/01/2020,Resources and Housing,HRA Housing Leeds,Capital,Other Costs,7,16/01/2020,2001-00163,0.00,170.09,C,REDACTED PERSONAL DATA,No
Http://opendatacommunities.org/id/metropolitan-district-council/leeds,Leeds City Council,31/01/2020,Children and Families,Social Care,Employees,Agency Staff,8,14/01/2020,2001-00164,0.00,208.75,R,A Little Something Extra Ltd,No
Http://opendatacommunities.org/id/metropolitan-district-council/leeds,Leeds City Council,31/01/2020,Children and Families,Social Care,Third Party Payments,Services Rendered By Other Organisations,511,22/01/2020,2001-00165,0.00,630.00,R,A Little Something Extra Ltd,No
Http://opendatacommunities.org/id/metropolitan-district-council/leeds,Leeds City Council,31/01/2020,Children and Families,Social Care,Third Party Payments,Services Rendered By Other Organisations,511,22/01/2020,2001-00166,0.00,393.75,R,A Little Something Extra Ltd,No
Http://opendatacommunities.org/id/metropolitan-district-council/leeds,Leeds City Council,31/01/2020,Children and Families,Social Care,Supplies and Services,Other Hired And Contracted Services,265,28/01/2020,2001-00167,0.00,560.00,R,A Little Something Extra Ltd,No
Http://opendatacommunities.org/id/metropolitan-district-council/leeds,Leeds City Council,31/01/2020,Children and Families,Social Care,Third Party Payments,Services Rendered By Other Organisations,511,28/01/2020,2001-00168,0.00,700.00,R,A Little Something Extra Ltd,No
Http://opendatacommunities.org/id/metropolitan-district-council/leeds,Leeds City Council,31/01/2020,Children and Families,Social Care,Third Party Payments,Services Rendered By Other Organisations,511,28/01/2020,2001-00169,0.00,875.00,R,A Little Something Extra Ltd,No
Http://opendatacommunities.org/id/metropolitan-district-council/leeds,Leeds City Council,31/01/2020,Children and Families,Social Care,Third Party Payments,Services Rendered By Other Organisations,511,29/01/2020,2001-00170,0.00,186.00,R,A Little Something Extra Ltd,No
Http://opendatacommunities.org/id/metropolitan-district-council/leeds,Leeds City Council,31/01/2020,Resources and Housing,HRA Housing Leeds,Capital,Other Costs,7,20/01/2020,2001-00171,0.00,80.00,C,REDACTED PERSONAL DATA,No
Http://opendatacommunities.org/id/metropolitan-district-council/leeds,Leeds City Council,31/01/2020,Communities and Environment,Customer Access,Supplies and Services,Bought In Professional Services,277,07/01/2020,2001-00172,0.00,27.00,R,A Mohammed,No
Http://opendatacommunities.org/id/metropolitan-district-council/leeds,Leeds City Council,31/01/2020,Communities and Environment,Customer Access,Supplies and Services,Bought In Professional Services,277,07/01/2020,2001-00173,0.00,27.00,R,A Mohammed,No
Http://opendatacommunities.org/id/metropolitan-district-council/leeds,Leeds City Council,31/01/2020,Communities and Environment,Customer Access,Supplies and Services,Bought In Professional Services,277,07/01/2020,2001-00174,0.00,27.00,R,A Mohammed,No
Http://opendatacommunities.org/id/metropolitan-district-council/leeds,Leeds City Council,31/01/2020,Communities and Environment,Customer Access,Supplies and Services,Bought In Professional Services,277,07/01/2020,2001-00175,0.00,18.00,R,A Mohammed,No
Http://opendatacommunities.org/id/metropolitan-district-council/leeds,Leeds City Council,31/01/2020,Communities and Environment,Customer Access,Supplies and Services,Bought In Professional Services,277,07/01/2020,2001-00176,0.00,31.50,R,A Mohammed,No
Http://opendatacommunities.org/id/metropolitan-district-council/leeds,Leeds City Council,31/01/2020,Communities and Environment,Customer Access,Supplies and Services,Bought In Professional Services,277,07/01/2020,2001-00177,0.00,18.00,R,A Mohammed,No
Http://opendatacommunities.org/id/metropolitan-district-council/leeds,Leeds City Council,31/01/2020,Communities and Environment,Customer Access,Supplies and Services,Bought In Professional Services,277,07/01/2020,2001-00178,0.00,18.00,R,A Mohammed,No
Http://opendatacommunities.org/id/metropolitan-district-council/leeds,Leeds City Council,31/01/2020,Communities and Environment,Customer Access,Supplies and Services,Bought In Professional Services,277,07/01/2020,2001-00179,0.00,27.00,R,A Mohammed,No
Http://opendatacommunities.org/id/metropolitan-district-council/leeds,Leeds City Council,31/01/2020,Communities and Environment,Customer Access,Supplies and Services,Bought In Professional Services,277,07/01/2020,2001-00180,0.00,18.00,R,A Mohammed,No
Http://opendatacommunities.org/id/metropolitan-district-council/leeds,Leeds City Council,31/01/2020,Communities and Environment,Customer Access,Supplies and Services,Bought In Professional Services,277,07/01/2020,2001-00181,0.00,22.50,R,A Mohammed,No
Http://opendatacommunities.org/id/metropolitan-district-council/leeds,Leeds City Council,31/01/2020,Communities and Environment,Customer Access,Supplies and Services,Bought In Professional Services,277,09/01/2020,2001-00182,0.00,18.00,R,A Mohammed,No
Http://opendatacommunities.org/id/metropolitan-district-council/leeds,Leeds City Council,31/01/2020,Communities and Environment,Customer Access,Supplies and Services,Bought In Professional Services,277,09/01/2020,2001-00183,0.00,18.00,R,A Mohammed,No
Http://opendatacommunities.org/id/metropolitan-district-council/leeds,Leeds City Council,31/01/2020,Communities and Environment,Customer Access,Supplies and Services,Bought In Professional Services,277,09/01/2020,2001-00184,0.00,22.50,R,A Mohammed,No
Http://opendatacommunities.org/id/metropolitan-district-council/leeds,Leeds City Council,31/01/2020,Communities and Environment,Customer Access,Supplies and Services,Bought In Professional Services,277,09/01/2020,2001-00185,0.00,18.00,R,A Mohammed,No
Http://opendatacommunities.org/id/metropolitan-district-council/leeds,Leeds City Council,31/01/2020,Communities and Environment,Customer Access,Supplies and Services,Bought In Professional Services,277,09/01/2020,2001-00186,0.00,18.00,R,A Mohammed,No
Http://opendatacommunities.org/id/metropolitan-district-council/leeds,Leeds City Council,31/01/2020,Communities and Environment,Customer Access,Supplies and Services,Bought In Professional Services,277,09/01/2020,2001-00187,0.00,36.00,R,A Mohammed,No
Http://opendatacommunities.org/id/metropolitan-district-council/leeds,Leeds City Council,31/01/2020,Communities and Environment,Customer Access,Supplies and Services,Bought In Professional Services,277,17/01/2020,2001-00188,0.00,18.00,R,A Mohammed,No
Http://opendatacommunities.org/id/metropolitan-district-council/leeds,Leeds City Council,31/01/2020,Communities and Environment,Customer Access,Supplies and Services,Bought In Professional Services,277,17/01/2020,2001-00189,0.00,18.00,R,A Mohammed,No
Http://opendatacommunities.org/id/metropolitan-district-council/leeds,Leeds City Council,31/01/2020,Communities and Environment,Customer Access,Supplies and Services,Bought In Professional Services,277,17/01/2020,2001-00190,0.00,18.00,R,A Mohammed,No
Http://opendatacommunities.org/id/metropolitan-district-council/leeds,Leeds City Council,31/01/2020,Communities and Environment,Customer Access,Supplies and Services,Bought In Professional Services,277,17/01/2020,2001-00191,0.00,18.00,R,A Mohammed,No
Http://opendatacommunities.org/id/metropolitan-district-council/leeds,Leeds City Council,31/01/2020,Communities and Environment,Customer Access,Supplies and Services,Bought In Professional Services,277,17/01/2020,2001-00192,0.00,18.00,R,A Mohammed,No
Http://opendatacommunities.org/id/metropolitan-district-council/leeds,Leeds City Council,31/01/2020,Communities and Environment,Customer Access,Supplies and Services,Bought In Professional Services,277,17/01/2020,2001-00193,0.00,18.00,R,A Mohammed,No
Http://opendatacommunities.org/id/metropolitan-district-council/leeds,Leeds City Council,31/01/2020,Communities and Environment,Customer Access,Supplies and Services,Bought In Professional Services,277,24/01/2020,2001-00194,0.00,18.00,R,A Mohammed,No
Http://opendatacommunities.org/id/metropolitan-district-council/leeds,Leeds City Council,31/01/2020,Communities and Environment,Customer Access,Supplies and Services,Bought In Professional Services,277,24/01/2020,2001-00195,0.00,36.00,R,A Mohammed,No
Http://opendatacommunities.org/id/metropolitan-district-council/leeds,Leeds City Council,31/01/2020,Communities and Environment,Customer Access,Supplies and Services,Bought In Professional Services,277,24/01/2020,2001-00196,0.00,31.50,R,A Mohammed,No
Http://opendatacommunities.org/id/metropolitan-district-council/leeds,Leeds City Council,31/01/2020,Communities and Environment,Customer Access,Supplies and Services,Bought In Professional Services,277,24/01/2020,2001-00197,0.00,19.50,R,A Mohammed,No
Http://opendatacommunities.org/id/metropolitan-district-council/leeds,Leeds City Council,31/01/2020,Communities and Environment,Customer Access,Supplies and Services,Bought In Professional Services,277,24/01/2020,2001-00198,0.00,18.00,R,A Mohammed,No
Http://opendatacommunities.org/id/metropolitan-district-council/leeds,Leeds City Council,31/01/2020,Communities and Environment,Customer Access,Supplies and Services,Bought In Professional Services,277,24/01/2020,2001-00199,0.00,27.00,R,A Mohammed,No
Http://opendatacommunities.org/id/metropolitan-district-council/leeds,Leeds City Council,31/01/2020,Communities and Environment,Customer Access,Supplies and Services,Bought In Professional Services,277,24/01/2020,2001-00200,0.00,18.00,R,A Mohammed,No
Http://opendatacommunities.org/id/metropolitan-district-council/leeds,Leeds City Council,31/01/2020,Communities and Environment,Customer Access,Supplies and Services,Bought In Professional Services,277,24/01/2020,2001-00201,0.00,18.00,R,A Mohammed,No
Http://opendatacommunities.org/id/metropolitan-district-council/leeds,Leeds City Council,31/01/2020,Communities and Environment,Customer Access,Supplies and Services,Bought In Professional Services,277,30/01/2020,2001-00202,0.00,31.50,R,A Mohammed,No
Http://opendatacommunities.org/id/metropolitan-district-council/leeds,Leeds City Council,31/01/2020,Communities and Environment,Customer Access,Supplies and Services,Bought In Professional Services,277,30/01/2020,2001-00203,0.00,22.50,R,A Mohammed,No
Http://opendatacommunities.org/id/metropolitan-district-council/leeds,Leeds City Council,31/01/2020,Communities and Environment,Customer Access,Supplies and Services,Bought In Professional Services,277,30/01/2020,2001-00204,0.00,22.50,R,A Mohammed,No
Http://opendatacommunities.org/id/metropolitan-district-council/leeds,Leeds City Council,31/01/2020,Communities and Environment,Customer Access,Supplies and Services,Bought In Professional Services,277,30/01/2020,2001-00205,0.00,36.00,R,A Mohammed,No
Http://opendatacommunities.org/id/metropolitan-district-council/leeds,Leeds City Council,31/01/2020,Communities and Environment,Customer Access,Supplies and Services,Bought In Professional Services,277,30/01/2020,2001-00206,0.00,18.00,R,A Mohammed,No
Http://opendatacommunities.org/id/metropolitan-district-council/leeds,Leeds City Council,31/01/2020,Communities and Environment,Customer Access,Supplies and Services,Bought In Professional Services,277,30/01/2020,2001-00207,0.00,27.00,R,A Mohammed,No
Http://opendatacommunities.org/id/metropolitan-district-council/leeds,Leeds City Council,31/01/2020,Communities and Environment,Customer Access,Supplies and Services,Bought In Professional Services,277,30/01/2020,2001-00208,0.00,27.00,R,A Mohammed,No
Http://opendatacommunities.org/id/metropolitan-district-council/leeds,Leeds City Council,31/01/2020,Resources and Housing,HRA Housing Leeds,Capital,Other Costs,7,23/01/2020,2001-00209,0.00,100.00,C,REDACTED PERSONAL DATA,No
Http://opendatacommunities.org/id/metropolitan-district-council/leeds,Leeds City Council,31/01/2020,Communities and Environment,Customer Access,Supplies and Services,Bought In Professional Services,277,30/01/2020,2001-00210,0.00,54.00,R,A Musalam,No
Http://opendatacommunities.org/id/metropolitan-district-council/leeds,Leeds City Council,31/01/2020,Communities and Environment,Customer Access,Supplies and Services,Bought In Professional Services,277,30/01/2020,2001-00211,0.00,18.00,R,A Musalam,No
Http://opendatacommunities.org/id/metropolitan-district-council/leeds,Leeds City Council,31/01/2020,Children and Families,Social Care,Third Party Payments,Services Rendered By Other Organisations,511,03/01/2020,2001-00212,0.00,936.00,R,REDACTED PERSONAL DATA,No
Http://opendatacommunities.org/id/metropolitan-district-council/leeds,Leeds City Council,31/01/2020,Children and Families,Social Care,Third Party Payments,Services Rendered By Other Organisations,511,03/01/2020,2001-00213,0.00,3870.00,R,REDACTED PERSONAL DATA,No
Http://opendatacommunities.org/id/metropolitan-district-council/leeds,Leeds City Council,31/01/2020,Communities and Environment,Customer Access,Supplies and Services,Bought In Professional Services,277,09/01/2020,2001-00214,0.00,18.00,R,A Namaki,No
Http://opendatacommunities.org/id/metropolitan-district-council/leeds,Leeds City Council,31/01/2020,Communities and Environment,Customer Access,Supplies and Services,Bought In Professional Services,277,09/01/2020,2001-00215,0.00,18.00,R,A Namaki,No
Http://opendatacommunities.org/id/metropolitan-district-council/leeds,Leeds City Council,31/01/2020,Communities and Environment,Customer Access,Supplies and Services,Bought In Professional Services,277,09/01/2020,2001-00216,0.00,18.00,R,A Namaki,No
Http://opendatacommunities.org/id/metropolitan-district-council/leeds,Leeds City Council,31/01/2020,Communities and Environment,Customer Access,Supplies and Services,Bought In Professional Services,277,09/01/2020,2001-00217,0.00,18.00,R,A Namaki,No
Http://opendatacommunities.org/id/metropolitan-district-council/leeds,Leeds City Council,31/01/2020,Communities and Environment,Customer Access,Supplies and Services,Bought In Professional Services,277,09/01/2020,2001-00218,0.00,18.00,R,A Namaki,No
Http://opendatacommunities.org/id/metropolitan-district-council/leeds,Leeds City Council,31/01/2020,Communities and Environment,Customer Access,Supplies and Services,Bought In Professional Services,277,09/01/2020,2001-00219,0.00,22.50,R,A Namaki,No
Http://opendatacommunities.org/id/metropolitan-district-council/leeds,Leeds City Council,31/01/2020,Communities and Environment,Customer Access,Supplies and Services,Bought In Professional Services,277,09/01/2020,2001-00220,0.00,18.00,R,A Namaki,No
Http://opendatacommunities.org/id/metropolitan-district-council/leeds,Leeds City Council,31/01/2020,Communities and Environment,Customer Access,Supplies and Services,Bought In Professional Services,277,09/01/2020,2001-00221,0.00,18.00,R,A Namaki,No
Http://opendatacommunities.org/id/metropolitan-district-council/leeds,Leeds City Council,31/01/2020,Communities and Environment,Customer Access,Supplies and Services,Bought In Professional Services,277,09/01/2020,2001-00222,0.00,22.50,R,A Namaki,No
Http://opendatacommunities.org/id/metropolitan-district-council/leeds,Leeds City Council,31/01/2020,Communities and Environment,Customer Access,Supplies and Services,Bought In Professional Services,277,09/01/2020,2001-00223,0.00,18.00,R,A Namaki,No
Http://opendatacommunities.org/id/metropolitan-district-council/leeds,Leeds City Council,31/01/2020,Communities and Environment,Customer Access,Supplies and Services,Bought In Professional Services,277,09/01/2020,2001-00224,0.00,18.00,R,A Namaki,No
Http://opendatacommunities.org/id/metropolitan-district-council/leeds,Leeds City Council,31/01/2020,Communities and Environment,Customer Access,Supplies and Services,Bought In Professional Services,277,09/01/2020,2001-00225,0.00,18.00,R,A Namaki,No
Http://opendatacommunities.org/id/metropolitan-district-council/leeds,Leeds City Council,31/01/2020,Communities and Environment,Customer Access,Supplies and Services,Bought In Professional Services,277,09/01/2020,2001-00226,0.00,18.00,R,A Namaki,No
Http://opendatacommunities.org/id/metropolitan-district-council/leeds,Leeds City Council,31/01/2020,Communities and Environment,Customer Access,Supplies and Services,Bought In Professional Services,277,09/01/2020,2001-00227,0.00,18.00,R,A Namaki,No
Http://opendatacommunities.org/id/metropolitan-district-council/leeds,Leeds City Council,31/01/2020,Communities and Environment,Customer Access,Supplies and Services,Bought In Professional Services,277,09/01/2020,2001-00228,0.00,18.00,R,A Namaki,No
Http://opendatacommunities.org/id/metropolitan-district-council/leeds,Leeds City Council,31/01/2020,Communities and Environment,Customer Access,Supplies and Services,Bought In Professional Services,277,09/01/2020,2001-00229,0.00,33.75,R,A Namaki,No
Http://opendatacommunities.org/id/metropolitan-district-council/leeds,Leeds City Council,31/01/2020,Communities and Environment,Customer Access,Supplies and Services,Bought In Professional Services,277,09/01/2020,2001-00230,0.00,18.00,R,A Namaki,No
Http://opendatacommunities.org/id/metropolitan-district-council/leeds,Leeds City Council,31/01/2020,Communities and Environment,Customer Access,Supplies and Services,Bought In Professional Services,277,09/01/2020,2001-00231,0.00,18.00,R,A Namaki,No
Http://opendatacommunities.org/id/metropolitan-district-council/leeds,Leeds City Council,31/01/2020,Communities and Environment,Customer Access,Supplies and Services,Bought In Professional Services,277,17/01/2020,2001-00232,0.00,18.00,R,A Namaki,No
Http://opendatacommunities.org/id/metropolitan-district-council/leeds,Leeds City Council,31/01/2020,Communities and Environment,Customer Access,Supplies and Services,Bought In Professional Services,277,17/01/2020,2001-00233,0.00,18.00,R,A Namaki,No
Http://opendatacommunities.org/id/metropolitan-district-council/leeds,Leeds City Council,31/01/2020,Communities and Environment,Customer Access,Supplies and Services,Bought In Professional Services,277,17/01/2020,2001-00234,0.00,18.00,R,A Namaki,No
Http://opendatacommunities.org/id/metropolitan-district-council/leeds,Leeds City Council,31/01/2020,Communities and Environment,Customer Access,Supplies and Services,Bought In Professional Services,277,30/01/2020,2001-00235,0.00,18.00,R,A Namaki,No
Http://opendatacommunities.org/id/metropolitan-district-council/leeds,Leeds City Council,31/01/2020,Resources and Housing,HRA Housing Leeds,Capital,Other Costs,7,30/01/2020,2001-00236,0.00,100.00,C,REDACTED PERSONAL DATA,No
Http://opendatacommunities.org/id/metropolitan-district-council/leeds,Leeds City Council,31/01/2020,Children and Families,Social Care,Third Party Payments,Contact,548,10/01/2020,2001-00237,0.00,11.50,R,REDACTED PERSONAL DATA,No
Http://opendatacommunities.org/id/metropolitan-district-council/leeds,Leeds City Council,31/01/2020,Children and Families,Social Care,Third Party Payments,Contact,548,17/01/2020,2001-00238,0.00,11.50,R,REDACTED PERSONAL DATA,No
Http://opendatacommunities.org/id/metropolitan-district-council/leeds,Leeds City Council,31/01/2020,Children and Families,Social Care,Third Party Payments,Contact,548,24/01/2020,2001-00239,0.00,11.70,R,REDACTED PERSONAL DATA,No
Http://opendatacommunities.org/id/metropolitan-district-council/leeds,Leeds City Council,31/01/2020,Children and Families,Social Care,Third Party Payments,Contact,548,31/01/2020,2001-00240,0.00,11.70,R,REDACTED PERSONAL DATA,No
Http://opendatacommunities.org/id/metropolitan-district-council/leeds,Leeds City Council,31/01/2020,Resources and Housing,HRA Housing Leeds,Capital,Other Costs,7,30/01/2020,2001-00241,0.00,80.00,C,REDACTED PERSONAL DATA,No
Http://opendatacommunities.org/id/metropolitan-district-council/leeds,Leeds City Council,31/01/2020,Resources and Housing,HRA Housing Leeds,Capital,Other Costs,7,15/01/2020,2001-00242,0.00,80.00,C,REDACTED PERSONAL DATA,No
Http://opendatacommunities.org/id/metropolitan-district-council/leeds,Leeds City Council,31/01/2020,Children and Families,Social Care,Third Party Payments,Services Rendered By Other Organisations,511,03/01/2020,2001-00243,0.00,258.00,R,REDACTED PERSONAL DATA,No
Http://opendatacommunities.org/id/metropolitan-district-council/leeds,Leeds City Council,31/01/2020,Resources and Housing,Shared Services,Supplies and Services,Other Hired And Contracted Services,265,02/01/2020,2001-00244,0.00,85.00,R,A Star Couriers Ltd,No
Http://opendatacommunities.org/id/metropolitan-district-council/leeds,Leeds City Council,31/01/2020,Communities and Environment,Communities,Supplies and Services,Other Hired And Contracted Services,265,21/01/2020,2001-00245,0.00,125.00,R,REDACTED PERSONAL DATA,No
Http://opendatacommunities.org/id/metropolitan-district-council/leeds,Leeds City Council,31/01/2020,Children and Families,Social Care,Third Party Payments,Independent Fostering Agencies,509,16/01/2020,2001-00246,0.00,1440.00,R,A Taxis,No
Http://opendatacommunities.org/id/metropolitan-district-council/leeds,Leeds City Council,31/01/2020,Children and Families,Social Care,Third Party Payments,Services Rendered By Other Organisations,511,03/01/2020,2001-00247,0.00,516.00,R,REDACTED PERSONAL DATA,No
Http://opendatacommunities.org/id/metropolitan-district-council/leeds,Leeds City Council,31/01/2020,Children and Families,Social Care,Third Party Payments,Services Rendered By Other Organisations,511,03/01/2020,2001-00248,0.00,774.00,R,REDACTED PERSONAL DATA,No
Http://opendatacommunities.org/id/metropolitan-district-council/leeds,Leeds City Council,31/01/2020,Children and Families,Social Care,Third Party Payments,General External Residential Placements,507,02/01/2020,2001-00249,0.00,28785.67,R,A Wilderness Way Ltd,No
Http://opendatacommunities.org/id/metropolitan-district-council/leeds,Leeds City Council,31/01/2020,Children and Families,Social Care,Third Party Payments,General External Residential Placements,507,02/01/2020,2001-00250,0.00,28971.67,R,A Wilderness Way Ltd,No
Http://opendatacommunities.org/id/metropolitan-district-council/leeds,Leeds City Council,31/01/2020,Children and Families,Social Care,Third Party Payments,General External Residential Placements,507,02/01/2020,2001-00251,0.00,1200.00,R,A Wilderness Way Ltd,No
Http://opendatacommunities.org/id/metropolitan-district-council/leeds,Leeds City Council,31/01/2020,Children and Families,Social Care,Third Party Payments,General External Residential Placements,507,16/01/2020,2001-00252,0.00,20560.54,R,A Wilderness Way Ltd,No
Http://opendatacommunities.org/id/metropolitan-district-council/leeds,Leeds City Council,31/01/2020,Resources and Housing,Leeds Building Services,Supplies and Services,Operational Materials,205,03/01/2020,2001-00253,0.00,725.00,R,A1 Stair Lift Services,No
Http://opendatacommunities.org/id/metropolitan-district-council/leeds,Leeds City Council,31/01/2020,Resources and Housing,Leeds Building Services,Supplies and Services,Other Hired And Contracted Services,265,03/01/2020,2001-00254,0.00,6955.00,R,A1 Stair Lift Services,No
Http://opendatacommunities.org/id/metropolitan-district-council/leeds,Leeds City Council,31/01/2020,Resources and Housing,Leeds Building Services,Supplies and Services,Operational Materials,205,08/01/2020,2001-00255,0.00,290.00,R,A1 Stair Lift Services,No
Http://opendatacommunities.org/id/metropolitan-district-council/leeds,Leeds City Council,31/01/2020,Resources and Housing,Leeds Building Services,Supplies and Services,Operational Materials,205,08/01/2020,2001-00256,0.00,30.00,R,A1 Stair Lift Services,No
Http://opendatacommunities.org/id/metropolitan-district-council/leeds,Leeds City Council,31/01/2020,Children and Families,Social Care,Third Party Payments,Placement Support,550,03/01/2020,2001-00257,0.00,40.00,R,REDACTED PERSONAL DATA,No
Http://opendatacommunities.org/id/metropolitan-district-council/leeds,Leeds City Council,31/01/2020,Children and Families,Social Care,Third Party Payments,Placement Support,550,10/01/2020,2001-00258,0.00,40.00,R,REDACTED PERSONAL DATA,No
Http://opendatacommunities.org/id/metropolitan-district-council/leeds,Leeds City Council,31/01/2020,Children and Families,Social Care,Third Party Payments,Placement Support,550,17/01/2020,2001-00259,0.00,40.00,R,REDACTED PERSONAL DATA,No
Http://opendatacommunities.org/id/metropolitan-district-council/leeds,Leeds City Council,31/01/2020,Children and Families,Social Care,Third Party Payments,Placement Support,550,24/01/2020,2001-00260,0.00,40.00,R,REDACTED PERSONAL DATA,No
Http://opendatacommunities.org/id/metropolitan-district-council/leeds,Leeds City Council,31/01/2020,Children and Families,Social Care,Third Party Payments,Placement Support,550,31/01/2020,2001-00261,0.00,40.00,R,REDACTED PERSONAL DATA,No
Http://opendatacommunities.org/id/metropolitan-district-council/leeds,Leeds City Council,31/01/2020,City Development,Libraries  Arts & Heritage,Supplies and Services,Other Hired And Contracted Services,265,10/01/2020,2001-00262,0.00,50.00,R,Aaron Outram,No
Http://opendatacommunities.org/id/metropolitan-district-council/leeds,Leeds City Council,31/01/2020,Adults and Health,Social Services Support Services,Transport,Public Transport Expenses,310,03/01/2020,2001-00263,0.00,190.00,R,Ab Cars,No
Http://opendatacommunities.org/id/metropolitan-district-council/leeds,Leeds City Council,31/01/2020,Children and Families,Partnerships & Health  ,Supplies and Services,Postages,212,19/12/2019,2001-00264,0.00,16.50,R,Abacus Express,Yes
Http://opendatacommunities.org/id/metropolitan-district-council/leeds,Leeds City Council,31/01/2020,City Development,Libraries  Arts & Heritage  ,Supplies and Services,Teaching Materials,202,06/12/2019,2001-00265,0.00,6.72,R,Abbey House Museum,Yes
Http://opendatacommunities.org/id/metropolitan-district-council/leeds,Leeds City Council,31/01/2020,Children and Families,Social Care,Third Party Payments,Services Rendered By Other Organisations,511,07/01/2020,2001-00266,0.00,28896.00,R,Abbey Multi Academy Trust,No
Http://opendatacommunities.org/id/metropolitan-district-council/leeds,Leeds City Council,31/01/2020,Children and Families,Learning,Supplies and Services,Other Hired And Contracted Services,265,10/01/2020,2001-00267,0.00,75.00,R,Abbey Multi Academy Trust,No
Http://opendatacommunities.org/id/metropolitan-district-council/leeds,Leeds City Council,31/01/2020,Children and Families,Social Care,Premises,Hire of meeting rooms,143,10/01/2020,2001-00268,0.00,72.00,R,Abbey Multi Academy Trust,No
Http://opendatacommunities.org/id/metropolitan-district-council/leeds,Leeds City Council,31/01/2020,Children and Families,Social Care,Supplies and Services,Food & Drink,231,10/01/2020,2001-00269,0.00,30.00,R,Abbey Multi Academy Trust,No
Http://opendatacommunities.org/id/metropolitan-district-council/leeds,Leeds City Council,31/01/2020,Children and Families,Learning,Supplies and Services,Other Hired And Contracted Services,265,10/01/2020,2001-00270,0.00,397.20,R,Abbey Multi Academy Trust,No
Http://opendatacommunities.org/id/metropolitan-district-council/leeds,Leeds City Council,31/01/2020,Children and Families,Social Care,Premises,Hire of meeting rooms,143,10/01/2020,2001-00271,0.00,50.00,R,Abbey Multi Academy Trust,No
Http://opendatacommunities.org/id/metropolitan-district-council/leeds,Leeds City Council,31/01/2020,Children and Families,Social Care,Supplies and Services,Food & Drink,231,10/01/2020,2001-00272,0.00,216.00,R,Abbey Multi Academy Trust,No
Http://opendatacommunities.org/id/metropolitan-district-council/leeds,Leeds City Council,31/01/2020,Resources and Housing,Shared Services,Income,Income from Hire Of Rooms & Equipment,956,14/01/2020,2001-00273,0.00,3448.00,R,Abbey Multi Academy Trust,No
Http://opendatacommunities.org/id/metropolitan-district-council/leeds,Leeds City Council,31/01/2020,Children and Families,Social Care,Third Party Payments,Services Rendered By Other Organisations,511,20/01/2020,2001-00274,0.00,1986.09,R,Abbey Multi Academy Trust,No
Http://opendatacommunities.org/id/metropolitan-district-council/leeds,Leeds City Council,31/01/2020,Children and Families,Social Care,Third Party Payments,Placement Support,550,30/01/2020,2001-00275,0.00,210.00,R,REDACTED PERSONAL DATA,No
Http://opendatacommunities.org/id/metropolitan-district-council/leeds,Leeds City Council,31/01/2020,Communities and Environment,Parks and Countryside,Supplies and Services,Other Hired And Contracted Services,265,31/01/2020,2001-00276,0.00,550.00,R,Abbotts Memorials,No
Http://opendatacommunities.org/id/metropolitan-district-council/leeds,Leeds City Council,31/01/2020,Communities and Environment,Parks and Countryside,Supplies and Services,Other Hired And Contracted Services,265,31/01/2020,2001-00277,0.00,900.00,R,Abbotts Memorials,No
Http://opendatacommunities.org/id/metropolitan-district-council/leeds,Leeds City Council,31/01/2020,Children and Families,Social Care,Third Party Payments,Services Rendered By Other Organisations,511,03/01/2020,2001-00278,0.00,624.00,R,Abc Daycare And Ozone Out Of School,No
Http://opendatacommunities.org/id/metropolitan-district-council/leeds,Leeds City Council,31/01/2020,Children and Families,Social Care,Third Party Payments,Services Rendered By Other Organisations,511,03/01/2020,2001-00279,0.00,8528.33,R,Abc Daycare And Ozone Out Of School,No
Http://opendatacommunities.org/id/metropolitan-district-council/leeds,Leeds City Council,31/01/2020,Communities and Environment,Environmental Health,Supplies and Services,Other Hired And Contracted Services,265,17/01/2020,2001-00280,0.00,195.00,R,Abc Food Law Limited,No
Http://opendatacommunities.org/id/metropolitan-district-council/leeds,Leeds City Council,31/01/2020,Children and Families,Social Care,Third Party Payments,Services Rendered By Other Organisations,511,03/01/2020,2001-00281,0.00,2808.00,R,Abc Nursery At Lufc,No
Http://opendatacommunities.org/id/metropolitan-district-council/leeds,Leeds City Council,31/01/2020,Children and Families,Social Care,Third Party Payments,Services Rendered By Other Organisations,511,03/01/2020,2001-00282,0.00,9288.00,R,Abc Nursery At Lufc,No
Http://opendatacommunities.org/id/metropolitan-district-council/leeds,Leeds City Council,31/01/2020,Children and Families,Social Care,Third Party Payments,Services Rendered By Other Organisations,511,03/01/2020,2001-00283,0.00,936.00,R,Abc@D'S Childcare,No
Http://opendatacommunities.org/id/metropolitan-district-council/leeds,Leeds City Council,31/01/2020,Children and Families,Social Care,Third Party Payments,Services Rendered By Other Organisations,511,03/01/2020,2001-00284,0.00,7224.00,R,Abc@D'S Childcare,No
Http://opendatacommunities.org/id/metropolitan-district-council/leeds,Leeds City Council,31/01/2020,Communities and Environment,Customer Access,Supplies and Services,Bought In Professional Services,277,07/01/2020,2001-00285,0.00,18.00,R,Abdul Kalam,No
Http://opendatacommunities.org/id/metropolitan-district-council/leeds,Leeds City Council,31/01/2020,Communities and Environment,Customer Access,Supplies and Services,Bought In Professional Services,277,07/01/2020,2001-00286,0.00,18.00,R,Abdul Kalam,No
Http://opendatacommunities.org/id/metropolitan-district-council/leeds,Leeds City Council,31/01/2020,Communities and Environment,Customer Access,Supplies and Services,Bought In Professional Services,277,24/01/2020,2001-00287,0.00,29.10,R,Abdul Kalam,No
Http://opendatacommunities.org/id/metropolitan-district-council/leeds,Leeds City Council,31/01/2020,Communities and Environment,Customer Access,Supplies and Services,Bought In Professional Services,277,30/01/2020,2001-00288,0.00,18.00,R,Abdul Kalam,No
Http://opendatacommunities.org/id/metropolitan-district-council/leeds,Leeds City Council,31/01/2020,Communities and Environment,Customer Access,Supplies and Services,Bought In Professional Services,277,30/01/2020,2001-00289,0.00,18.00,R,Abdul Kalam,No
Http://opendatacommunities.org/id/metropolitan-district-council/leeds,Leeds City Council,31/01/2020,Resources and Housing,Sustainable Energy & Climate Change,Capital,Other Costs,7,22/01/2020,2001-00290,0.00,10000.00,C,REDACTED COMMERCIAL CONFIDENTIALITY,No
Http://opendatacommunities.org/id/metropolitan-district-council/leeds,Leeds City Council,31/01/2020,Communities and Environment,Customer Access,Supplies and Services,Bought In Professional Services,277,07/01/2020,2001-00291,0.00,25.50,R,Abdulahad Denha,No
Http://opendatacommunities.org/id/metropolitan-district-council/leeds,Leeds City Council,31/01/2020,Communities and Environment,Customer Access,Supplies and Services,Bought In Professional Services,277,07/01/2020,2001-00292,0.00,18.00,R,Abdulahad Denha,No
Http://opendatacommunities.org/id/metropolitan-district-council/leeds,Leeds City Council,31/01/2020,Communities and Environment,Customer Access,Supplies and Services,Bought In Professional Services,277,07/01/2020,2001-00293,0.00,18.00,R,Abdulahad Denha,No
Http://opendatacommunities.org/id/metropolitan-district-council/leeds,Leeds City Council,31/01/2020,Communities and Environment,Customer Access,Supplies and Services,Bought In Professional Services,277,09/01/2020,2001-00294,0.00,22.50,R,Abdulahad Denha,No
Http://opendatacommunities.org/id/metropolitan-district-council/leeds,Leeds City Council,31/01/2020,Communities and Environment,Customer Access,Supplies and Services,Bought In Professional Services,277,09/01/2020,2001-00295,0.00,18.00,R,Abdulahad Denha,No
Http://opendatacommunities.org/id/metropolitan-district-council/leeds,Leeds City Council,31/01/2020,Communities and Environment,Customer Access,Supplies and Services,Bought In Professional Services,277,09/01/2020,2001-00296,0.00,18.00,R,Abdulahad Denha,No
Http://opendatacommunities.org/id/metropolitan-district-council/leeds,Leeds City Council,31/01/2020,Communities and Environment,Customer Access,Supplies and Services,Bought In Professional Services,277,09/01/2020,2001-00297,0.00,18.00,R,Abdulahad Denha,No
Http://opendatacommunities.org/id/metropolitan-district-council/leeds,Leeds City Council,31/01/2020,Communities and Environment,Customer Access,Supplies and Services,Bought In Professional Services,277,09/01/2020,2001-00298,0.00,18.00,R,Abdulahad Denha,No
Http://opendatacommunities.org/id/metropolitan-district-council/leeds,Leeds City Council,31/01/2020,Communities and Environment,Customer Access,Supplies and Services,Bought In Professional Services,277,17/01/2020,2001-00299,0.00,18.00,R,Abdulahad Denha,No
Http://opendatacommunities.org/id/metropolitan-district-council/leeds,Leeds City Council,31/01/2020,Communities and Environment,Customer Access,Supplies and Services,Bought In Professional Services,277,17/01/2020,2001-00300,0.00,18.00,R,Abdulahad Denha,No
Http://opendatacommunities.org/id/metropolitan-district-council/leeds,Leeds City Council,31/01/2020,Communities and Environment,Customer Access,Supplies and Services,Bought In Professional Services,277,30/01/2020,2001-00301,0.00,22.50,R,Abdulahad Denha,No
Http://opendatacommunities.org/id/metropolitan-district-council/leeds,Leeds City Council,31/01/2020,Communities and Environment,Customer Access,Supplies and Services,Bought In Professional Services,277,30/01/2020,2001-00302,0.00,18.00,R,Abdulahad Denha,No
Http://opendatacommunities.org/id/metropolitan-district-council/leeds,Leeds City Council,31/01/2020,Communities and Environment,Customer Access,Supplies and Services,Bought In Professional Services,277,30/01/2020,2001-00303,0.00,18.00,R,Abdulrahim Dastyar,No
Http://opendatacommunities.org/id/metropolitan-district-council/leeds,Leeds City Council,31/01/2020,Adults and Health,Services For Older People - 65 And Over,Third Party Payments,Nursing Home,570,08/01/2020,2001-00304,0.00,25824.00,R,Aberford Hall,No
Http://opendatacommunities.org/id/metropolitan-district-council/leeds,Leeds City Council,31/01/2020,Adults and Health,Services For Older People - 65 And Over,Third Party Payments,Residential,580,08/01/2020,2001-00305,0.00,-1499.86,R,Aberford Hall,No
Http://opendatacommunities.org/id/metropolitan-district-council/leeds,Leeds City Council,31/01/2020,Resources and Housing,Leeds Building Services,Supplies and Services,Operational Materials,205,10/01/2020,2001-00306,0.00,260.46,R,Abi Garage Doors Ltd,No
Http://opendatacommunities.org/id/metropolitan-district-council/leeds,Leeds City Council,31/01/2020,Resources and Housing,Leeds Building Services,Supplies and Services,Operational Materials,205,10/01/2020,2001-00307,0.00,260.46,R,Abi Garage Doors Ltd,No
Http://opendatacommunities.org/id/metropolitan-district-council/leeds,Leeds City Council,31/01/2020,Resources and Housing,Leeds Building Services,Supplies and Services,Operational Materials,205,10/01/2020,2001-00308,0.00,10.82,R,Abi Garage Doors Ltd,No
Http://opendatacommunities.org/id/metropolitan-district-council/leeds,Leeds City Council,31/01/2020,Resources and Housing,Leeds Building Services,Supplies and Services,Operational Materials,205,20/01/2020,2001-00309,0.00,281.04,R,Abi Garage Doors Ltd,No
Http://opendatacommunities.org/id/metropolitan-district-council/leeds,Leeds City Council,31/01/2020,Resources and Housing,Leeds Building Services,Supplies and Services,Operational Materials,205,20/01/2020,2001-00310,0.00,10.83,R,Abi Garage Doors Ltd,No
Http://opendatacommunities.org/id/metropolitan-district-council/leeds,Leeds City Council,31/01/2020,Resources and Housing,Leeds Building Services,Supplies and Services,Operational Materials,205,20/01/2020,2001-00311,0.00,281.04,R,Abi Garage Doors Ltd,No
Http://opendatacommunities.org/id/metropolitan-district-council/leeds,Leeds City Council,31/01/2020,Resources and Housing,Leeds Building Services,Supplies and Services,Operational Materials,205,24/01/2020,2001-00312,0.00,10.83,R,Abi Garage Doors Ltd,No
Http://opendatacommunities.org/id/metropolitan-district-council/leeds,Leeds City Council,31/01/2020,Communities and Environment,Elections  Licensing and Registration,Income,Admissions  Booking Fees & Ticket Sales,933,16/01/2020,2001-00313,0.00,210.00,R,REDACTED PERSONAL DATA,No
Http://opendatacommunities.org/id/metropolitan-district-council/leeds,Leeds City Council,31/01/2020,Communities and Environment,Environmental Health,Support Services,Legal Disbursements,411,23/01/2020,2001-00314,0.00,1104.00,R,Abr Solicitors,No
Http://opendatacommunities.org/id/metropolitan-district-council/leeds,Leeds City Council,31/01/2020,Adults and Health,Services For Adults Under 65 Mental/Dis,Third Party Payments,Fees - Level 4,520,08/01/2020,2001-00315,0.00,232.62,R,Abubaker Denja Mohammed,No
Http://opendatacommunities.org/id/metropolitan-district-council/leeds,Leeds City Council,31/01/2020,Adults and Health,Services For Adults Under 65 Mental/Dis,Third Party Payments,Fees - Level 4,520,08/01/2020,2001-00316,0.00,175.00,R,Abubaker Denja Mohammed,No
Http://opendatacommunities.org/id/metropolitan-district-council/leeds,Leeds City Council,31/01/2020,Adults and Health,Services For Adults Under 65 Mental/Dis,Third Party Payments,Fees - Level 4,520,08/01/2020,2001-00317,0.00,175.00,R,Abubaker Denja Mohammed,No
Http://opendatacommunities.org/id/metropolitan-district-council/leeds,Leeds City Council,31/01/2020,Adults and Health,Services For Adults Under 65 Mental/Dis,Third Party Payments,Fees - Level 4,520,08/01/2020,2001-00318,0.00,175.00,R,Abubaker Denja Mohammed,No
Http://opendatacommunities.org/id/metropolitan-district-council/leeds,Leeds City Council,31/01/2020,Adults and Health,Services For Adults Under 65 Mental/Dis,Third Party Payments,Fees - Level 4,520,08/01/2020,2001-00319,0.00,226.60,R,Abubaker Denja Mohammed,No
Http://opendatacommunities.org/id/metropolitan-district-council/leeds,Leeds City Council,31/01/2020,Adults and Health,Services For Adults Under 65 Mental/Dis,Third Party Payments,Fees - Level 4,520,08/01/2020,2001-00320,0.00,175.00,R,Abubaker Denja Mohammed,No
Http://opendatacommunities.org/id/metropolitan-district-council/leeds,Leeds City Council,31/01/2020,Adults and Health,Services For Adults Under 65 Mental/Dis,Third Party Payments,Fees - Level 4,520,08/01/2020,2001-00321,0.00,175.00,R,Abubaker Denja Mohammed,No
Http://opendatacommunities.org/id/metropolitan-district-council/leeds,Leeds City Council,31/01/2020,Adults and Health,Services For Adults Under 65 Mental/Dis,Third Party Payments,Fees - Level 4,520,08/01/2020,2001-00322,0.00,234.34,R,Abubaker Denja Mohammed,No
Http://opendatacommunities.org/id/metropolitan-district-council/leeds,Leeds City Council,31/01/2020,Adults and Health,Services For Adults Under 65 Mental/Dis,Third Party Payments,Fees - Level 4,520,08/01/2020,2001-00323,0.00,175.00,R,Abubaker Denja Mohammed,No
Http://opendatacommunities.org/id/metropolitan-district-council/leeds,Leeds City Council,31/01/2020,Adults and Health,Services For Adults Under 65 Mental/Dis,Third Party Payments,Fees - Level 4,520,08/01/2020,2001-00324,0.00,175.00,R,Abubaker Denja Mohammed,No
Http://opendatacommunities.org/id/metropolitan-district-council/leeds,Leeds City Council,31/01/2020,Adults and Health,Services For Adults Under 65 Mental/Dis,Third Party Payments,Fees - Level 4,520,10/01/2020,2001-00325,0.00,175.00,R,Abubaker Denja Mohammed,No
Http://opendatacommunities.org/id/metropolitan-district-council/leeds,Leeds City Council,31/01/2020,Children and Families,Social Care,Third Party Payments,Services Rendered By Other Organisations,511,07/01/2020,2001-00326,0.00,5460.00,R,Academies Enterprise Trust (Aet),No
Http://opendatacommunities.org/id/metropolitan-district-council/leeds,Leeds City Council,31/01/2020,Children and Families,Social Care,Third Party Payments,Services Rendered By Other Organisations,511,07/01/2020,2001-00327,0.00,28896.00,R,Academies Enterprise Trust (Aet),No
Http://opendatacommunities.org/id/metropolitan-district-council/leeds,Leeds City Council,31/01/2020,Children and Families,Social Care,Third Party Payments,Services Rendered By Other Organisations,511,07/01/2020,2001-00328,0.00,667.80,R,Academies Enterprise Trust (Aet),No
Http://opendatacommunities.org/id/metropolitan-district-council/leeds,Leeds City Council,31/01/2020,Children and Families,Social Care,Third Party Payments,Services Rendered By Other Organisations,511,20/01/2020,2001-00329,0.00,6041.88,R,Academies Enterprise Trust (Aet),No
Http://opendatacommunities.org/id/metropolitan-district-council/leeds,Leeds City Council,31/01/2020,Communities and Environment,Community Safety,Supplies and Services,Telephones,213,31/01/2020,2001-00330,0.00,1434.86,R,Access Hire Nationwide Ltd,No
Http://opendatacommunities.org/id/metropolitan-district-council/leeds,Leeds City Council,31/01/2020,Resources and Housing,Leeds Building Services,Supplies and Services,Operational Materials,205,03/01/2020,2001-00331,0.00,78.84,R,Access Locksmiths (Leeds) Limited,No
Http://opendatacommunities.org/id/metropolitan-district-council/leeds,Leeds City Council,31/01/2020,Communities and Environment,Cleaner Neighbourhood Teams,Supplies and Services,Operational Furniture And Equipment,203,03/01/2020,2001-00332,0.00,28.06,R,Access Locksmiths (Leeds) Limited,No
Http://opendatacommunities.org/id/metropolitan-district-council/leeds,Leeds City Council,31/01/2020,Resources and Housing,HRA Housing Leeds,Capital,Other Costs,7,03/01/2020,2001-00333,0.00,95.81,C,Access Locksmiths (Leeds) Limited,No
Http://opendatacommunities.org/id/metropolitan-district-council/leeds,Leeds City Council,31/01/2020,Strategic Landlord,Housing Management,Premises,Fixtures & Fittings,131,03/01/2020,2001-00334,0.00,513.00,R,Access Locksmiths (Leeds) Limited,No
Http://opendatacommunities.org/id/metropolitan-district-council/leeds,Leeds City Council,31/01/2020,Resources and Housing,Leeds Building Services,Supplies and Services,Other Hired And Contracted Services,265,10/01/2020,2001-00335,0.00,807.20,R,Access Locksmiths (Leeds) Limited,No
Http://opendatacommunities.org/id/metropolitan-district-council/leeds,Leeds City Council,31/01/2020,Resources and Housing,HRA Housing Leeds,Capital,Furniture And Equipment,5,10/01/2020,2001-00336,0.00,40.36,C,Access Locksmiths (Leeds) Limited,No
Http://opendatacommunities.org/id/metropolitan-district-council/leeds,Leeds City Council,31/01/2020,Strategic Landlord,Housing Management,Supplies and Services,Resaleable Materials,204,10/01/2020,2001-00337,0.00,91.20,R,Access Locksmiths (Leeds) Limited,No
Http://opendatacommunities.org/id/metropolitan-district-council/leeds,Leeds City Council,31/01/2020,Resources and Housing,Leeds Building Services,Supplies and Services,Operational Materials,205,10/01/2020,2001-00338,0.00,48.20,R,Access Locksmiths (Leeds) Limited,No
Http://opendatacommunities.org/id/metropolitan-district-council/leeds,Leeds City Council,31/01/2020,Resources and Housing,Leeds Building Services,Supplies and Services,Operational Materials,205,10/01/2020,2001-00339,0.00,66.24,R,Access Locksmiths (Leeds) Limited,No
Http://opendatacommunities.org/id/metropolitan-district-council/leeds,Leeds City Council,31/01/2020,Resources and Housing,Leeds Building Services,Supplies and Services,Operational Materials,205,10/01/2020,2001-00340,0.00,6.76,R,Access Locksmiths (Leeds) Limited,No
Http://opendatacommunities.org/id/metropolitan-district-council/leeds,Leeds City Council,31/01/2020,Resources and Housing,Leeds Building Services,Supplies and Services,Operational Materials,205,10/01/2020,2001-00341,0.00,1.70,R,Access Locksmiths (Leeds) Limited,No
Http://opendatacommunities.org/id/metropolitan-district-council/leeds,Leeds City Council,31/01/2020,Resources and Housing,Leeds Building Services,Supplies and Services,Operational Materials,205,10/01/2020,2001-00342,0.00,17.34,R,Access Locksmiths (Leeds) Limited,No
Http://opendatacommunities.org/id/metropolitan-district-council/leeds,Leeds City Council,31/01/2020,Resources and Housing,Leeds Building Services,Supplies and Services,Operational Materials,205,10/01/2020,2001-00343,0.00,33.66,R,Access Locksmiths (Leeds) Limited,No
Http://opendatacommunities.org/id/metropolitan-district-council/leeds,Leeds City Council,31/01/2020,Resources and Housing,Leeds Building Services,Supplies and Services,Operational Materials,205,15/01/2020,2001-00344,0.00,47.47,R,Access Locksmiths (Leeds) Limited,No
Http://opendatacommunities.org/id/metropolitan-district-council/leeds,Leeds City Council,31/01/2020,Resources and Housing,Leeds Building Services,Supplies and Services,Operational Materials,205,20/01/2020,2001-00345,0.00,19.35,R,Access Locksmiths (Leeds) Limited,No
Http://opendatacommunities.org/id/metropolitan-district-council/leeds,Leeds City Council,31/01/2020,Resources and Housing,Leeds Building Services,Supplies and Services,Operational Materials,205,20/01/2020,2001-00346,0.00,50.99,R,Access Locksmiths (Leeds) Limited,No
Http://opendatacommunities.org/id/metropolitan-district-council/leeds,Leeds City Council,31/01/2020,Resources and Housing,Leeds Building Services,Supplies and Services,Operational Materials,205,20/01/2020,2001-00347,0.00,256.14,R,Access Locksmiths (Leeds) Limited,No
Http://opendatacommunities.org/id/metropolitan-district-council/leeds,Leeds City Council,31/01/2020,Resources and Housing,Leeds Building Services,Supplies and Services,Operational Materials,205,20/01/2020,2001-00348,0.00,64.26,R,Access Locksmiths (Leeds) Limited,No
Http://opendatacommunities.org/id/metropolitan-district-council/leeds,Leeds City Council,31/01/2020,Resources and Housing,Leeds Building Services,Supplies and Services,Operational Materials,205,20/01/2020,2001-00349,0.00,138.50,R,Access Locksmiths (Leeds) Limited,No
Http://opendatacommunities.org/id/metropolitan-district-council/leeds,Leeds City Council,31/01/2020,Strategic Landlord,Housing Management,Supplies and Services,Resaleable Materials,204,22/01/2020,2001-00350,0.00,82.80,R,Access Locksmiths (Leeds) Limited,No
Http://opendatacommunities.org/id/metropolitan-district-council/leeds,Leeds City Council,31/01/2020,Strategic Landlord,Housing Management,Supplies and Services,Resaleable Materials,204,22/01/2020,2001-00351,0.00,31.20,R,Access Locksmiths (Leeds) Limited,No
Http://opendatacommunities.org/id/metropolitan-district-council/leeds,Leeds City Council,31/01/2020,Strategic Landlord,Housing Management,Supplies and Services,Resaleable Materials,204,22/01/2020,2001-00352,0.00,11.25,R,Access Locksmiths (Leeds) Limited,No
Http://opendatacommunities.org/id/metropolitan-district-council/leeds,Leeds City Council,31/01/2020,Resources and Housing,Leeds Building Services,Supplies and Services,Other Hired And Contracted Services,265,22/01/2020,2001-00353,0.00,26.70,R,Access Locksmiths (Leeds) Limited,No
Http://opendatacommunities.org/id/metropolitan-district-council/leeds,Leeds City Council,31/01/2020,Strategic Landlord,Housing Management,Income,Other Income,973,22/01/2020,2001-00354,0.00,114.00,R,Access Locksmiths (Leeds) Limited,No
Http://opendatacommunities.org/id/metropolitan-district-council/leeds,Leeds City Council,31/01/2020,Strategic Landlord,Housing Management,Supplies and Services,Resaleable Materials,204,22/01/2020,2001-00355,0.00,228.00,R,Access Locksmiths (Leeds) Limited,No
Http://opendatacommunities.org/id/metropolitan-district-council/leeds,Leeds City Council,31/01/2020,Resources and Housing,Leeds Building Services,Supplies and Services,Other Hired And Contracted Services,265,22/01/2020,2001-00356,0.00,6.35,R,Access Locksmiths (Leeds) Limited,No
Http://opendatacommunities.org/id/metropolitan-district-council/leeds,Leeds City Council,31/01/2020,Strategic Landlord,Property and Contracts,Premises,General Maintenance,104,31/01/2020,2001-00357,0.00,105.29,R,Access Locksmiths (Leeds) Limited,No
Http://opendatacommunities.org/id/metropolitan-district-council/leeds,Leeds City Council,31/01/2020,Resources and Housing,HRA Housing Leeds,Capital,Construction,3,31/01/2020,2001-00358,0.00,2684.85,C,Access Locksmiths (Leeds) Limited,No
Http://opendatacommunities.org/id/metropolitan-district-council/leeds,Leeds City Council,31/01/2020,Resources and Housing,Leeds Building Services,Supplies and Services,Other Hired And Contracted Services,265,31/01/2020,2001-00359,0.00,17.90,R,Access Locksmiths (Leeds) Limited,No
Http://opendatacommunities.org/id/metropolitan-district-council/leeds,Leeds City Council,31/01/2020,Strategic Landlord,Property and Contracts,Premises,General Maintenance,104,31/01/2020,2001-00360,0.00,174.26,R,Access Locksmiths (Leeds) Limited,No
Http://opendatacommunities.org/id/metropolitan-district-council/leeds,Leeds City Council,31/01/2020,Resources and Housing,Leeds Building Services,Supplies and Services,Operational Materials,205,31/01/2020,2001-00361,0.00,10.76,R,Access Locksmiths (Leeds) Limited,No
Http://opendatacommunities.org/id/metropolitan-district-council/leeds,Leeds City Council,31/01/2020,Resources and Housing,Leeds Building Services,Supplies and Services,Operational Materials,205,31/01/2020,2001-00362,0.00,46.04,R,Access Locksmiths (Leeds) Limited,No
Http://opendatacommunities.org/id/metropolitan-district-council/leeds,Leeds City Council,31/01/2020,Resources and Housing,Leeds Building Services,Supplies and Services,Operational Materials,205,31/01/2020,2001-00363,0.00,16.11,R,Access Locksmiths (Leeds) Limited,No
Http://opendatacommunities.org/id/metropolitan-district-council/leeds,Leeds City Council,31/01/2020,Resources and Housing,Leeds Building Services,Supplies and Services,Operational Materials,205,31/01/2020,2001-00364,0.00,412.62,R,Access Locksmiths (Leeds) Limited,No
Http://opendatacommunities.org/id/metropolitan-district-council/leeds,Leeds City Council,31/01/2020,City Development,Libraries  Arts & Heritage,Supplies and Services,Bought In Professional Services,277,08/01/2020,2001-00365,0.00,680.00,R,Access Moving Image Ltd,No
Http://opendatacommunities.org/id/metropolitan-district-council/leeds,Leeds City Council,31/01/2020,City Development,Markets & City Centre Management  ,Supplies and Services,Operational Materials,205,11/12/2019,2001-00366,0.00,9.33,R,Accu.Co.Uk,Yes
Http://opendatacommunities.org/id/metropolitan-district-council/leeds,Leeds City Council,31/01/2020,City Development,Recreation,Transport,External Hire -Occasional,304,30/01/2020,2001-00367,0.00,128.65,R,Ace Container Services Limited,No
Http://opendatacommunities.org/id/metropolitan-district-council/leeds,Leeds City Council,31/01/2020,City Development,Libraries  Arts & Heritage,Supplies and Services,Other Hired And Contracted Services,265,31/01/2020,2001-00368,0.00,46.50,R,Ace Container Services Limited,No
Http://opendatacommunities.org/id/metropolitan-district-council/leeds,Leeds City Council,31/01/2020,City Development,Culture and Sport,Capital,Other Costs,7,03/01/2020,2001-00369,0.00,249.00,C,Ace Leaflet Distribution & Print Ltd,No
Http://opendatacommunities.org/id/metropolitan-district-council/leeds,Leeds City Council,31/01/2020,City Development,Culture and Sport,Capital,Other Costs,7,03/01/2020,2001-00370,0.00,99.00,C,Ace Leaflet Distribution & Print Ltd,No
Http://opendatacommunities.org/id/metropolitan-district-council/leeds,Leeds City Council,31/01/2020,Children and Families,Learning,Supplies and Services,Advertising,211,10/01/2020,2001-00371,0.00,99.00,R,Ace Leaflet Distribution & Print Ltd,No
Http://opendatacommunities.org/id/metropolitan-district-council/leeds,Leeds City Council,31/01/2020,City Development,Culture and Sport,Capital,Other Costs,7,10/01/2020,2001-00372,0.00,358.99,C,Ace Leaflet Distribution & Print Ltd,No
Http://opendatacommunities.org/id/metropolitan-district-council/leeds,Leeds City Council,31/01/2020,Resources and Housing,Leeds Building Services,Supplies and Services,Operational Furniture And Equipment,203,17/01/2020,2001-00373,0.00,75.00,R,Acme Facilities Group Ltd,No
Http://opendatacommunities.org/id/metropolitan-district-council/leeds,Leeds City Council,31/01/2020,Resources and Housing,Leeds Building Services,Supplies and Services,Operational Materials,205,17/01/2020,2001-00374,0.00,1375.00,R,Acme Facilities Group Ltd,No
Http://opendatacommunities.org/id/metropolitan-district-council/leeds,Leeds City Council,31/01/2020,Resources and Housing,Leeds Building Services,Supplies and Services,Operational Materials,205,31/01/2020,2001-00375,0.00,1450.00,R,Acme Facilities Group Ltd,No
Http://opendatacommunities.org/id/metropolitan-district-council/leeds,Leeds City Council,31/01/2020,Children and Families,Partnerships & Health,Third Party Payments,SEN Placements,566,29/01/2020,2001-00376,0.00,8500.00,R,Acorn Care & Education Ltd (Sales),No
Http://opendatacommunities.org/id/metropolitan-district-council/leeds,Leeds City Council,31/01/2020,Children and Families,Partnerships & Health,Third Party Payments,SEN Placements,566,31/01/2020,2001-00377,0.00,18138.67,R,Acorn Care & Education Ltd (Sales),No
Http://opendatacommunities.org/id/metropolitan-district-council/leeds,Leeds City Council,31/01/2020,Children and Families,Partnerships & Health,Third Party Payments,SEN Placements,566,31/01/2020,2001-00378,0.00,18472.00,R,Acorn Care & Education Ltd (Sales),No
Http://opendatacommunities.org/id/metropolitan-district-council/leeds,Leeds City Council,31/01/2020,Children and Families,Partnerships & Health,Third Party Payments,SEN Placements,566,31/01/2020,2001-00379,0.00,8500.00,R,Acorn Care & Education Ltd (Sales),No
Http://opendatacommunities.org/id/metropolitan-district-council/leeds,Leeds City Council,31/01/2020,Children and Families,Partnerships & Health,Third Party Payments,SEN Placements,566,31/01/2020,2001-00380,0.00,18472.00,R,Acorn Care & Education Ltd (Sales),No
Http://opendatacommunities.org/id/metropolitan-district-council/leeds,Leeds City Council,31/01/2020,Children and Families,Partnerships & Health,Third Party Payments,SEN Placements,566,31/01/2020,2001-00381,0.00,18472.00,R,Acorn Care & Education Ltd (Sales),No
Http://opendatacommunities.org/id/metropolitan-district-council/leeds,Leeds City Council,31/01/2020,Children and Families,Partnerships & Health,Third Party Payments,SEN Placements,566,31/01/2020,2001-00382,0.00,18472.00,R,Acorn Care & Education Ltd (Sales),No
Http://opendatacommunities.org/id/metropolitan-district-council/leeds,Leeds City Council,31/01/2020,Children and Families,Partnerships & Health,Third Party Payments,SEN Placements,566,31/01/2020,2001-00383,0.00,8500.00,R,Acorn Care & Education Ltd (Sales),No
Http://opendatacommunities.org/id/metropolitan-district-council/leeds,Leeds City Council,31/01/2020,Children and Families,Partnerships & Health,Third Party Payments,SEN Placements,566,31/01/2020,2001-00384,0.00,18138.67,R,Acorn Care & Education Ltd (Sales),No
Http://opendatacommunities.org/id/metropolitan-district-council/leeds,Leeds City Council,31/01/2020,Children and Families,Partnerships & Health,Third Party Payments,SEN Placements,566,31/01/2020,2001-00385,0.00,18472.00,R,Acorn Care & Education Ltd (Sales),No
Http://opendatacommunities.org/id/metropolitan-district-council/leeds,Leeds City Council,31/01/2020,Children and Families,Partnerships & Health,Third Party Payments,SEN Placements,566,31/01/2020,2001-00386,0.00,18472.00,R,Acorn Care & Education Ltd (Sales),No
Http://opendatacommunities.org/id/metropolitan-district-council/leeds,Leeds City Council,31/01/2020,Children and Families,Partnerships & Health,Third Party Payments,SEN Placements,566,31/01/2020,2001-00387,0.00,18472.00,R,Acorn Care & Education Ltd (Sales),No
Http://opendatacommunities.org/id/metropolitan-district-council/leeds,Leeds City Council,31/01/2020,Children and Families,Partnerships & Health,Third Party Payments,SEN Placements,566,31/01/2020,2001-00388,0.00,18472.00,R,Acorn Care & Education Ltd (Sales),No
Http://opendatacommunities.org/id/metropolitan-district-council/leeds,Leeds City Council,31/01/2020,Adults and Health,Services For Older People - 65 And Over,Third Party Payments,Residential Care Dementia,571,08/01/2020,2001-00389,0.00,476.56,R,Acorn Nursing Home,No
Http://opendatacommunities.org/id/metropolitan-district-council/leeds,Leeds City Council,31/01/2020,Adults and Health,Services For Older People - 65 And Over,Third Party Payments,Nursing Care Dementia,574,08/01/2020,2001-00390,0.00,1646.24,R,Acorn Nursing Home,No
Http://opendatacommunities.org/id/metropolitan-district-council/leeds,Leeds City Council,31/01/2020,Children and Families,Social Care,Third Party Payments,Services Rendered By Other Organisations,511,03/01/2020,2001-00391,0.00,6481.53,R,Acorns Nursery,No
Http://opendatacommunities.org/id/metropolitan-district-council/leeds,Leeds City Council,31/01/2020,Adults and Health,Services For Older People - 65 And Over,Third Party Payments,Nursing Home,570,08/01/2020,2001-00392,0.00,34345.65,R,Acre Green,No
Http://opendatacommunities.org/id/metropolitan-district-council/leeds,Leeds City Council,31/01/2020,Adults and Health,Services For Older People - 65 And Over,Third Party Payments,Residential,580,08/01/2020,2001-00393,0.00,4309.24,R,Acre Green,No
Http://opendatacommunities.org/id/metropolitan-district-council/leeds,Leeds City Council,31/01/2020,Adults and Health,Services For Older People Under 65 P/Dis,Third Party Payments,Nursing Home,570,08/01/2020,2001-00394,0.00,2268.00,R,Acre Green,No
Http://opendatacommunities.org/id/metropolitan-district-council/leeds,Leeds City Council,31/01/2020,Adults and Health,Services For Older People Under 65 P/Dis,Third Party Payments,Residential,580,08/01/2020,2001-00395,0.00,1574.20,R,Acre Green,No
Http://opendatacommunities.org/id/metropolitan-district-council/leeds,Leeds City Council,31/01/2020,Children and Families,Social Care,Third Party Payments,Services Rendered By Other Organisations,511,03/01/2020,2001-00396,0.00,3432.00,R,Acre Wood Day Nursery,No
Http://opendatacommunities.org/id/metropolitan-district-council/leeds,Leeds City Council,31/01/2020,Children and Families,Social Care,Third Party Payments,Services Rendered By Other Organisations,511,13/01/2020,2001-00397,0.00,13932.00,R,Acre Wood Day Nursery,No
Http://opendatacommunities.org/id/metropolitan-district-council/leeds,Leeds City Council,31/01/2020,Children and Families,Social Care,Third Party Payments,Services Rendered By Voluntary Sector,505,31/01/2020,2001-00398,0.00,2052.63,R,Acre Wood Day Nursery,No
Http://opendatacommunities.org/id/metropolitan-district-council/leeds,Leeds City Council,31/01/2020,Resources and Housing,Technology,Employees,Training & Development,70,14/01/2020,2001-00399,0.00,69.00,R,Act Now Training Ltd,No
Http://opendatacommunities.org/id/metropolitan-district-council/leeds,Leeds City Council,31/01/2020,Resources and Housing,Technology,Employees,Training & Development,70,21/01/2020,2001-00400,0.00,69.00,R,Act Now Training Ltd,No
Http://opendatacommunities.org/id/metropolitan-district-council/leeds,Leeds City Council,31/01/2020,Resources and Housing,Leeds Building Services,Supplies and Services,Other Hired And Contracted Services,265,03/01/2020,2001-00401,0.00,171.00,R,Actavo Hire And Sales Uk Limited,No
Http://opendatacommunities.org/id/metropolitan-district-council/leeds,Leeds City Council,31/01/2020,Resources and Housing,Leeds Building Services,Supplies and Services,Operational Materials,205,17/01/2020,2001-00402,0.00,355.40,R,Actavo Hire And Sales Uk Limited,No
Http://opendatacommunities.org/id/metropolitan-district-council/leeds,Leeds City Council,31/01/2020,Resources and Housing,Leeds Building Services,Supplies and Services,Other Hired And Contracted Services,265,24/01/2020,2001-00403,0.00,142.51,R,Actavo Hire And Sales Uk Limited,No
Http://opendatacommunities.org/id/metropolitan-district-council/leeds,Leeds City Council,31/01/2020,Children and Families,Social Care,Third Party Payments,Independent Fostering Agencies,509,22/01/2020,2001-00404,0.00,462.24,R,Action For Children,No
Http://opendatacommunities.org/id/metropolitan-district-council/leeds,Leeds City Council,31/01/2020,Children and Families,Social Care,Third Party Payments,Independent Fostering Agencies,509,22/01/2020,2001-00405,0.00,5163.67,R,Action For Children Services Ltd,No
Http://opendatacommunities.org/id/metropolitan-district-council/leeds,Leeds City Council,31/01/2020,Communities and Environment,Communities  ,Supplies and Services,Operational Materials,205,19/12/2019,2001-00406,0.00,187.48,R,Action On Hearing Loss,Yes
Http://opendatacommunities.org/id/metropolitan-district-council/leeds,Leeds City Council,31/01/2020,Children and Families,Social Care,Third Party Payments,Services Rendered By Other Organisations,511,03/01/2020,2001-00407,0.00,624.00,R,Active Kids Yeadon Llp,No
Http://opendatacommunities.org/id/metropolitan-district-council/leeds,Leeds City Council,31/01/2020,Children and Families,Social Care,Third Party Payments,Services Rendered By Other Organisations,511,03/01/2020,2001-00408,0.00,7929.20,R,Active Kids Yeadon Llp,No
Http://opendatacommunities.org/id/metropolitan-district-council/leeds,Leeds City Council,31/01/2020,Children and Families,Social Care,Third Party Payments,Services Rendered By Voluntary Sector,505,31/01/2020,2001-00409,0.00,568.44,R,Active Kids Yeadon Llp,No
Http://opendatacommunities.org/id/metropolitan-district-council/leeds,Leeds City Council,31/01/2020,Communities and Environment,Community Safety  ,Supplies and Services,Teaching Materials,202,10/12/2019,2001-00410,0.00,138.00,R,Activia Training,Yes
Http://opendatacommunities.org/id/metropolitan-district-council/leeds,Leeds City Council,31/01/2020,Communities and Environment,Cleaner Neighbourhood Teams,Premises,Removal Of Workplace Waste,126,02/01/2020,2001-00411,0.00,116.60,R,Acumen Waste Services Ltd,No
Http://opendatacommunities.org/id/metropolitan-district-council/leeds,Leeds City Council,31/01/2020,Communities and Environment,Cleaner Neighbourhood Teams,Premises,Removal Of Workplace Waste,126,02/01/2020,2001-00412,0.00,116.60,R,Acumen Waste Services Ltd,No
Http://opendatacommunities.org/id/metropolitan-district-council/leeds,Leeds City Council,31/01/2020,Communities and Environment,Cleaner Neighbourhood Teams,Premises,Removal Of Workplace Waste,126,02/01/2020,2001-00413,0.00,116.60,R,Acumen Waste Services Ltd,No
Http://opendatacommunities.org/id/metropolitan-district-council/leeds,Leeds City Council,31/01/2020,Communities and Environment,Cleaner Neighbourhood Teams,Premises,Removal Of Workplace Waste,126,03/01/2020,2001-00414,0.00,116.60,R,Acumen Waste Services Ltd,No
Http://opendatacommunities.org/id/metropolitan-district-council/leeds,Leeds City Council,31/01/2020,Communities and Environment,Cleaner Neighbourhood Teams,Premises,Removal Of Workplace Waste,126,03/01/2020,2001-00415,0.00,116.60,R,Acumen Waste Services Ltd,No
Http://opendatacommunities.org/id/metropolitan-district-council/leeds,Leeds City Council,31/01/2020,Communities and Environment,Cleaner Neighbourhood Teams,Premises,Removal Of Workplace Waste,126,03/01/2020,2001-00416,0.00,116.60,R,Acumen Waste Services Ltd,No
Http://opendatacommunities.org/id/metropolitan-district-council/leeds,Leeds City Council,31/01/2020,Communities and Environment,Waste Management,Supplies and Services,Recycling & Reuse Charges,234,08/01/2020,2001-00417,0.00,7805.10,R,Acumen Waste Services Ltd,No
Http://opendatacommunities.org/id/metropolitan-district-council/leeds,Leeds City Council,31/01/2020,Communities and Environment,Cleaner Neighbourhood Teams,Premises,Removal Of Workplace Waste,126,08/01/2020,2001-00418,0.00,116.60,R,Acumen Waste Services Ltd,No
Http://opendatacommunities.org/id/metropolitan-district-council/leeds,Leeds City Council,31/01/2020,Communities and Environment,Cleaner Neighbourhood Teams,Premises,Removal Of Workplace Waste,126,08/01/2020,2001-00419,0.00,116.60,R,Acumen Waste Services Ltd,No
Http://opendatacommunities.org/id/metropolitan-district-council/leeds,Leeds City Council,31/01/2020,Communities and Environment,Cleaner Neighbourhood Teams,Premises,Removal Of Workplace Waste,126,08/01/2020,2001-00420,0.00,116.60,R,Acumen Waste Services Ltd,No
Http://opendatacommunities.org/id/metropolitan-district-council/leeds,Leeds City Council,31/01/2020,Communities and Environment,Cleaner Neighbourhood Teams,Premises,Removal Of Workplace Waste,126,08/01/2020,2001-00421,0.00,116.60,R,Acumen Waste Services Ltd,No
Http://opendatacommunities.org/id/metropolitan-district-council/leeds,Leeds City Council,31/01/2020,Communities and Environment,Cleaner Neighbourhood Teams,Premises,Removal Of Workplace Waste,126,08/01/2020,2001-00422,0.00,116.60,R,Acumen Waste Services Ltd,No
Http://opendatacommunities.org/id/metropolitan-district-council/leeds,Leeds City Council,31/01/2020,Communities and Environment,Cleaner Neighbourhood Teams,Premises,Removal Of Workplace Waste,126,08/01/2020,2001-00423,0.00,116.60,R,Acumen Waste Services Ltd,No
Http://opendatacommunities.org/id/metropolitan-district-council/leeds,Leeds City Council,31/01/2020,Communities and Environment,Cleaner Neighbourhood Teams,Premises,Removal Of Workplace Waste,126,08/01/2020,2001-00424,0.00,116.60,R,Acumen Waste Services Ltd,No
Http://opendatacommunities.org/id/metropolitan-district-council/leeds,Leeds City Council,31/01/2020,Communities and Environment,Cleaner Neighbourhood Teams,Premises,Removal Of Workplace Waste,126,08/01/2020,2001-00425,0.00,116.60,R,Acumen Waste Services Ltd,No
Http://opendatacommunities.org/id/metropolitan-district-council/leeds,Leeds City Council,31/01/2020,Communities and Environment,Cleaner Neighbourhood Teams,Premises,Removal Of Workplace Waste,126,10/01/2020,2001-00426,0.00,116.60,R,Acumen Waste Services Ltd,No
Http://opendatacommunities.org/id/metropolitan-district-council/leeds,Leeds City Council,31/01/2020,Communities and Environment,Cleaner Neighbourhood Teams,Premises,Removal Of Workplace Waste,126,15/01/2020,2001-00427,0.00,116.60,R,Acumen Waste Services Ltd,No
Http://opendatacommunities.org/id/metropolitan-district-council/leeds,Leeds City Council,31/01/2020,Communities and Environment,Cleaner Neighbourhood Teams,Premises,Removal Of Workplace Waste,126,15/01/2020,2001-00428,0.00,116.60,R,Acumen Waste Services Ltd,No
Http://opendatacommunities.org/id/metropolitan-district-council/leeds,Leeds City Council,31/01/2020,Communities and Environment,Cleaner Neighbourhood Teams,Premises,Removal Of Workplace Waste,126,15/01/2020,2001-00429,0.00,116.60,R,Acumen Waste Services Ltd,No
Http://opendatacommunities.org/id/metropolitan-district-council/leeds,Leeds City Council,31/01/2020,Communities and Environment,Cleaner Neighbourhood Teams,Premises,Removal Of Workplace Waste,126,15/01/2020,2001-00430,0.00,116.60,R,Acumen Waste Services Ltd,No
Http://opendatacommunities.org/id/metropolitan-district-council/leeds,Leeds City Council,31/01/2020,Communities and Environment,Cleaner Neighbourhood Teams,Premises,Removal Of Workplace Waste,126,15/01/2020,2001-00431,0.00,116.60,R,Acumen Waste Services Ltd,No
Http://opendatacommunities.org/id/metropolitan-district-council/leeds,Leeds City Council,31/01/2020,Communities and Environment,Cleaner Neighbourhood Teams,Premises,Removal Of Workplace Waste,126,15/01/2020,2001-00432,0.00,116.60,R,Acumen Waste Services Ltd,No
Http://opendatacommunities.org/id/metropolitan-district-council/leeds,Leeds City Council,31/01/2020,Communities and Environment,Waste Management,Supplies and Services,Recycling & Reuse Charges,234,16/01/2020,2001-00433,0.00,9782.29,R,Acumen Waste Services Ltd,No
Http://opendatacommunities.org/id/metropolitan-district-council/leeds,Leeds City Council,31/01/2020,Communities and Environment,Cleaner Neighbourhood Teams,Premises,Removal Of Workplace Waste,126,16/01/2020,2001-00434,0.00,116.60,R,Acumen Waste Services Ltd,No
Http://opendatacommunities.org/id/metropolitan-district-council/leeds,Leeds City Council,31/01/2020,Communities and Environment,Cleaner Neighbourhood Teams,Premises,Removal Of Workplace Waste,126,16/01/2020,2001-00435,0.00,116.60,R,Acumen Waste Services Ltd,No
Http://opendatacommunities.org/id/metropolitan-district-council/leeds,Leeds City Council,31/01/2020,Communities and Environment,Cleaner Neighbourhood Teams,Premises,Removal Of Workplace Waste,126,16/01/2020,2001-00436,0.00,116.60,R,Acumen Waste Services Ltd,No
Http://opendatacommunities.org/id/metropolitan-district-council/leeds,Leeds City Council,31/01/2020,Communities and Environment,Cleaner Neighbourhood Teams,Premises,Removal Of Workplace Waste,126,23/01/2020,2001-00437,0.00,116.60,R,Acumen Waste Services Ltd,No
Http://opendatacommunities.org/id/metropolitan-district-council/leeds,Leeds City Council,31/01/2020,Communities and Environment,Cleaner Neighbourhood Teams,Premises,Removal Of Workplace Waste,126,23/01/2020,2001-00438,0.00,116.60,R,Acumen Waste Services Ltd,No
Http://opendatacommunities.org/id/metropolitan-district-council/leeds,Leeds City Council,31/01/2020,Communities and Environment,Cleaner Neighbourhood Teams,Premises,Removal Of Workplace Waste,126,23/01/2020,2001-00439,0.00,116.60,R,Acumen Waste Services Ltd,No
Http://opendatacommunities.org/id/metropolitan-district-council/leeds,Leeds City Council,31/01/2020,Communities and Environment,Cleaner Neighbourhood Teams,Premises,Removal Of Workplace Waste,126,23/01/2020,2001-00440,0.00,116.60,R,Acumen Waste Services Ltd,No
Http://opendatacommunities.org/id/metropolitan-district-council/leeds,Leeds City Council,31/01/2020,Communities and Environment,Cleaner Neighbourhood Teams,Premises,Removal Of Workplace Waste,126,23/01/2020,2001-00441,0.00,116.60,R,Acumen Waste Services Ltd,No
Http://opendatacommunities.org/id/metropolitan-district-council/leeds,Leeds City Council,31/01/2020,Communities and Environment,Cleaner Neighbourhood Teams,Premises,Removal Of Workplace Waste,126,23/01/2020,2001-00442,0.00,116.60,R,Acumen Waste Services Ltd,No
Http://opendatacommunities.org/id/metropolitan-district-council/leeds,Leeds City Council,31/01/2020,Communities and Environment,Cleaner Neighbourhood Teams,Premises,Removal Of Workplace Waste,126,23/01/2020,2001-00443,0.00,116.60,R,Acumen Waste Services Ltd,No
Http://opendatacommunities.org/id/metropolitan-district-council/leeds,Leeds City Council,31/01/2020,Communities and Environment,Cleaner Neighbourhood Teams,Premises,Removal Of Workplace Waste,126,23/01/2020,2001-00444,0.00,116.60,R,Acumen Waste Services Ltd,No
Http://opendatacommunities.org/id/metropolitan-district-council/leeds,Leeds City Council,31/01/2020,Communities and Environment,Waste Management,Supplies and Services,Recycling & Reuse Charges,234,24/01/2020,2001-00445,0.00,7918.73,R,Acumen Waste Services Ltd,No
Http://opendatacommunities.org/id/metropolitan-district-council/leeds,Leeds City Council,31/01/2020,Communities and Environment,Cleaner Neighbourhood Teams,Premises,Removal Of Workplace Waste,126,31/01/2020,2001-00446,0.00,116.60,R,Acumen Waste Services Ltd,No
Http://opendatacommunities.org/id/metropolitan-district-council/leeds,Leeds City Council,31/01/2020,Communities and Environment,Cleaner Neighbourhood Teams,Premises,Removal Of Workplace Waste,126,31/01/2020,2001-00447,0.00,116.60,R,Acumen Waste Services Ltd,No
Http://opendatacommunities.org/id/metropolitan-district-council/leeds,Leeds City Council,31/01/2020,Communities and Environment,Cleaner Neighbourhood Teams,Premises,Removal Of Workplace Waste,126,31/01/2020,2001-00448,0.00,116.60,R,Acumen Waste Services Ltd,No
Http://opendatacommunities.org/id/metropolitan-district-council/leeds,Leeds City Council,31/01/2020,Communities and Environment,Cleaner Neighbourhood Teams,Premises,Removal Of Workplace Waste,126,31/01/2020,2001-00449,0.00,116.60,R,Acumen Waste Services Ltd,No
Http://opendatacommunities.org/id/metropolitan-district-council/leeds,Leeds City Council,31/01/2020,Communities and Environment,Cleaner Neighbourhood Teams,Premises,Removal Of Workplace Waste,126,31/01/2020,2001-00450,0.00,116.60,R,Acumen Waste Services Ltd,No
Http://opendatacommunities.org/id/metropolitan-district-council/leeds,Leeds City Council,31/01/2020,Communities and Environment,Cleaner Neighbourhood Teams,Premises,Removal Of Workplace Waste,126,31/01/2020,2001-00451,0.00,116.60,R,Acumen Waste Services Ltd,No
Http://opendatacommunities.org/id/metropolitan-district-council/leeds,Leeds City Council,31/01/2020,Communities and Environment,Cleaner Neighbourhood Teams,Premises,Removal Of Workplace Waste,126,31/01/2020,2001-00452,0.00,116.60,R,Acumen Waste Services Ltd,No
Http://opendatacommunities.org/id/metropolitan-district-council/leeds,Leeds City Council,31/01/2020,Communities and Environment,Cleaner Neighbourhood Teams,Premises,Removal Of Workplace Waste,126,31/01/2020,2001-00453,0.00,116.60,R,Acumen Waste Services Ltd,No
Http://opendatacommunities.org/id/metropolitan-district-council/leeds,Leeds City Council,31/01/2020,Resources and Housing,Shared Services,Supplies and Services,Other Hired And Contracted Services,265,06/01/2020,2001-00454,0.00,363.50,R,Ad3 Envelope Printers Limited,No
Http://opendatacommunities.org/id/metropolitan-district-council/leeds,Leeds City Council,31/01/2020,Resources and Housing,Shared Services,Supplies and Services,Operational Materials,205,15/01/2020,2001-00455,0.00,366.60,R,Ad3 Envelope Printers Limited,No
Http://opendatacommunities.org/id/metropolitan-district-council/leeds,Leeds City Council,31/01/2020,Resources and Housing,Shared Services,Supplies and Services,Operational Materials,205,30/01/2020,2001-00456,0.00,1131.75,R,Ad3 Envelope Printers Limited,No
Http://opendatacommunities.org/id/metropolitan-district-council/leeds,Leeds City Council,31/01/2020,City Development,Libraries  Arts & Heritage,Income,Admissions  Booking Fees & Ticket Sales,933,23/01/2020,2001-00457,0.00,471.69,R,Adam Robinson,No
Http://opendatacommunities.org/id/metropolitan-district-council/leeds,Leeds City Council,31/01/2020,City Development,Libraries  Arts & Heritage,Income,Other Income,973,23/01/2020,2001-00458,0.00,-16.11,R,Adam Robinson,No
Http://opendatacommunities.org/id/metropolitan-district-council/leeds,Leeds City Council,31/01/2020,Children and Families,Social Care  ,Supplies and Services,General Amenity For Clients/Residents,285,27/12/2019,2001-00459,0.00,125.00,R,Adams Phones,Yes
Http://opendatacommunities.org/id/metropolitan-district-council/leeds,Leeds City Council,31/01/2020,Adults and Health,Services For Older People - 65 And Over,Third Party Payments,Nursing Home,570,08/01/2020,2001-00460,0.00,2480.00,R,Adbolton Hall,No
Http://opendatacommunities.org/id/metropolitan-district-council/leeds,Leeds City Council,31/01/2020,City Development,Libraries  Arts & Heritage,Supplies and Services,Other Hired And Contracted Services,265,07/01/2020,2001-00461,0.00,1200.00,R,Addictive Audio,No
Http://opendatacommunities.org/id/metropolitan-district-council/leeds,Leeds City Council,31/01/2020,Resources and Housing,Commercial Services,Transport,Road Fund Licences,323,03/01/2020,2001-00462,0.00,55.00,R,Addison Motors Limited,No
Http://opendatacommunities.org/id/metropolitan-district-council/leeds,Leeds City Council,31/01/2020,Resources and Housing,Commercial Services,Transport,Road Fund Licences,323,03/01/2020,2001-00463,0.00,55.00,R,Addison Motors Limited,No
Http://opendatacommunities.org/id/metropolitan-district-council/leeds,Leeds City Council,31/01/2020,Resources and Housing,Commercial Services,Transport,Road Fund Licences,323,03/01/2020,2001-00464,0.00,55.00,R,Addison Motors Limited,No
Http://opendatacommunities.org/id/metropolitan-district-council/leeds,Leeds City Council,31/01/2020,Resources and Housing,Civic Enterprise Leeds,Capital,Transport,4,17/01/2020,2001-00465,0.00,21629.80,C,Addison Motors Limited,No
Http://opendatacommunities.org/id/metropolitan-district-council/leeds,Leeds City Council,31/01/2020,Resources and Housing,Civic Enterprise Leeds,Capital,Transport,4,17/01/2020,2001-00466,0.00,21629.80,C,Addison Motors Limited,No
Http://opendatacommunities.org/id/metropolitan-district-council/leeds,Leeds City Council,31/01/2020,Resources and Housing,Civic Enterprise Leeds,Capital,Transport,4,17/01/2020,2001-00467,0.00,21629.80,C,Addison Motors Limited,No
Http://opendatacommunities.org/id/metropolitan-district-council/leeds,Leeds City Council,31/01/2020,Resources and Housing,Civic Enterprise Leeds,Capital,Transport,4,17/01/2020,2001-00468,0.00,21629.80,C,Addison Motors Limited,No
Http://opendatacommunities.org/id/metropolitan-district-council/leeds,Leeds City Council,31/01/2020,Resources and Housing,Civic Enterprise Leeds,Capital,Transport,4,17/01/2020,2001-00469,0.00,21629.80,C,Addison Motors Limited,No
Http://opendatacommunities.org/id/metropolitan-district-council/leeds,Leeds City Council,31/01/2020,Resources and Housing,Civic Enterprise Leeds,Capital,Transport,4,17/01/2020,2001-00470,0.00,21629.80,C,Addison Motors Limited,No
Http://opendatacommunities.org/id/metropolitan-district-council/leeds,Leeds City Council,31/01/2020,Resources and Housing,Civic Enterprise Leeds,Capital,Transport,4,17/01/2020,2001-00471,0.00,21629.80,C,Addison Motors Limited,No
Http://opendatacommunities.org/id/metropolitan-district-council/leeds,Leeds City Council,31/01/2020,Resources and Housing,Civic Enterprise Leeds,Capital,Transport,4,17/01/2020,2001-00472,0.00,21629.80,C,Addison Motors Limited,No
Http://opendatacommunities.org/id/metropolitan-district-council/leeds,Leeds City Council,31/01/2020,Resources and Housing,Commercial Services,Transport,Road Fund Licences,323,17/01/2020,2001-00473,0.00,55.00,R,Addison Motors Limited,No
Http://opendatacommunities.org/id/metropolitan-district-council/leeds,Leeds City Council,31/01/2020,Resources and Housing,Commercial Services,Transport,Road Fund Licences,323,17/01/2020,2001-00474,0.00,55.00,R,Addison Motors Limited,No
Http://opendatacommunities.org/id/metropolitan-district-council/leeds,Leeds City Council,31/01/2020,Resources and Housing,Commercial Services,Transport,Road Fund Licences,323,17/01/2020,2001-00475,0.00,55.00,R,Addison Motors Limited,No
Http://opendatacommunities.org/id/metropolitan-district-council/leeds,Leeds City Council,31/01/2020,Resources and Housing,Commercial Services,Transport,Road Fund Licences,323,17/01/2020,2001-00476,0.00,55.00,R,Addison Motors Limited,No
Http://opendatacommunities.org/id/metropolitan-district-council/leeds,Leeds City Council,31/01/2020,Resources and Housing,Commercial Services,Transport,Road Fund Licences,323,17/01/2020,2001-00477,0.00,55.00,R,Addison Motors Limited,No
Http://opendatacommunities.org/id/metropolitan-district-council/leeds,Leeds City Council,31/01/2020,Resources and Housing,Commercial Services,Transport,Road Fund Licences,323,17/01/2020,2001-00478,0.00,55.00,R,Addison Motors Limited,No
Http://opendatacommunities.org/id/metropolitan-district-council/leeds,Leeds City Council,31/01/2020,Resources and Housing,Commercial Services,Transport,Road Fund Licences,323,17/01/2020,2001-00479,0.00,55.00,R,Addison Motors Limited,No
Http://opendatacommunities.org/id/metropolitan-district-council/leeds,Leeds City Council,31/01/2020,Resources and Housing,Commercial Services,Transport,Road Fund Licences,323,17/01/2020,2001-00480,0.00,55.00,R,Addison Motors Limited,No
Http://opendatacommunities.org/id/metropolitan-district-council/leeds,Leeds City Council,31/01/2020,Resources and Housing,Sustainable Energy & Climate Change,Capital,Other Costs,7,17/01/2020,2001-00481,0.00,625.00,C,Addleshaw Goddard Llp,No
Http://opendatacommunities.org/id/metropolitan-district-council/leeds,Leeds City Council,31/01/2020,Resources and Housing,Technology  ,Employees,Agency Staff,8,27/11/2019,2001-00482,0.00,21706.80,R,Adecco Alfred Marks,Yes
Http://opendatacommunities.org/id/metropolitan-district-council/leeds,Leeds City Council,31/01/2020,Resources and Housing,Technology  ,Employees,Agency Staff,8,04/12/2019,2001-00483,0.00,47283.58,R,Adecco Alfred Marks,Yes
Http://opendatacommunities.org/id/metropolitan-district-council/leeds,Leeds City Council,31/01/2020,Resources and Housing,Technology  ,Employees,Agency Staff,8,12/12/2019,2001-00484,0.00,23357.06,R,Adecco Alfred Marks,Yes
Http://opendatacommunities.org/id/metropolitan-district-council/leeds,Leeds City Council,31/01/2020,Resources and Housing,Technology  ,Employees,Agency Staff,8,17/12/2019,2001-00485,0.00,13842.57,R,Adecco Alfred Marks,Yes
Http://opendatacommunities.org/id/metropolitan-district-council/leeds,Leeds City Council,31/01/2020,Resources and Housing,Technology  ,Employees,Agency Staff,8,23/12/2019,2001-00486,0.00,8309.08,R,Adecco Alfred Marks,Yes
Http://opendatacommunities.org/id/metropolitan-district-council/leeds,Leeds City Council,31/01/2020,Children and Families,Social Care,Third Party Payments,Services Rendered By Voluntary Sector,505,03/01/2020,2001-00487,0.00,10474.80,R,Adel Pre School,No
Http://opendatacommunities.org/id/metropolitan-district-council/leeds,Leeds City Council,31/01/2020,Children and Families,Social Care,Third Party Payments,Services Rendered By Voluntary Sector,505,31/01/2020,2001-00488,0.00,3284.21,R,Adel Pre School,No
Http://opendatacommunities.org/id/metropolitan-district-council/leeds,Leeds City Council,31/01/2020,Communities and Environment,Parks And Countryside  ,Transport,Fuel (Non LCC Supplies),321,29/11/2019,2001-00489,0.00,22.82,R,Adel Sf Connect,Yes
Http://opendatacommunities.org/id/metropolitan-district-council/leeds,Leeds City Council,31/01/2020,Communities and Environment,Parks And Countryside  ,Transport,Fuel (Non LCC Supplies),321,03/12/2019,2001-00490,0.00,22.19,R,Adel Sf Connect,Yes
Http://opendatacommunities.org/id/metropolitan-district-council/leeds,Leeds City Council,31/01/2020,Communities and Environment,Parks And Countryside  ,Transport,Fuel (Non LCC Supplies),321,04/12/2019,2001-00491,0.00,20.43,R,Adel Sf Connect,Yes
Http://opendatacommunities.org/id/metropolitan-district-council/leeds,Leeds City Council,31/01/2020,Resources and Housing,Commercial Services  ,Transport,Fuel (Non LCC Supplies),321,19/12/2019,2001-00492,0.00,23.26,R,Adel Sf Connect,Yes
Http://opendatacommunities.org/id/metropolitan-district-council/leeds,Leeds City Council,31/01/2020,Communities and Environment,Parks And Countryside  ,Transport,Fuel (Non LCC Supplies),321,19/12/2019,2001-00493,0.00,22.50,R,Adel Sf Connect,Yes
Http://opendatacommunities.org/id/metropolitan-district-council/leeds,Leeds City Council,31/01/2020,City Development,Libraries  Arts & Heritage  ,Supplies and Services,Teaching Materials,202,12/12/2019,2001-00494,0.00,80.83,R,Adelaide Walker Llp,Yes
Http://opendatacommunities.org/id/metropolitan-district-council/leeds,Leeds City Council,31/01/2020,City Development,Recreation,Supplies and Services,Bought In Professional Services,277,10/01/2020,2001-00495,0.00,20.00,R,Adele Battersby,No
Http://opendatacommunities.org/id/metropolitan-district-council/leeds,Leeds City Council,31/01/2020,City Development,Recreation,Supplies and Services,Bought In Professional Services,277,17/01/2020,2001-00496,0.00,40.00,R,Adele Battersby,No
Http://opendatacommunities.org/id/metropolitan-district-council/leeds,Leeds City Council,31/01/2020,City Development,Recreation,Supplies and Services,Bought In Professional Services,277,30/01/2020,2001-00497,0.00,336.00,R,Adele Battersby,No
Http://opendatacommunities.org/id/metropolitan-district-council/leeds,Leeds City Council,31/01/2020,Children and Families,Social Care,Third Party Payments,Services Rendered By Other Organisations,511,03/01/2020,2001-00498,0.00,624.00,R,REDACTED PERSONAL DATA,No
Http://opendatacommunities.org/id/metropolitan-district-council/leeds,Leeds City Council,31/01/2020,Children and Families,Social Care,Third Party Payments,Services Rendered By Other Organisations,511,03/01/2020,2001-00499,0.00,739.60,R,REDACTED PERSONAL DATA,No
Http://opendatacommunities.org/id/metropolitan-district-council/leeds,Leeds City Council,31/01/2020,Resources and Housing,Commercial Services,Supplies and Services,Operational Furniture And Equipment,203,08/01/2020,2001-00500,0.00,283.59,R,Adelie Foods Ltd,No
Http://opendatacommunities.org/id/metropolitan-district-council/leeds,Leeds City Council,31/01/2020,Resources and Housing,Commercial Services,Supplies and Services,Operational Furniture And Equipment,203,15/01/2020,2001-00501,0.00,280.56,R,Adelie Foods Ltd,No
Http://opendatacommunities.org/id/metropolitan-district-council/leeds,Leeds City Council,31/01/2020,Resources and Housing,Commercial Services,Supplies and Services,Operational Furniture And Equipment,203,20/01/2020,2001-00502,0.00,166.36,R,Adelie Foods Ltd,No
Http://opendatacommunities.org/id/metropolitan-district-council/leeds,Leeds City Council,31/01/2020,Resources and Housing,Commercial Services,Supplies and Services,Operational Furniture And Equipment,203,20/01/2020,2001-00503,0.00,-4.95,R,Adelie Foods Ltd,No
Http://opendatacommunities.org/id/metropolitan-district-council/leeds,Leeds City Council,31/01/2020,Resources and Housing,Commercial Services,Supplies and Services,Operational Furniture And Equipment,203,21/01/2020,2001-00504,0.00,200.05,R,Adelie Foods Ltd,No
Http://opendatacommunities.org/id/metropolitan-district-council/leeds,Leeds City Council,31/01/2020,Resources and Housing,Commercial Services,Supplies and Services,Operational Furniture And Equipment,203,22/01/2020,2001-00505,0.00,258.15,R,Adelie Foods Ltd,No
Http://opendatacommunities.org/id/metropolitan-district-council/leeds,Leeds City Council,31/01/2020,Resources and Housing,Commercial Services,Supplies and Services,Food & Drink,231,22/01/2020,2001-00506,0.00,198.61,R,Adelie Foods Ltd,No
Http://opendatacommunities.org/id/metropolitan-district-council/leeds,Leeds City Council,31/01/2020,Resources and Housing,Commercial Services,Supplies and Services,Food & Drink,231,23/01/2020,2001-00507,0.00,104.66,R,Adelie Foods Ltd,No
Http://opendatacommunities.org/id/metropolitan-district-council/leeds,Leeds City Council,31/01/2020,Resources and Housing,Commercial Services,Supplies and Services,Food & Drink,231,29/01/2020,2001-00508,0.00,230.34,R,Adelie Foods Ltd,No
Http://opendatacommunities.org/id/metropolitan-district-council/leeds,Leeds City Council,31/01/2020,Resources and Housing,Leeds Building Services,Supplies and Services,Operational Materials,205,08/01/2020,2001-00509,0.00,1119.92,R,Adi Global,No
Http://opendatacommunities.org/id/metropolitan-district-council/leeds,Leeds City Council,31/01/2020,Resources and Housing,Leeds Building Services,Supplies and Services,Operational Materials,205,08/01/2020,2001-00510,0.00,73.42,R,Adi Global,No
Http://opendatacommunities.org/id/metropolitan-district-council/leeds,Leeds City Council,31/01/2020,Resources and Housing,Leeds Building Services,Supplies and Services,Operational Materials,205,08/01/2020,2001-00511,0.00,36.75,R,Adi Global,No
Http://opendatacommunities.org/id/metropolitan-district-council/leeds,Leeds City Council,31/01/2020,Resources and Housing,Leeds Building Services,Supplies and Services,Operational Materials,205,08/01/2020,2001-00512,0.00,31.48,R,Adi Global,No
Http://opendatacommunities.org/id/metropolitan-district-council/leeds,Leeds City Council,31/01/2020,Resources and Housing,Leeds Building Services,Supplies and Services,Operational Materials,205,10/01/2020,2001-00513,0.00,599.96,R,Adi Global,No
Http://opendatacommunities.org/id/metropolitan-district-council/leeds,Leeds City Council,31/01/2020,Resources and Housing,Leeds Building Services,Supplies and Services,Operational Materials,205,10/01/2020,2001-00514,0.00,41.45,R,Adi Global,No
Http://opendatacommunities.org/id/metropolitan-district-council/leeds,Leeds City Council,31/01/2020,Resources and Housing,Leeds Building Services,Supplies and Services,Operational Materials,205,10/01/2020,2001-00515,0.00,51.13,R,Adi Global,No
Http://opendatacommunities.org/id/metropolitan-district-council/leeds,Leeds City Council,31/01/2020,Resources and Housing,Leeds Building Services,Supplies and Services,Operational Materials,205,10/01/2020,2001-00516,0.00,294.25,R,Adi Global,No
Http://opendatacommunities.org/id/metropolitan-district-council/leeds,Leeds City Council,31/01/2020,Resources and Housing,Leeds Building Services,Supplies and Services,Operational Materials,205,13/01/2020,2001-00517,0.00,176.55,R,Adi Global,No
Http://opendatacommunities.org/id/metropolitan-district-council/leeds,Leeds City Council,31/01/2020,Resources and Housing,Leeds Building Services,Supplies and Services,Operational Materials,205,13/01/2020,2001-00518,0.00,23.95,R,Adi Global,No
Http://opendatacommunities.org/id/metropolitan-district-council/leeds,Leeds City Council,31/01/2020,Resources and Housing,Leeds Building Services,Supplies and Services,Operational Materials,205,13/01/2020,2001-00519,0.00,14.32,R,Adi Global,No
Http://opendatacommunities.org/id/metropolitan-district-council/leeds,Leeds City Council,31/01/2020,Resources and Housing,Leeds Building Services,Supplies and Services,Operational Materials,205,13/01/2020,2001-00520,0.00,61.61,R,Adi Global,No
Http://opendatacommunities.org/id/metropolitan-district-council/leeds,Leeds City Council,31/01/2020,Resources and Housing,Leeds Building Services,Supplies and Services,Stores - Central And Other Depots,5,13/01/2020,2001-00521,0.00,66.40,R,Adi Global,No
Http://opendatacommunities.org/id/metropolitan-district-council/leeds,Leeds City Council,31/01/2020,Resources and Housing,Leeds Building Services,Supplies and Services,Operational Materials,205,13/01/2020,2001-00522,0.00,98.40,R,Adi Global,No
Http://opendatacommunities.org/id/metropolitan-district-council/leeds,Leeds City Council,31/01/2020,Resources and Housing,Leeds Building Services,Supplies and Services,Operational Materials,205,13/01/2020,2001-00523,0.00,51.00,R,Adi Global,No
Http://opendatacommunities.org/id/metropolitan-district-council/leeds,Leeds City Council,31/01/2020,Resources and Housing,Leeds Building Services,Supplies and Services,Operational Materials,205,13/01/2020,2001-00524,0.00,98.40,R,Adi Global,No
Http://opendatacommunities.org/id/metropolitan-district-council/leeds,Leeds City Council,31/01/2020,Resources and Housing,Leeds Building Services,Supplies and Services,Operational Materials,205,13/01/2020,2001-00525,0.00,182.00,R,Adi Global,No
Http://opendatacommunities.org/id/metropolitan-district-council/leeds,Leeds City Council,31/01/2020,Resources and Housing,Leeds Building Services,Supplies and Services,Operational Materials,205,15/01/2020,2001-00526,0.00,-19.86,R,Adi Global,No
Http://opendatacommunities.org/id/metropolitan-district-council/leeds,Leeds City Council,31/01/2020,Resources and Housing,Leeds Building Services,Supplies and Services,Operational Materials,205,15/01/2020,2001-00527,0.00,596.00,R,Adi Global,No
Http://opendatacommunities.org/id/metropolitan-district-council/leeds,Leeds City Council,31/01/2020,Resources and Housing,Leeds Building Services,Supplies and Services,Operational Materials,205,15/01/2020,2001-00528,0.00,30.15,R,Adi Global,No
Http://opendatacommunities.org/id/metropolitan-district-council/leeds,Leeds City Council,31/01/2020,Resources and Housing,Leeds Building Services,Supplies and Services,Stores - Central And Other Depots,5,15/01/2020,2001-00529,0.00,19.76,R,Adi Global,No
Http://opendatacommunities.org/id/metropolitan-district-council/leeds,Leeds City Council,31/01/2020,Resources and Housing,Leeds Building Services,Supplies and Services,Operational Materials,205,15/01/2020,2001-00530,0.00,-30.15,R,Adi Global,No
Http://opendatacommunities.org/id/metropolitan-district-council/leeds,Leeds City Council,31/01/2020,Resources and Housing,Leeds Building Services,Supplies and Services,Operational Materials,205,15/01/2020,2001-00531,0.00,-10.76,R,Adi Global,No
Http://opendatacommunities.org/id/metropolitan-district-council/leeds,Leeds City Council,31/01/2020,Resources and Housing,Leeds Building Services,Supplies and Services,Operational Materials,205,15/01/2020,2001-00532,0.00,10.76,R,Adi Global,No
Http://opendatacommunities.org/id/metropolitan-district-council/leeds,Leeds City Council,31/01/2020,Resources and Housing,Leeds Building Services,Supplies and Services,Operational Materials,205,16/01/2020,2001-00533,0.00,19.86,R,Adi Global,No
Http://opendatacommunities.org/id/metropolitan-district-council/leeds,Leeds City Council,31/01/2020,Resources and Housing,Leeds Building Services,Supplies and Services,Operational Materials,205,20/01/2020,2001-00534,0.00,69.55,R,Adi Global,No
Http://opendatacommunities.org/id/metropolitan-district-council/leeds,Leeds City Council,31/01/2020,Resources and Housing,Leeds Building Services,Supplies and Services,Operational Materials,205,22/01/2020,2001-00535,0.00,87.01,R,Adi Global,No
Http://opendatacommunities.org/id/metropolitan-district-council/leeds,Leeds City Council,31/01/2020,Resources and Housing,Leeds Building Services,Supplies and Services,Stores - Central And Other Depots,5,22/01/2020,2001-00536,0.00,97.50,R,Adi Global,No
Http://opendatacommunities.org/id/metropolitan-district-council/leeds,Leeds City Council,31/01/2020,Resources and Housing,Leeds Building Services,Supplies and Services,Operational Materials,205,22/01/2020,2001-00537,0.00,5.35,R,Adi Global,No
Http://opendatacommunities.org/id/metropolitan-district-council/leeds,Leeds City Council,31/01/2020,Resources and Housing,Leeds Building Services,Supplies and Services,Operational Materials,205,22/01/2020,2001-00538,0.00,603.98,R,Adi Global,No
Http://opendatacommunities.org/id/metropolitan-district-council/leeds,Leeds City Council,31/01/2020,Resources and Housing,Leeds Building Services,Supplies and Services,Operational Materials,205,24/01/2020,2001-00539,0.00,53.15,R,Adi Global,No
Http://opendatacommunities.org/id/metropolitan-district-council/leeds,Leeds City Council,31/01/2020,Resources and Housing,Leeds Building Services,Supplies and Services,Operational Materials,205,24/01/2020,2001-00540,0.00,50.41,R,Adi Global,No
Http://opendatacommunities.org/id/metropolitan-district-council/leeds,Leeds City Council,31/01/2020,Insurance,Insurance,Income,Other Income,973,30/01/2020,2001-00541,0.00,267.45,R,Admiral Insurance,No
Http://opendatacommunities.org/id/metropolitan-district-council/leeds,Leeds City Council,31/01/2020,City Development,Libraries  Arts & Heritage  ,Supplies and Services,Computer Software & Equipment,214,02/12/2019,2001-00542,0.00,9.98,R,Adobe Photogphy Plan,Yes
Http://opendatacommunities.org/id/metropolitan-district-council/leeds,Leeds City Council,31/01/2020,Children and Families,Social Care,Third Party Payments,Independent Fostering Agencies,509,08/01/2020,2001-00543,0.00,2850.00,R,Adolescent And Childrens Trust,No
Http://opendatacommunities.org/id/metropolitan-district-council/leeds,Leeds City Council,31/01/2020,Children and Families,Social Care,Third Party Payments,Independent Fostering Agencies,509,08/01/2020,2001-00544,0.00,3268.20,R,Adolescent And Childrens Trust,No
Http://opendatacommunities.org/id/metropolitan-district-council/leeds,Leeds City Council,31/01/2020,Children and Families,Social Care,Third Party Payments,Independent Fostering Agencies,509,08/01/2020,2001-00545,0.00,3268.20,R,Adolescent And Childrens Trust,No
Http://opendatacommunities.org/id/metropolitan-district-council/leeds,Leeds City Council,31/01/2020,Children and Families,Social Care,Third Party Payments,Independent Fostering Agencies,509,08/01/2020,2001-00546,0.00,3202.84,R,Adolescent And Childrens Trust,No
Http://opendatacommunities.org/id/metropolitan-district-council/leeds,Leeds City Council,31/01/2020,Children and Families,Social Care,Third Party Payments,Independent Fostering Agencies,509,08/01/2020,2001-00547,0.00,3202.84,R,Adolescent And Childrens Trust,No
Http://opendatacommunities.org/id/metropolitan-district-council/leeds,Leeds City Council,31/01/2020,Children and Families,Social Care,Third Party Payments,Independent Fostering Agencies,509,08/01/2020,2001-00548,0.00,427.04,R,Adolescent And Childrens Trust,No
Http://opendatacommunities.org/id/metropolitan-district-council/leeds,Leeds City Council,31/01/2020,Children and Families,Social Care,Third Party Payments,Independent Fostering Agencies,509,08/01/2020,2001-00549,0.00,427.04,R,Adolescent And Childrens Trust,No
Http://opendatacommunities.org/id/metropolitan-district-council/leeds,Leeds City Council,31/01/2020,Children and Families,Social Care,Third Party Payments,Independent Fostering Agencies,509,08/01/2020,2001-00550,0.00,3460.80,R,Adolescent And Childrens Trust,No
Http://opendatacommunities.org/id/metropolitan-district-council/leeds,Leeds City Council,31/01/2020,Children and Families,Social Care,Third Party Payments,Independent Fostering Agencies,509,08/01/2020,2001-00551,0.00,3460.80,R,Adolescent And Childrens Trust,No
Http://opendatacommunities.org/id/metropolitan-district-council/leeds,Leeds City Council,31/01/2020,Children and Families,Social Care,Third Party Payments,Independent Fostering Agencies,509,08/01/2020,2001-00552,0.00,3202.84,R,Adolescent And Childrens Trust,No
Http://opendatacommunities.org/id/metropolitan-district-council/leeds,Leeds City Council,31/01/2020,Children and Families,Social Care,Third Party Payments,Independent Fostering Agencies,509,08/01/2020,2001-00553,0.00,3023.87,R,Adolescent And Childrens Trust,No
Http://opendatacommunities.org/id/metropolitan-district-council/leeds,Leeds City Council,31/01/2020,Children and Families,Social Care,Third Party Payments,Independent Fostering Agencies,509,08/01/2020,2001-00554,0.00,3202.84,R,Adolescent And Childrens Trust,No
Http://opendatacommunities.org/id/metropolitan-district-council/leeds,Leeds City Council,31/01/2020,Children and Families,Social Care,Third Party Payments,Independent Fostering Agencies,509,08/01/2020,2001-00555,0.00,3202.84,R,Adolescent And Childrens Trust,No
Http://opendatacommunities.org/id/metropolitan-district-council/leeds,Leeds City Council,31/01/2020,Children and Families,Social Care,Third Party Payments,Independent Fostering Agencies,509,08/01/2020,2001-00556,0.00,3202.84,R,Adolescent And Childrens Trust,No
Http://opendatacommunities.org/id/metropolitan-district-council/leeds,Leeds City Council,31/01/2020,Children and Families,Social Care,Third Party Payments,Independent Fostering Agencies,509,08/01/2020,2001-00557,0.00,1905.00,R,Adolescent And Childrens Trust,No
Http://opendatacommunities.org/id/metropolitan-district-council/leeds,Leeds City Council,31/01/2020,Children and Families,Social Care,Third Party Payments,Independent Fostering Agencies,509,10/01/2020,2001-00558,0.00,637.80,R,Adolescent And Childrens Trust,No
Http://opendatacommunities.org/id/metropolitan-district-council/leeds,Leeds City Council,31/01/2020,Children and Families,Social Care,Third Party Payments,Independent Fostering Agencies,509,31/01/2020,2001-00559,0.00,3479.86,R,Adolescent And Childrens Trust,No
Http://opendatacommunities.org/id/metropolitan-district-council/leeds,Leeds City Council,31/01/2020,Children and Families,Social Care,Third Party Payments,Independent Fostering Agencies,509,31/01/2020,2001-00560,0.00,3309.60,R,Adolescent And Childrens Trust,No
Http://opendatacommunities.org/id/metropolitan-district-council/leeds,Leeds City Council,31/01/2020,Strategic Landlord,Housing Management,Premises,Premises Security Services,162,03/01/2020,2001-00561,0.00,171.00,R,Adt Fire And Security Plc,No
Http://opendatacommunities.org/id/metropolitan-district-council/leeds,Leeds City Council,31/01/2020,Resources and Housing,Leeds Building Services,Supplies and Services,Other Hired And Contracted Services,265,30/01/2020,2001-00562,0.00,14312.00,R,Adt Fire And Security Plc,No
Http://opendatacommunities.org/id/metropolitan-district-council/leeds,Leeds City Council As Accountable Body,31/01/2020,Social Services Pooled Budgets,Jcs For People With Learning Disabilitie,Third Party Payments,Residential,580,08/01/2020,2001-00563,0.00,17213.56,R,Advitam Ltd,No
Http://opendatacommunities.org/id/metropolitan-district-council/leeds,Leeds City Council,31/01/2020,Adults and Health,Services For Adults Under 65 Learn/Dis,Third Party Payments,Payments To Voluntary Organisations,561,09/01/2020,2001-00564,0.00,17944.96,R,Advonet,No
Http://opendatacommunities.org/id/metropolitan-district-council/leeds,Leeds City Council,31/01/2020,Adults and Health,Services For Older People - 65 And Over,Third Party Payments,Payments To Voluntary Organisations,561,17/01/2020,2001-00565,0.00,103916.67,R,Advonet,No
Http://opendatacommunities.org/id/metropolitan-district-council/leeds,Leeds City Council,31/01/2020,Children and Families,Social Care,Third Party Payments,Placement Support,550,27/01/2020,2001-00566,0.00,3344.70,R,Advonet,No
Http://opendatacommunities.org/id/metropolitan-district-council/leeds,Leeds City Council,31/01/2020,Children and Families,Social Care,Third Party Payments,Contact,548,30/01/2020,2001-00567,0.00,542.40,R,Advonet,No
Http://opendatacommunities.org/id/metropolitan-district-council/leeds,Leeds City Council,31/01/2020,Adults and Health,Services For Adults Under 65 Mental/Dis,Third Party Payments,Fees - Level 4,520,16/01/2020,2001-00568,0.00,355.63,R,Ae Bia Assessments Limited,No
Http://opendatacommunities.org/id/metropolitan-district-council/leeds,Leeds City Council,31/01/2020,Adults and Health,Services For Adults Under 65 Mental/Dis,Third Party Payments,Fees - Level 4,520,16/01/2020,2001-00569,0.00,244.83,R,Ae Bia Assessments Limited,No
Http://opendatacommunities.org/id/metropolitan-district-council/leeds,Leeds City Council,31/01/2020,Adults and Health,Services For Adults Under 65 Mental/Dis,Third Party Payments,Fees - Level 4,520,16/01/2020,2001-00570,0.00,244.83,R,Ae Bia Assessments Limited,No
Http://opendatacommunities.org/id/metropolitan-district-council/leeds,Leeds City Council,31/01/2020,Adults and Health,Services For Adults Under 65 Mental/Dis,Third Party Payments,Fees - Level 4,520,16/01/2020,2001-00571,0.00,244.83,R,Ae Bia Assessments Limited,No
Http://opendatacommunities.org/id/metropolitan-district-council/leeds,Leeds City Council,31/01/2020,Adults and Health,Services For Adults Under 65 Mental/Dis,Third Party Payments,Fees - Level 4,520,16/01/2020,2001-00572,0.00,198.00,R,Ae Bia Assessments Limited,No
Http://opendatacommunities.org/id/metropolitan-district-council/leeds,Leeds City Council,31/01/2020,Adults and Health,Services For Adults Under 65 Mental/Dis,Third Party Payments,Fees - Level 4,520,16/01/2020,2001-00573,0.00,198.00,R,Ae Bia Assessments Limited,No
Http://opendatacommunities.org/id/metropolitan-district-council/leeds,Leeds City Council,31/01/2020,Adults and Health,Services For Adults Under 65 Mental/Dis,Third Party Payments,Fees - Level 4,520,16/01/2020,2001-00574,0.00,244.83,R,Ae Bia Assessments Limited,No
Http://opendatacommunities.org/id/metropolitan-district-council/leeds,Leeds City Council,31/01/2020,Adults and Health,Services For Adults Under 65 Mental/Dis,Third Party Payments,Fees - Level 4,520,16/01/2020,2001-00575,0.00,205.67,R,Ae Bia Assessments Limited,No
Http://opendatacommunities.org/id/metropolitan-district-council/leeds,Leeds City Council,31/01/2020,Adults and Health,Services For Adults Under 65 Mental/Dis,Third Party Payments,Fees - Level 4,520,16/01/2020,2001-00576,0.00,198.00,R,Ae Bia Assessments Limited,No
Http://opendatacommunities.org/id/metropolitan-district-council/leeds,Leeds City Council,31/01/2020,Adults and Health,Services For Adults Under 65 Mental/Dis,Third Party Payments,Fees - Level 4,520,16/01/2020,2001-00577,0.00,244.83,R,Ae Bia Assessments Limited,No
Http://opendatacommunities.org/id/metropolitan-district-council/leeds,Leeds City Council,31/01/2020,Adults and Health,Services For Adults Under 65 Mental/Dis,Third Party Payments,Fees - Level 4,520,16/01/2020,2001-00578,0.00,235.47,R,Ae Bia Assessments Limited,No
Http://opendatacommunities.org/id/metropolitan-district-council/leeds,Leeds City Council,31/01/2020,Adults and Health,Services For Adults Under 65 Mental/Dis,Third Party Payments,Fees - Level 4,520,16/01/2020,2001-00579,0.00,235.47,R,Ae Bia Assessments Limited,No
Http://opendatacommunities.org/id/metropolitan-district-council/leeds,Leeds City Council,31/01/2020,Adults and Health,Services For Adults Under 65 Mental/Dis,Third Party Payments,Fees - Level 4,520,21/01/2020,2001-00580,0.00,198.00,R,Ae Bia Assessments Limited,No
Http://opendatacommunities.org/id/metropolitan-district-council/leeds,Leeds City Council,31/01/2020,Adults and Health,Services For Adults Under 65 Mental/Dis,Third Party Payments,Fees - Level 4,520,21/01/2020,2001-00581,0.00,235.47,R,Ae Bia Assessments Limited,No
Http://opendatacommunities.org/id/metropolitan-district-council/leeds,Leeds City Council,31/01/2020,Adults and Health,Services For Adults Under 65 Mental/Dis,Third Party Payments,Fees - Level 4,520,21/01/2020,2001-00582,0.00,198.00,R,Ae Bia Assessments Limited,No
Http://opendatacommunities.org/id/metropolitan-district-council/leeds,Leeds City Council,31/01/2020,City Development,Highways,Capital,Other Costs,7,17/01/2020,2001-00583,0.00,27347.54,C,Aecom Limited,No
Http://opendatacommunities.org/id/metropolitan-district-council/leeds,Leeds City Council,31/01/2020,City Development,Highways,Capital,Other Costs,7,17/01/2020,2001-00584,0.00,50129.61,C,Aecom Limited,No
Http://opendatacommunities.org/id/metropolitan-district-council/leeds,Leeds City Council,31/01/2020,City Development,Highways,Capital,Other Costs,7,17/01/2020,2001-00585,0.00,20802.98,C,Aecom Limited,No
Http://opendatacommunities.org/id/metropolitan-district-council/leeds,Leeds City Council,31/01/2020,Adults and Health,Services For Adults Under 65 Mental/Dis,Third Party Payments,Home Care,568,02/01/2020,2001-00586,0.00,1064.30,R,Aegis Care Solutions Ltd,No
Http://opendatacommunities.org/id/metropolitan-district-council/leeds,Leeds City Council,31/01/2020,Adults and Health,Services For Adults Under 65 Mental/Dis,Third Party Payments,Home Care,568,02/01/2020,2001-00587,0.00,538.00,R,Aegis Care Solutions Ltd,No
Http://opendatacommunities.org/id/metropolitan-district-council/leeds,Leeds City Council,31/01/2020,Adults and Health,Services For Adults Under 65 Mental/Dis,Third Party Payments,Home Care,568,02/01/2020,2001-00588,0.00,906.00,R,Aegis Care Solutions Ltd,No
Http://opendatacommunities.org/id/metropolitan-district-council/leeds,Leeds City Council,31/01/2020,Adults and Health,Services For Adults Under 65 Mental/Dis,Third Party Payments,Home Care,568,02/01/2020,2001-00589,0.00,427.20,R,Aegis Care Solutions Ltd,No
Http://opendatacommunities.org/id/metropolitan-district-council/leeds,Leeds City Council,31/01/2020,Adults and Health,Services For Adults Under 65 Mental/Dis,Third Party Payments,Home Care,568,02/01/2020,2001-00590,0.00,504.00,R,Aegis Care Solutions Ltd,No
Http://opendatacommunities.org/id/metropolitan-district-council/leeds,Leeds City Council,31/01/2020,Adults and Health,Services For Adults Under 65 Mental/Dis,Third Party Payments,Home Care,568,02/01/2020,2001-00591,0.00,427.20,R,Aegis Care Solutions Ltd,No
Http://opendatacommunities.org/id/metropolitan-district-council/leeds,Leeds City Council,31/01/2020,Adults and Health,Services For Adults Under 65 Mental/Dis,Third Party Payments,Home Care,568,02/01/2020,2001-00592,0.00,71.20,R,Aegis Care Solutions Ltd,No
Http://opendatacommunities.org/id/metropolitan-district-council/leeds,Leeds City Council,31/01/2020,Adults and Health,Services For Adults Under 65 Mental/Dis,Third Party Payments,Home Care,568,24/01/2020,2001-00593,0.00,1771.20,R,Aegis Care Solutions Ltd,No
Http://opendatacommunities.org/id/metropolitan-district-council/leeds,Leeds City Council,31/01/2020,Adults and Health,Services For Adults Under 65 Mental/Dis,Third Party Payments,Home Care,568,24/01/2020,2001-00594,0.00,4238.40,R,Aegis Care Solutions Ltd,No
Http://opendatacommunities.org/id/metropolitan-district-council/leeds,Leeds City Council,31/01/2020,Adults and Health,Services For Adults Under 65 Mental/Dis,Third Party Payments,Home Care,568,31/01/2020,2001-00595,0.00,910.00,R,Aegis Care Solutions Ltd,No
Http://opendatacommunities.org/id/metropolitan-district-council/leeds,Leeds City Council,31/01/2020,Adults and Health,Services For Adults Under 65 Mental/Dis,Third Party Payments,Home Care,568,31/01/2020,2001-00596,0.00,486.60,R,Aegis Care Solutions Ltd,No
Http://opendatacommunities.org/id/metropolitan-district-council/leeds,Leeds City Council,31/01/2020,Adults and Health,Services For Adults Under 65 Mental/Dis,Third Party Payments,Home Care,568,31/01/2020,2001-00597,0.00,569.60,R,Aegis Care Solutions Ltd,No
Http://opendatacommunities.org/id/metropolitan-district-council/leeds,Leeds City Council,31/01/2020,Adults and Health,Services For Adults Under 65 Mental/Dis,Third Party Payments,Home Care,568,31/01/2020,2001-00598,0.00,284.80,R,Aegis Care Solutions Ltd,No
Http://opendatacommunities.org/id/metropolitan-district-council/leeds,Leeds City Council,31/01/2020,Adults and Health,Services For Adults Under 65 Mental/Dis,Third Party Payments,Home Care,568,31/01/2020,2001-00599,0.00,315.80,R,Aegis Care Solutions Ltd,No
Http://opendatacommunities.org/id/metropolitan-district-council/leeds,Leeds City Council,31/01/2020,Adults and Health,Services For Adults Under 65 Mental/Dis,Third Party Payments,Home Care,568,31/01/2020,2001-00600,0.00,403.20,R,Aegis Care Solutions Ltd,No
Http://opendatacommunities.org/id/metropolitan-district-council/leeds,Leeds City Council,31/01/2020,City Development,Libraries  Arts & Heritage,Supplies and Services,Operational Furniture And Equipment,203,09/01/2020,2001-00601,0.00,600.00,R,Aesg Ltd,No
Http://opendatacommunities.org/id/metropolitan-district-council/leeds,Leeds City Council As Accountable Body,31/01/2020,Social Services Pooled Budgets,Jcs For People With Learning Disabilitie,Third Party Payments,Home Care,568,03/01/2020,2001-00602,0.00,1591.20,R,Affinity Trust,No
Http://opendatacommunities.org/id/metropolitan-district-council/leeds,Leeds City Council As Accountable Body,31/01/2020,Social Services Pooled Budgets,Jcs For People With Learning Disabilitie,Third Party Payments,Day Centre,564,03/01/2020,2001-00603,0.00,1468.80,R,Affinity Trust,No
Http://opendatacommunities.org/id/metropolitan-district-council/leeds,Leeds City Council As Accountable Body,31/01/2020,Social Services Pooled Budgets,Jcs For People With Learning Disabilitie,Third Party Payments,Day Centre,564,03/01/2020,2001-00604,0.00,1041.72,R,Affinity Trust,No
Http://opendatacommunities.org/id/metropolitan-district-council/leeds,Leeds City Council As Accountable Body,31/01/2020,Social Services Pooled Budgets,Jcs For People With Learning Disabilitie,Third Party Payments,Home Care,568,03/01/2020,2001-00605,0.00,599.67,R,Affinity Trust,No
Http://opendatacommunities.org/id/metropolitan-district-council/leeds,Leeds City Council As Accountable Body,31/01/2020,Social Services Pooled Budgets,Jcs For People With Learning Disabilitie,Third Party Payments,Home Care,568,03/01/2020,2001-00606,0.00,2805.60,R,Affinity Trust,No
Http://opendatacommunities.org/id/metropolitan-district-council/leeds,Leeds City Council As Accountable Body,31/01/2020,Social Services Pooled Budgets,Jcs For People With Learning Disabilitie,Third Party Payments,Home Care,568,03/01/2020,2001-00607,0.00,996.81,R,Affinity Trust,No
Http://opendatacommunities.org/id/metropolitan-district-council/leeds,Leeds City Council As Accountable Body,31/01/2020,Social Services Pooled Budgets,Jcs For People With Learning Disabilitie,Third Party Payments,Home Care,568,03/01/2020,2001-00608,0.00,820.80,R,Affinity Trust,No
Http://opendatacommunities.org/id/metropolitan-district-council/leeds,Leeds City Council As Accountable Body,31/01/2020,Social Services Pooled Budgets,Jcs For People With Learning Disabilitie,Third Party Payments,Home Care,568,03/01/2020,2001-00609,0.00,367.20,R,Affinity Trust,No
Http://opendatacommunities.org/id/metropolitan-district-council/leeds,Leeds City Council As Accountable Body,31/01/2020,Social Services Pooled Budgets,Jcs For People With Learning Disabilitie,Third Party Payments,Day Centre,564,03/01/2020,2001-00610,0.00,2072.52,R,Affinity Trust,No
Http://opendatacommunities.org/id/metropolitan-district-council/leeds,Leeds City Council As Accountable Body,31/01/2020,Social Services Pooled Budgets,Jcs For People With Learning Disabilitie,Transfer Payments,Personal Budgets,627,03/01/2020,2001-00611,0.00,715.31,R,Affinity Trust,No
Http://opendatacommunities.org/id/metropolitan-district-council/leeds,Leeds City Council As Accountable Body,31/01/2020,Social Services Pooled Budgets,Jcs For People With Learning Disabilitie,Third Party Payments,Home Care,568,03/01/2020,2001-00612,0.00,1980.00,R,Affinity Trust,No
Http://opendatacommunities.org/id/metropolitan-district-council/leeds,Leeds City Council As Accountable Body,31/01/2020,Social Services Pooled Budgets,Jcs For People With Learning Disabilitie,Third Party Payments,Home Care,568,07/01/2020,2001-00613,0.00,623.22,R,Affinity Trust,No
Http://opendatacommunities.org/id/metropolitan-district-council/leeds,Leeds City Council As Accountable Body,31/01/2020,Social Services Pooled Budgets,Jcs For People With Learning Disabilitie,Third Party Payments,Home Care,568,07/01/2020,2001-00614,0.00,319.60,R,Affinity Trust,No
Http://opendatacommunities.org/id/metropolitan-district-council/leeds,Leeds City Council As Accountable Body,31/01/2020,Social Services Pooled Budgets,Jcs For People With Learning Disabilitie,Third Party Payments,Day Centre,564,07/01/2020,2001-00615,0.00,410.40,R,Affinity Trust,No
Http://opendatacommunities.org/id/metropolitan-district-council/leeds,Leeds City Council As Accountable Body,31/01/2020,Social Services Pooled Budgets,Jcs For People With Learning Disabilitie,Third Party Payments,Home Care,568,07/01/2020,2001-00616,0.00,1581.35,R,Affinity Trust,No
Http://opendatacommunities.org/id/metropolitan-district-council/leeds,Leeds City Council,31/01/2020,Adults and Health,Services For Older People Under 65 P/Dis,Third Party Payments,Home Care,568,07/01/2020,2001-00617,0.00,537.32,R,Affinity Trust,No
Http://opendatacommunities.org/id/metropolitan-district-council/leeds,Leeds City Council As Accountable Body,31/01/2020,Social Services Pooled Budgets,Jcs For People With Learning Disabilitie,Third Party Payments,Home Care,568,08/01/2020,2001-00618,0.00,559.30,R,Affinity Trust,No
Http://opendatacommunities.org/id/metropolitan-district-council/leeds,Leeds City Council As Accountable Body,31/01/2020,Social Services Pooled Budgets,Jcs For People With Learning Disabilitie,Third Party Payments,Home Care,568,08/01/2020,2001-00619,0.00,536.12,R,Affinity Trust,No
Http://opendatacommunities.org/id/metropolitan-district-council/leeds,Leeds City Council,31/01/2020,Adults and Health,Services For Adults Under 65 Mental/Dis,Third Party Payments,HCAIT Community Support,575,09/01/2020,2001-00620,0.00,2737.34,R,Affinity Trust,No
Http://opendatacommunities.org/id/metropolitan-district-council/leeds,Leeds City Council,31/01/2020,Adults and Health,Services For Older People - 65 And Over,Third Party Payments,HCAIT Community Support,575,09/01/2020,2001-00621,0.00,575.28,R,Affinity Trust,No
Http://opendatacommunities.org/id/metropolitan-district-council/leeds,Leeds City Council As Accountable Body,31/01/2020,Social Services Pooled Budgets,Jcs For People With Learning Disabilitie,Third Party Payments,Home Care,568,10/01/2020,2001-00622,0.00,3963.75,R,Affinity Trust,No
Http://opendatacommunities.org/id/metropolitan-district-council/leeds,Leeds City Council As Accountable Body,31/01/2020,Social Services Pooled Budgets,Jcs For People With Learning Disabilitie,Third Party Payments,Home Care,568,14/01/2020,2001-00623,0.00,204.32,R,Affinity Trust,No
Http://opendatacommunities.org/id/metropolitan-district-council/leeds,Leeds City Council,31/01/2020,Adults and Health,Services For Older People - 65 And Over,Third Party Payments,Home Care,568,21/01/2020,2001-00624,0.00,-0.02,R,Affinity Trust,No
Http://opendatacommunities.org/id/metropolitan-district-council/leeds,Leeds City Council As Accountable Body,31/01/2020,Social Services Pooled Budgets,Jcs For People With Learning Disabilitie,Third Party Payments,Home Care,568,21/01/2020,2001-00625,0.00,303.64,R,Affinity Trust,No
Http://opendatacommunities.org/id/metropolitan-district-council/leeds,Leeds City Council,31/01/2020,Adults and Health,Services For Older People - 65 And Over,Third Party Payments,Home Care,568,22/01/2020,2001-00626,0.00,336.40,R,Affinity Trust,No
Http://opendatacommunities.org/id/metropolitan-district-council/leeds,Leeds City Council,31/01/2020,Adults and Health,Services For Older People - 65 And Over,Third Party Payments,Home Care,568,24/01/2020,2001-00627,0.00,23.00,R,Affinity Trust,No
Http://opendatacommunities.org/id/metropolitan-district-council/leeds,Leeds City Council As Accountable Body,31/01/2020,Social Services Pooled Budgets,Jcs For People With Learning Disabilitie,Third Party Payments,Day Centre,564,29/01/2020,2001-00628,0.00,349.47,R,Affinity Trust,No
Http://opendatacommunities.org/id/metropolitan-district-council/leeds,Leeds City Council As Accountable Body,31/01/2020,Social Services Pooled Budgets,Jcs For People With Learning Disabilitie,Third Party Payments,Home Care,568,30/01/2020,2001-00629,0.00,820.80,R,Affinity Trust,No
Http://opendatacommunities.org/id/metropolitan-district-council/leeds,Leeds City Council As Accountable Body,31/01/2020,Social Services Pooled Budgets,Jcs For People With Learning Disabilitie,Third Party Payments,Home Care,568,30/01/2020,2001-00630,0.00,367.20,R,Affinity Trust,No
Http://opendatacommunities.org/id/metropolitan-district-council/leeds,Leeds City Council As Accountable Body,31/01/2020,Social Services Pooled Budgets,Jcs For People With Learning Disabilitie,Third Party Payments,Home Care,568,30/01/2020,2001-00631,0.00,1390.26,R,Affinity Trust,No
Http://opendatacommunities.org/id/metropolitan-district-council/leeds,Leeds City Council As Accountable Body,31/01/2020,Social Services Pooled Budgets,Jcs For People With Learning Disabilitie,Third Party Payments,Home Care,568,30/01/2020,2001-00632,0.00,559.30,R,Affinity Trust,No
Http://opendatacommunities.org/id/metropolitan-district-council/leeds,Leeds City Council As Accountable Body,31/01/2020,Social Services Pooled Budgets,Jcs For People With Learning Disabilitie,Third Party Payments,Home Care,568,30/01/2020,2001-00633,0.00,527.34,R,Affinity Trust,No
Http://opendatacommunities.org/id/metropolitan-district-council/leeds,Leeds City Council As Accountable Body,31/01/2020,Social Services Pooled Budgets,Jcs For People With Learning Disabilitie,Third Party Payments,Home Care,568,30/01/2020,2001-00634,0.00,1269.91,R,Affinity Trust,No
Http://opendatacommunities.org/id/metropolitan-district-council/leeds,Leeds City Council As Accountable Body,31/01/2020,Social Services Pooled Budgets,Jcs For People With Learning Disabilitie,Third Party Payments,Home Care,568,30/01/2020,2001-00635,0.00,319.60,R,Affinity Trust,No
Http://opendatacommunities.org/id/metropolitan-district-council/leeds,Leeds City Council,31/01/2020,Adults and Health,Services For Older People - 65 And Over,Third Party Payments,Home Care,568,30/01/2020,2001-00636,0.00,511.36,R,Affinity Trust,No
Http://opendatacommunities.org/id/metropolitan-district-council/leeds,Leeds City Council,31/01/2020,Adults and Health,Services For Older People Under 65 P/Dis,Third Party Payments,Home Care,568,31/01/2020,2001-00637,0.00,537.32,R,Affinity Trust,No
Http://opendatacommunities.org/id/metropolitan-district-council/leeds,Leeds City Council As Accountable Body,31/01/2020,Social Services Pooled Budgets,Jcs For People With Learning Disabilitie,Third Party Payments,Home Care,568,31/01/2020,2001-00638,0.00,408.00,R,Affinity Trust,No
Http://opendatacommunities.org/id/metropolitan-district-council/leeds,Leeds City Council As Accountable Body,31/01/2020,Social Services Pooled Budgets,Jcs For People With Learning Disabilitie,Third Party Payments,Home Care,568,31/01/2020,2001-00639,0.00,1134.58,R,Affinity Trust,No
Http://opendatacommunities.org/id/metropolitan-district-council/leeds,Leeds City Council As Accountable Body,31/01/2020,Social Services Pooled Budgets,Jcs For People With Learning Disabilitie,Third Party Payments,Home Care,568,31/01/2020,2001-00640,0.00,2836.45,R,Affinity Trust,No
Http://opendatacommunities.org/id/metropolitan-district-council/leeds,Leeds City Council As Accountable Body,31/01/2020,Social Services Pooled Budgets,Jcs For People With Learning Disabilitie,Third Party Payments,Home Care,568,31/01/2020,2001-00641,0.00,886.89,R,Affinity Trust,No
Http://opendatacommunities.org/id/metropolitan-district-council/leeds,Leeds City Council As Accountable Body,31/01/2020,Social Services Pooled Budgets,Jcs For People With Learning Disabilitie,Third Party Payments,Home Care,568,31/01/2020,2001-00642,0.00,639.20,R,Affinity Trust,No
Http://opendatacommunities.org/id/metropolitan-district-council/leeds,Leeds City Council As Accountable Body,31/01/2020,Social Services Pooled Budgets,Jcs For People With Learning Disabilitie,Third Party Payments,Home Care,568,31/01/2020,2001-00643,0.00,191.76,R,Affinity Trust,No
Http://opendatacommunities.org/id/metropolitan-district-council/leeds,Leeds City Council As Accountable Body,31/01/2020,Social Services Pooled Budgets,Jcs For People With Learning Disabilitie,Third Party Payments,Home Care,568,31/01/2020,2001-00644,0.00,1074.66,R,Affinity Trust,No
Http://opendatacommunities.org/id/metropolitan-district-council/leeds,Leeds City Council As Accountable Body,31/01/2020,Social Services Pooled Budgets,Jcs For People With Learning Disabilitie,Third Party Payments,Home Care,568,31/01/2020,2001-00645,0.00,180.00,R,Affinity Trust,No
Http://opendatacommunities.org/id/metropolitan-district-council/leeds,Leeds City Council,31/01/2020,Adults and Health,Services For Adults Under 65 Mental/Dis,Third Party Payments,Home Care,568,31/01/2020,2001-00646,0.00,479.40,R,Affinity Trust,No
Http://opendatacommunities.org/id/metropolitan-district-council/leeds,Leeds City Council,31/01/2020,Adults and Health,Services For Older People Under 65 P/Dis,Third Party Payments,Home Care,568,31/01/2020,2001-00647,0.00,908.28,R,Affinity Trust,No
Http://opendatacommunities.org/id/metropolitan-district-council/leeds,Leeds City Council As Accountable Body,31/01/2020,Social Services Pooled Budgets,Jcs For People With Learning Disabilitie,Third Party Payments,Home Care,568,31/01/2020,2001-00648,0.00,623.22,R,Affinity Trust,No
Http://opendatacommunities.org/id/metropolitan-district-council/leeds,Leeds City Council,31/01/2020,Adults and Health,Services For Older People Under 65 P/Dis,Third Party Payments,Sheltered Accommodation,569,08/01/2020,2001-00649,0.00,7610.40,R,Affinity Trust North Divisional Office,No
Http://opendatacommunities.org/id/metropolitan-district-council/leeds,Leeds City Council As Accountable Body,31/01/2020,Social Services Pooled Budgets,Jcs For People With Learning Disabilitie,Third Party Payments,Sheltered Accommodation,569,08/01/2020,2001-00650,0.00,119573.36,R,Affinity Trust North Divisional Office,No
Http://opendatacommunities.org/id/metropolitan-district-council/leeds,Leeds City Council,31/01/2020,Communities and Environment,Parks And Countryside  ,Transport,External Hire -Occasional,304,03/12/2019,2001-00651,0.00,950.00,R,Afi Uplift,Yes
Http://opendatacommunities.org/id/metropolitan-district-council/leeds,Leeds City Council,31/01/2020,Communities and Environment,Parks And Countryside  ,Transport,External Hire -Occasional,304,03/12/2019,2001-00652,0.00,950.00,R,Afi Uplift,Yes
Http://opendatacommunities.org/id/metropolitan-district-council/leeds,Leeds City Council,31/01/2020,Communities and Environment,Parks And Countryside  ,Transport,External Hire -Occasional,304,03/12/2019,2001-00653,0.00,950.00,R,Afi Uplift,Yes
Http://opendatacommunities.org/id/metropolitan-district-council/leeds,Leeds City Council,31/01/2020,Communities and Environment,Parks And Countryside  ,Transport,External Hire -Occasional,304,03/12/2019,2001-00654,0.00,950.00,R,Afi Uplift,Yes
Http://opendatacommunities.org/id/metropolitan-district-council/leeds,Leeds City Council,31/01/2020,Communities and Environment,Parks And Countryside  ,Transport,External Hire -Occasional,304,03/12/2019,2001-00655,0.00,950.00,R,Afi Uplift,Yes
Http://opendatacommunities.org/id/metropolitan-district-council/leeds,Leeds City Council,31/01/2020,Resources and Housing,Commercial Services,Supplies and Services,Compensation Claims,200,07/01/2020,2001-00656,0.00,530.40,R,REDACTED PERSONAL DATA,No
Http://opendatacommunities.org/id/metropolitan-district-council/leeds,Leeds City Council,31/01/2020,City Development,Recreation,Supplies and Services,Other Hired And Contracted Services,265,15/01/2020,2001-00657,0.00,4641.00,R,Age Uk Leeds,No
Http://opendatacommunities.org/id/metropolitan-district-council/leeds,Leeds City Council,31/01/2020,Resources and Housing,HRA Housing Leeds,Capital,Other Costs,7,30/01/2020,2001-00658,0.00,80.00,C,REDACTED PERSONAL DATA,No
Http://opendatacommunities.org/id/metropolitan-district-council/leeds,Leeds City Council,31/01/2020,Communities and Environment,Customer Access,Supplies and Services,Bought In Professional Services,277,07/01/2020,2001-00659,0.00,18.00,R,Ahmed Moustafa Moustafa Mousa,No
Http://opendatacommunities.org/id/metropolitan-district-council/leeds,Leeds City Council,31/01/2020,Communities and Environment,Customer Access,Supplies and Services,Bought In Professional Services,277,07/01/2020,2001-00660,0.00,18.00,R,Ahmed Moustafa Moustafa Mousa,No
Http://opendatacommunities.org/id/metropolitan-district-council/leeds,Leeds City Council,31/01/2020,Communities and Environment,Customer Access,Supplies and Services,Bought In Professional Services,277,07/01/2020,2001-00661,0.00,31.50,R,Ahmed Moustafa Moustafa Mousa,No
Http://opendatacommunities.org/id/metropolitan-district-council/leeds,Leeds City Council,31/01/2020,Communities and Environment,Customer Access,Supplies and Services,Bought In Professional Services,277,07/01/2020,2001-00662,0.00,18.00,R,Ahmed Moustafa Moustafa Mousa,No
Http://opendatacommunities.org/id/metropolitan-district-council/leeds,Leeds City Council,31/01/2020,Communities and Environment,Customer Access,Supplies and Services,Bought In Professional Services,277,09/01/2020,2001-00663,0.00,29.70,R,Ahmed Moustafa Moustafa Mousa,No
Http://opendatacommunities.org/id/metropolitan-district-council/leeds,Leeds City Council,31/01/2020,Communities and Environment,Customer Access,Supplies and Services,Bought In Professional Services,277,09/01/2020,2001-00664,0.00,18.00,R,Ahmed Moustafa Moustafa Mousa,No
Http://opendatacommunities.org/id/metropolitan-district-council/leeds,Leeds City Council,31/01/2020,Communities and Environment,Customer Access,Supplies and Services,Bought In Professional Services,277,09/01/2020,2001-00665,0.00,18.00,R,Ahmed Moustafa Moustafa Mousa,No
Http://opendatacommunities.org/id/metropolitan-district-council/leeds,Leeds City Council,31/01/2020,Communities and Environment,Customer Access,Supplies and Services,Bought In Professional Services,277,17/01/2020,2001-00666,0.00,24.00,R,Ahmed Moustafa Moustafa Mousa,No
Http://opendatacommunities.org/id/metropolitan-district-council/leeds,Leeds City Council,31/01/2020,Communities and Environment,Customer Access,Supplies and Services,Bought In Professional Services,277,17/01/2020,2001-00667,0.00,18.00,R,Ahmed Moustafa Moustafa Mousa,No
Http://opendatacommunities.org/id/metropolitan-district-council/leeds,Leeds City Council,31/01/2020,Communities and Environment,Customer Access,Supplies and Services,Bought In Professional Services,277,17/01/2020,2001-00668,0.00,20.70,R,Ahmed Moustafa Moustafa Mousa,No
Http://opendatacommunities.org/id/metropolitan-district-council/leeds,Leeds City Council,31/01/2020,Communities and Environment,Customer Access,Supplies and Services,Bought In Professional Services,277,17/01/2020,2001-00669,0.00,18.00,R,Ahmed Moustafa Moustafa Mousa,No
Http://opendatacommunities.org/id/metropolitan-district-council/leeds,Leeds City Council,31/01/2020,Communities and Environment,Customer Access,Supplies and Services,Bought In Professional Services,277,24/01/2020,2001-00670,0.00,18.00,R,Ahmed Moustafa Moustafa Mousa,No
Http://opendatacommunities.org/id/metropolitan-district-council/leeds,Leeds City Council,31/01/2020,Communities and Environment,Customer Access,Supplies and Services,Bought In Professional Services,277,24/01/2020,2001-00671,0.00,27.00,R,Ahmed Moustafa Moustafa Mousa,No
Http://opendatacommunities.org/id/metropolitan-district-council/leeds,Leeds City Council,31/01/2020,Communities and Environment,Customer Access,Supplies and Services,Bought In Professional Services,277,24/01/2020,2001-00672,0.00,18.00,R,Ahmed Moustafa Moustafa Mousa,No
Http://opendatacommunities.org/id/metropolitan-district-council/leeds,Leeds City Council,31/01/2020,Communities and Environment,Customer Access,Supplies and Services,Bought In Professional Services,277,30/01/2020,2001-00673,0.00,18.00,R,Ahmed Moustafa Moustafa Mousa,No
Http://opendatacommunities.org/id/metropolitan-district-council/leeds,Leeds City Council,31/01/2020,Communities and Environment,Customer Access,Supplies and Services,Bought In Professional Services,277,30/01/2020,2001-00674,0.00,22.50,R,Ahmed Moustafa Moustafa Mousa,No
Http://opendatacommunities.org/id/metropolitan-district-council/leeds,Leeds City Council As Accountable Body,31/01/2020,Social Services Pooled Budgets,Leeds Community Equip Store Pooled Budgt,Supplies and Services,Other Equipment,203,08/01/2020,2001-00675,0.00,3290.00,R,Aidapt Bathrooms Ltd,No
Http://opendatacommunities.org/id/metropolitan-district-council/leeds,Leeds City Council As Accountable Body,31/01/2020,Social Services Pooled Budgets,Leeds Community Equip Store Pooled Budgt,Supplies and Services,Other Equipment,203,08/01/2020,2001-00676,0.00,124.74,R,Aidapt Bathrooms Ltd,No
Http://opendatacommunities.org/id/metropolitan-district-council/leeds,Leeds City Council As Accountable Body,31/01/2020,Social Services Pooled Budgets,Leeds Community Equip Store Pooled Budgt,Supplies and Services,Other Equipment,203,15/01/2020,2001-00677,0.00,1430.00,R,Aidapt Bathrooms Ltd,No
Http://opendatacommunities.org/id/metropolitan-district-council/leeds,Leeds City Council As Accountable Body,31/01/2020,Social Services Pooled Budgets,Leeds Community Equip Store Pooled Budgt,Supplies and Services,Other Equipment,203,30/01/2020,2001-00678,0.00,1430.00,R,Aidapt Bathrooms Ltd,No
Http://opendatacommunities.org/id/metropolitan-district-council/leeds,Leeds City Council As Accountable Body,31/01/2020,Social Services Pooled Budgets,Leeds Community Equip Store Pooled Budgt,Supplies and Services,Other Equipment,203,30/01/2020,2001-00679,0.00,2835.75,R,Aidapt Bathrooms Ltd,No
Http://opendatacommunities.org/id/metropolitan-district-council/leeds,Leeds City Council As Accountable Body,31/01/2020,Social Services Pooled Budgets,Leeds Community Equip Store Pooled Budgt,Supplies and Services,Other Equipment,203,30/01/2020,2001-00680,0.00,205.20,R,Aidapt Bathrooms Ltd,No
Http://opendatacommunities.org/id/metropolitan-district-council/leeds,Leeds City Council As Accountable Body,31/01/2020,Social Services Pooled Budgets,Leeds Community Equip Store Pooled Budgt,Supplies and Services,Other Equipment,203,30/01/2020,2001-00681,0.00,935.00,R,Aidapt Bathrooms Ltd,No
Http://opendatacommunities.org/id/metropolitan-district-council/leeds,Leeds City Council As Accountable Body,31/01/2020,Social Services Pooled Budgets,Leeds Community Equip Store Pooled Budgt,Supplies and Services,Other Equipment,203,30/01/2020,2001-00682,0.00,2030.75,R,Aidapt Bathrooms Ltd,No
Http://opendatacommunities.org/id/metropolitan-district-council/leeds,Leeds City Council As Accountable Body,31/01/2020,Social Services Pooled Budgets,Leeds Community Equip Store Pooled Budgt,Supplies and Services,Other Equipment,203,30/01/2020,2001-00683,0.00,429.00,R,Aidapt Bathrooms Ltd,No
Http://opendatacommunities.org/id/metropolitan-district-council/leeds,Leeds City Council As Accountable Body,31/01/2020,Social Services Pooled Budgets,Leeds Community Equip Store Pooled Budgt,Supplies and Services,Other Equipment,203,30/01/2020,2001-00684,0.00,1529.40,R,Aidapt Bathrooms Ltd,No
Http://opendatacommunities.org/id/metropolitan-district-council/leeds,Leeds City Council,31/01/2020,Children and Families,Learning  ,Supplies and Services,Teaching Materials,202,12/12/2019,2001-00685,0.00,180.00,R,Aid-Training.Co.Uk,Yes
Http://opendatacommunities.org/id/metropolitan-district-council/leeds,Leeds City Council,31/01/2020,Resources and Housing,Leeds Building Services,Supplies and Services,Operational Materials,205,08/01/2020,2001-00686,0.00,105.00,R,Air Force Pneumatics & Hydraulics,No
Http://opendatacommunities.org/id/metropolitan-district-council/leeds,Leeds City Council,31/01/2020,Resources and Housing,Leeds Building Services,Supplies and Services,Operational Materials,205,29/01/2020,2001-00687,0.00,29.40,R,Air Force Pneumatics & Hydraulics,No
Http://opendatacommunities.org/id/metropolitan-district-council/leeds,Leeds City Council,31/01/2020,Resources and Housing,Leeds Building Services,Supplies and Services,Operational Materials,205,30/01/2020,2001-00688,0.00,196.32,R,Air Liquide Uk,No
Http://opendatacommunities.org/id/metropolitan-district-council/leeds,Leeds City Council,31/01/2020,City Development,Libraries  Arts & Heritage  ,Supplies and Services,Subsistence,256,18/12/2019,2001-00689,0.00,196.32,R,Airbnb * Hmppdextdc,Yes
Http://opendatacommunities.org/id/metropolitan-district-council/leeds,Leeds City Council,31/01/2020,Communities and Environment,Parks and Countryside,Supplies and Services,Other Hired And Contracted Services,265,17/01/2020,2001-00690,0.00,575.00,R,Aire Valley Tree Services Ltd,No
Http://opendatacommunities.org/id/metropolitan-district-council/leeds,Leeds City Council,31/01/2020,Adults and Health,Services For Older People - 65 And Over,Third Party Payments,Residential Care Dementia,571,08/01/2020,2001-00691,0.00,43153.56,R,Aire View Residential Home,No
Http://opendatacommunities.org/id/metropolitan-district-council/leeds,Leeds City Council,31/01/2020,Adults and Health,Services For Older People - 65 And Over,Third Party Payments,Residential,580,08/01/2020,2001-00692,0.00,10803.05,R,Aire View Residential Home,No
Http://opendatacommunities.org/id/metropolitan-district-council/leeds,Leeds City Council,31/01/2020,City Development,Recreation  ,Supplies and Services,Hospitality,255,02/12/2019,2001-00693,0.00,9.04,R,Aireborough Leisure Centr,Yes
Http://opendatacommunities.org/id/metropolitan-district-council/leeds,Leeds City Council,31/01/2020,City Development,Recreation  ,Supplies and Services,Subsistence,256,11/12/2019,2001-00694,0.00,7.00,R,Aireborough Leisure Centr,Yes
Http://opendatacommunities.org/id/metropolitan-district-council/leeds,Leeds City Council,31/01/2020,City Development,Recreation  ,Supplies and Services,Hospitality,255,16/12/2019,2001-00695,0.00,7.33,R,Aireborough Leisure Centr,Yes
Http://opendatacommunities.org/id/metropolitan-district-council/leeds,Leeds City Council,31/01/2020,City Development,Recreation  ,Supplies and Services,Hospitality,255,16/12/2019,2001-00696,0.00,1.63,R,Aireborough Leisure Centr,Yes
Http://opendatacommunities.org/id/metropolitan-district-council/leeds,Leeds City Council,31/01/2020,City Development,Recreation  ,Supplies and Services,Hospitality,255,18/12/2019,2001-00697,0.00,5.08,R,Aireborough Leisure Centr,Yes
Http://opendatacommunities.org/id/metropolitan-district-council/leeds,Leeds City Council,31/01/2020,City Development,Recreation  ,Supplies and Services,Subsistence,256,19/12/2019,2001-00698,0.00,7.00,R,Aireborough Leisure Centr,Yes
Http://opendatacommunities.org/id/metropolitan-district-council/leeds,Leeds City Council,31/01/2020,City Development,Recreation  ,Supplies and Services,Other Hired And Contracted Services,265,30/12/2019,2001-00699,0.00,18.17,R,Aireborough Leisure Centr,Yes
Http://opendatacommunities.org/id/metropolitan-district-council/leeds,Leeds City Council,31/01/2020,Adults and Health,Services For Older People - 65 And Over,Third Party Payments,Residential Care Dementia,571,08/01/2020,2001-00700,0.00,3085.40,R,Airedale Care Home,No
Http://opendatacommunities.org/id/metropolitan-district-council/leeds,Leeds City Council,31/01/2020,Adults and Health,Services For Older People - 65 And Over,Third Party Payments,Residential,580,08/01/2020,2001-00701,0.00,18469.84,R,Airedale Care Home,No
Http://opendatacommunities.org/id/metropolitan-district-council/leeds,Leeds City Council,31/01/2020,Resources and Housing,Leeds Building Services,Supplies and Services,Other Hired And Contracted Services,265,03/01/2020,2001-00702,0.00,5224.00,R,Airedale Catering Equipment Ltd,No
Http://opendatacommunities.org/id/metropolitan-district-council/leeds,Leeds City Council,31/01/2020,Resources and Housing,Commercial Services,Premises,Fixtures & Fittings,131,31/01/2020,2001-00703,0.00,12320.00,R,Airedale Catering Equipment Ltd,No
Http://opendatacommunities.org/id/metropolitan-district-council/leeds,Leeds City Council,31/01/2020,Adults and Health,Assessment And Care Management,Employees,Training Costs,71,28/01/2020,2001-00704,0.00,120.00,R,Airedale Community Trading (Act) Ltd,No
Http://opendatacommunities.org/id/metropolitan-district-council/leeds,Leeds City Council,31/01/2020,Communities and Environment,Elections  Licensing and Registration,Income,Admissions  Booking Fees & Ticket Sales,933,23/01/2020,2001-00705,0.00,70.00,R,REDACTED PERSONAL DATA,No
Http://opendatacommunities.org/id/metropolitan-district-council/leeds,Leeds City Council,31/01/2020,Adults and Health,Services For Adults Under 65 Mental/Dis,Support Services,Legal Disbursements,411,17/01/2020,2001-00706,0.00,650.00,R,Aisling Campbell,No
Http://opendatacommunities.org/id/metropolitan-district-council/leeds,Leeds City Council,31/01/2020,Adults and Health,Services For Adults Under 65 Mental/Dis,Third Party Payments,Services Provided By Other NHS Bodies,522,02/01/2020,2001-00707,0.00,239.50,R,Ait Mitra Limited,No
Http://opendatacommunities.org/id/metropolitan-district-council/leeds,Leeds City Council,31/01/2020,Adults and Health,Services For Adults Under 65 Mental/Dis,Third Party Payments,Services Provided By Other NHS Bodies,522,02/01/2020,2001-00708,0.00,175.00,R,Ait Mitra Limited,No
Http://opendatacommunities.org/id/metropolitan-district-council/leeds,Leeds City Council,31/01/2020,Adults and Health,Services For Adults Under 65 Mental/Dis,Third Party Payments,Services Provided By Other NHS Bodies,522,03/01/2020,2001-00709,0.00,175.00,R,Ait Mitra Limited,No
Http://opendatacommunities.org/id/metropolitan-district-council/leeds,Leeds City Council,31/01/2020,Adults and Health,Services For Adults Under 65 Mental/Dis,Third Party Payments,Services Provided By Other NHS Bodies,522,08/01/2020,2001-00710,0.00,175.00,R,Ait Mitra Limited,No
Http://opendatacommunities.org/id/metropolitan-district-council/leeds,Leeds City Council,31/01/2020,Adults and Health,Services For Adults Under 65 Mental/Dis,Third Party Payments,Services Provided By Other NHS Bodies,522,08/01/2020,2001-00711,0.00,261.00,R,Ait Mitra Limited,No
Http://opendatacommunities.org/id/metropolitan-district-council/leeds,Leeds City Council,31/01/2020,Adults and Health,Services For Adults Under 65 Mental/Dis,Third Party Payments,Services Provided By Other NHS Bodies,522,08/01/2020,2001-00712,0.00,175.00,R,Ait Mitra Limited,No
Http://opendatacommunities.org/id/metropolitan-district-council/leeds,Leeds City Council,31/01/2020,Adults and Health,Services For Adults Under 65 Mental/Dis,Third Party Payments,Services Provided By Other NHS Bodies,522,08/01/2020,2001-00713,0.00,175.00,R,Ait Mitra Limited,No
Http://opendatacommunities.org/id/metropolitan-district-council/leeds,Leeds City Council,31/01/2020,Adults and Health,Services For Adults Under 65 Mental/Dis,Third Party Payments,Services Provided By Other NHS Bodies,522,08/01/2020,2001-00714,0.00,175.00,R,Ait Mitra Limited,No
Http://opendatacommunities.org/id/metropolitan-district-council/leeds,Leeds City Council,31/01/2020,Adults and Health,Services For Adults Under 65 Mental/Dis,Third Party Payments,Services Provided By Other NHS Bodies,522,08/01/2020,2001-00715,0.00,175.00,R,Ait Mitra Limited,No
Http://opendatacommunities.org/id/metropolitan-district-council/leeds,Leeds City Council,31/01/2020,Adults and Health,Services For Adults Under 65 Mental/Dis,Third Party Payments,Services Provided By Other NHS Bodies,522,08/01/2020,2001-00716,0.00,175.00,R,Ait Mitra Limited,No
Http://opendatacommunities.org/id/metropolitan-district-council/leeds,Leeds City Council,31/01/2020,Adults and Health,Services For Adults Under 65 Mental/Dis,Third Party Payments,Services Provided By Other NHS Bodies,522,08/01/2020,2001-00717,0.00,175.00,R,Ait Mitra Limited,No
Http://opendatacommunities.org/id/metropolitan-district-council/leeds,Leeds City Council,31/01/2020,Adults and Health,Services For Adults Under 65 Mental/Dis,Third Party Payments,Services Provided By Other NHS Bodies,522,08/01/2020,2001-00718,0.00,175.00,R,Ait Mitra Limited,No
Http://opendatacommunities.org/id/metropolitan-district-council/leeds,Leeds City Council,31/01/2020,Adults and Health,Services For Adults Under 65 Mental/Dis,Third Party Payments,Services Provided By Other NHS Bodies,522,08/01/2020,2001-00719,0.00,175.00,R,Ait Mitra Limited,No
Http://opendatacommunities.org/id/metropolitan-district-council/leeds,Leeds City Council,31/01/2020,Adults and Health,Services For Adults Under 65 Mental/Dis,Third Party Payments,Services Provided By Other NHS Bodies,522,10/01/2020,2001-00720,0.00,175.00,R,Ait Mitra Limited,No
Http://opendatacommunities.org/id/metropolitan-district-council/leeds,Leeds City Council,31/01/2020,Adults and Health,Services For Adults Under 65 Mental/Dis,Third Party Payments,Services Provided By Other NHS Bodies,522,10/01/2020,2001-00721,0.00,175.00,R,Ait Mitra Limited,No
Http://opendatacommunities.org/id/metropolitan-district-council/leeds,Leeds City Council As Accountable Body,31/01/2020,Social Services Pooled Budgets,Jcs For People With Learning Disabilitie,Third Party Payments,Residential,580,08/01/2020,2001-00722,0.00,6464.04,R,Aitch Care Homes,No
Http://opendatacommunities.org/id/metropolitan-district-council/leeds,Leeds City Council,31/01/2020,Resources and Housing,Leeds Building Services,Supplies and Services,Operational Materials,205,02/01/2020,2001-00723,0.00,49.67,R,Ajm Fixings & Power Tools Ltd,No
Http://opendatacommunities.org/id/metropolitan-district-council/leeds,Leeds City Council,31/01/2020,Resources and Housing,Leeds Building Services,Supplies and Services,Stores - Central And Other Depots,5,08/01/2020,2001-00724,0.00,1102.70,R,Ajm Fixings & Power Tools Ltd,No
Http://opendatacommunities.org/id/metropolitan-district-council/leeds,Leeds City Council,31/01/2020,Resources and Housing,Leeds Building Services,Supplies and Services,Operational Furniture And Equipment,203,10/01/2020,2001-00725,0.00,1348.99,R,Ajm Fixings & Power Tools Ltd,No
Http://opendatacommunities.org/id/metropolitan-district-council/leeds,Leeds City Council,31/01/2020,Resources and Housing,Leeds Building Services,Supplies and Services,Operational Furniture And Equipment,203,10/01/2020,2001-00726,0.00,703.55,R,Ajm Fixings & Power Tools Ltd,No
Http://opendatacommunities.org/id/metropolitan-district-council/leeds,Leeds City Council,31/01/2020,Resources and Housing,Leeds Building Services,Supplies and Services,Operational Materials,205,15/01/2020,2001-00727,0.00,22.84,R,Ajm Fixings & Power Tools Ltd,No
Http://opendatacommunities.org/id/metropolitan-district-council/leeds,Leeds City Council,31/01/2020,Resources and Housing,Leeds Building Services,Supplies and Services,Operational Materials,205,17/01/2020,2001-00728,0.00,-92.12,R,Ajm Fixings & Power Tools Ltd,No
Http://opendatacommunities.org/id/metropolitan-district-council/leeds,Leeds City Council,31/01/2020,Resources and Housing,Leeds Building Services,Supplies and Services,Operational Materials,205,17/01/2020,2001-00729,0.00,156.00,R,Ajm Fixings & Power Tools Ltd,No
Http://opendatacommunities.org/id/metropolitan-district-council/leeds,Leeds City Council,31/01/2020,Resources and Housing,Leeds Building Services,Supplies and Services,Operational Furniture And Equipment,203,17/01/2020,2001-00730,0.00,279.04,R,Ajm Fixings & Power Tools Ltd,No
Http://opendatacommunities.org/id/metropolitan-district-council/leeds,Leeds City Council,31/01/2020,Resources and Housing,Leeds Building Services,Supplies and Services,Operational Materials,205,17/01/2020,2001-00731,0.00,218.66,R,Ajm Fixings & Power Tools Ltd,No
Http://opendatacommunities.org/id/metropolitan-district-council/leeds,Leeds City Council,31/01/2020,Resources and Housing,Leeds Building Services,Supplies and Services,Stores - Central And Other Depots,5,20/01/2020,2001-00732,0.00,464.16,R,Ajm Fixings & Power Tools Ltd,No
Http://opendatacommunities.org/id/metropolitan-district-council/leeds,Leeds City Council,31/01/2020,Resources and Housing,Leeds Building Services,Supplies and Services,Operational Furniture And Equipment,203,20/01/2020,2001-00733,0.00,60.05,R,Ajm Fixings & Power Tools Ltd,No
Http://opendatacommunities.org/id/metropolitan-district-council/leeds,Leeds City Council,31/01/2020,Resources and Housing,Leeds Building Services,Supplies and Services,Stores - Central And Other Depots,5,20/01/2020,2001-00734,0.00,451.62,R,Ajm Fixings & Power Tools Ltd,No
Http://opendatacommunities.org/id/metropolitan-district-council/leeds,Leeds City Council,31/01/2020,Resources and Housing,Leeds Building Services,Supplies and Services,Operational Furniture And Equipment,203,20/01/2020,2001-00735,0.00,545.80,R,Ajm Fixings & Power Tools Ltd,No
Http://opendatacommunities.org/id/metropolitan-district-council/leeds,Leeds City Council,31/01/2020,Resources and Housing,Leeds Building Services,Supplies and Services,Operational Furniture And Equipment,203,20/01/2020,2001-00736,0.00,0.00,R,Ajm Fixings & Power Tools Ltd,No
Http://opendatacommunities.org/id/metropolitan-district-council/leeds,Leeds City Council,31/01/2020,Resources and Housing,Leeds Building Services,Supplies and Services,Operational Materials,205,20/01/2020,2001-00737,0.00,12.40,R,Ajm Fixings & Power Tools Ltd,No
Http://opendatacommunities.org/id/metropolitan-district-council/leeds,Leeds City Council,31/01/2020,Resources and Housing,Leeds Building Services,Supplies and Services,Operational Materials,205,31/01/2020,2001-00738,0.00,35.00,R,Ajm Fixings & Power Tools Ltd,No
Http://opendatacommunities.org/id/metropolitan-district-council/leeds,Leeds City Council,31/01/2020,Resources and Housing,Leeds Building Services,Supplies and Services,Operational Furniture And Equipment,203,31/01/2020,2001-00739,0.00,1115.60,R,Ajm Fixings & Power Tools Ltd,No
Http://opendatacommunities.org/id/metropolitan-district-council/leeds,Leeds City Council,31/01/2020,Resources and Housing,Sustainable Energy & Climate Change,Capital,Other Costs,7,30/01/2020,2001-00740,0.00,10000.00,C,REDACTED COMMERCIAL CONFIDENTIALITY,No
Http://opendatacommunities.org/id/metropolitan-district-council/leeds,Leeds City Council,31/01/2020,City Development,Highways,Supplies and Services,Operational Furniture And Equipment,203,10/01/2020,2001-00741,0.00,120.00,R,Akua Uk Ltd,No
Http://opendatacommunities.org/id/metropolitan-district-council/leeds,Leeds City Council,31/01/2020,Resources and Housing,Commercial Services,Premises,Plant and Machinery,102,17/01/2020,2001-00742,0.00,165.00,R,Akua Uk Ltd,No
Http://opendatacommunities.org/id/metropolitan-district-council/leeds,Leeds City Council,31/01/2020,Resources and Housing,Commercial Services,Premises,Plant and Machinery,102,17/01/2020,2001-00743,0.00,300.00,R,Akua Uk Ltd,No
Http://opendatacommunities.org/id/metropolitan-district-council/leeds,Leeds City Council,31/01/2020,Strategic Landlord,Housing Management,Supplies and Services,Compensation Claims,200,15/01/2020,2001-00744,0.00,500.00,R,REDACTED PERSONAL DATA,No
Http://opendatacommunities.org/id/metropolitan-district-council/leeds,Leeds City Council,31/01/2020,City Development,Markets & City Centre Management  ,Premises,General Maintenance,104,19/12/2019,2001-00745,0.00,400.00,R,Alan Brown Flowers,Yes
Http://opendatacommunities.org/id/metropolitan-district-council/leeds,Leeds City Council,31/01/2020,City Development,Libraries  Arts & Heritage,Supplies and Services,Other Hired And Contracted Services,265,10/01/2020,2001-00746,0.00,200.00,R,Alan Horsey,No
Http://opendatacommunities.org/id/metropolitan-district-council/leeds,Leeds City Council,31/01/2020,Communities and Environment,Car Parking Services,Income,Penalties  Fines & Car Parking Charges,934,31/01/2020,2001-00747,0.00,2.00,R,REDACTED PERSONAL DATA,No
Http://opendatacommunities.org/id/metropolitan-district-council/leeds,Leeds City Council,31/01/2020,Insurance,Insurance,Supplies and Services,Insurance Claims,248,24/01/2020,2001-00748,0.00,441.22,R,REDACTED PERSONAL DATA,No
Http://opendatacommunities.org/id/metropolitan-district-council/leeds,Leeds City Council,31/01/2020,Resources and Housing,Finance,Supplies and Services,Memberships,226,31/01/2020,2001-00749,0.00,522.00,R,Alarm,No
Http://opendatacommunities.org/id/metropolitan-district-council/leeds,Leeds City Council,31/01/2020,Resources and Housing,Strategy and Improvement,Supplies and Services,Memberships,226,31/01/2020,2001-00750,0.00,348.00,R,Alarm,No
Http://opendatacommunities.org/id/metropolitan-district-council/leeds,Leeds City Council,31/01/2020,Communities and Environment,Parks And Countryside  ,Supplies and Services,Operational Materials,205,06/12/2019,2001-00751,0.00,4349.10,R,Alba Trees Plc,Yes
Http://opendatacommunities.org/id/metropolitan-district-council/leeds,Leeds City Council,31/01/2020,Adults and Health,Services For Older People - 65 And Over,Third Party Payments,Residential Care Dementia,571,08/01/2020,2001-00752,0.00,1141.68,R,Albemarle,No
Http://opendatacommunities.org/id/metropolitan-district-council/leeds,Leeds City Council As Accountable Body,31/01/2020,Social Services Pooled Budgets,Leeds Community Equip Store Pooled Budgt,Supplies and Services,Other Equipment,203,15/01/2020,2001-00753,0.00,697.50,R,Albion Electric Stores Ltd,No
Http://opendatacommunities.org/id/metropolitan-district-council/leeds,Leeds City Council,31/01/2020,Communities and Environment,Communities,Supplies and Services,Computer Software & Equipment,214,21/01/2020,2001-00754,0.00,1228.33,R,Alcium Software Ltd,No
Http://opendatacommunities.org/id/metropolitan-district-council/leeds,Leeds City Council,31/01/2020,Communities and Environment,Communities,Supplies and Services,Computer Software & Equipment,214,23/01/2020,2001-00755,0.00,1228.33,R,Alcium Software Ltd,No
Http://opendatacommunities.org/id/metropolitan-district-council/leeds,Leeds City Council,31/01/2020,Children and Families,Social Care  ,Supplies and Services,General Amenity For Clients/Residents,285,12/12/2019,2001-00756,0.00,33.25,R,Aldi,Yes
Http://opendatacommunities.org/id/metropolitan-district-council/leeds,Leeds City Council,31/01/2020,Children and Families,Social Care  ,Supplies and Services,Food & Drink,231,16/12/2019,2001-00757,0.00,4.58,R,Aldi,Yes
Http://opendatacommunities.org/id/metropolitan-district-council/leeds,Leeds City Council,31/01/2020,City Development,Libraries  Arts & Heritage  ,Supplies and Services,Resaleable Materials,204,27/12/2019,2001-00758,0.00,6.60,R,Aldi,Yes
Http://opendatacommunities.org/id/metropolitan-district-council/leeds,Leeds City Council,31/01/2020,Children and Families,Social Care  ,Premises,Cleaning Maintenance & Toiletries,127,04/12/2019,2001-00759,0.00,2.86,R,Aldi 40 779,Yes
Http://opendatacommunities.org/id/metropolitan-district-council/leeds,Leeds City Council,31/01/2020,Children and Families,Social Care  ,Supplies and Services,Food & Drink,231,04/12/2019,2001-00760,0.00,71.32,R,Aldi 40 779,Yes
Http://opendatacommunities.org/id/metropolitan-district-council/leeds,Leeds City Council,31/01/2020,Communities and Environment,Customer Access  ,Supplies and Services,Office Furniture & Equipment,201,18/12/2019,2001-00761,0.00,5.79,R,Aldi 40 779,Yes
Http://opendatacommunities.org/id/metropolitan-district-council/leeds,Leeds City Council,31/01/2020,Children and Families,Social Care  ,Third Party Payments,Placement Support,550,03/12/2019,2001-00762,0.00,14.53,R,Aldi 49 779,Yes
Http://opendatacommunities.org/id/metropolitan-district-council/leeds,Leeds City Council,31/01/2020,Adults and Health,Services For Older People - 65 And Over  ,Supplies and Services,General Amenity For Clients/Residents,285,11/12/2019,2001-00763,0.00,67.89,R,Aldi 57 779,Yes
Http://opendatacommunities.org/id/metropolitan-district-council/leeds,Leeds City Council,31/01/2020,Children and Families,Social Care  ,Supplies and Services,Food & Drink,231,27/12/2019,2001-00764,0.00,52.87,R,Aldi 71 779,Yes
Http://opendatacommunities.org/id/metropolitan-district-council/leeds,Leeds City Council,31/01/2020,Children and Families,Social Care  ,Supplies and Services,Food & Drink,231,30/11/2019,2001-00765,0.00,71.55,R,Aldi 85 779,Yes
Http://opendatacommunities.org/id/metropolitan-district-council/leeds,Leeds City Council,31/01/2020,Children and Families,Social Care  ,Supplies and Services,Food & Drink,231,01/12/2019,2001-00766,0.00,6.40,R,Aldi 85 779,Yes
Http://opendatacommunities.org/id/metropolitan-district-council/leeds,Leeds City Council,31/01/2020,Children and Families,Social Care  ,Transfer Payments,Leaving Care Allowances,634,12/12/2019,2001-00767,0.00,48.65,R,Aldi 85 779,Yes
Http://opendatacommunities.org/id/metropolitan-district-council/leeds,Leeds City Council,31/01/2020,Children and Families,Social Care  ,Third Party Payments,Section 17,551,03/12/2019,2001-00768,0.00,5.88,R,Aldi 88 779,Yes
Http://opendatacommunities.org/id/metropolitan-district-council/leeds,Leeds City Council,31/01/2020,Communities and Environment,Communities  ,Supplies and Services,Operational Materials,205,06/12/2019,2001-00769,0.00,1.70,R,Aldi 89 779,Yes
Http://opendatacommunities.org/id/metropolitan-district-council/leeds,Leeds City Council,31/01/2020,Communities and Environment,Communities  ,Supplies and Services,Operational Materials,205,06/12/2019,2001-00770,0.00,57.99,R,Aldi 89 779,Yes
Http://opendatacommunities.org/id/metropolitan-district-council/leeds,Leeds City Council,31/01/2020,Communities and Environment,Customer Access,Supplies and Services,Bought In Professional Services,277,24/01/2020,2001-00771,0.00,25.50,R,Alena Zueva,No
